Body name,Directorate,Service Area Categorisation,Supplier Name,Payment Date,Card Transaction,Net Amount,Purpose of Spend,Procurement Classification: ProClass Label
Solihull MBC,Children's Services & Skills,Children & Education Services,3PB Barristers,31/03/2017,,2040.00,Other Fees,Not Yet Classified
Solihull MBC,Adult Social Care,Adult Social Care,A S C Birch,08/03/2017,,136.00,Clients Transport Costs,360000 - Public Transport
Solihull MBC,Adult Social Care,Adult Social Care,A S C Birch,08/03/2017,,576.00,Clients Transport Costs,360000 - Public Transport
Solihull MBC,Children's Services & Skills,Children & Education Services,A S C Birch,16/03/2017,,1849.20,Transport-Contract Hire,360000 - Public Transport
Solihull MBC,Children's Services & Skills,Children & Education Services,A S C Birch,16/03/2017,,1684.00,Transport-Contract Hire,360000 - Public Transport
Solihull MBC,Children's Services & Skills,Children & Education Services,A S C Birch,16/03/2017,,1513.40,Transport-Contract Hire,360000 - Public Transport
Solihull MBC,Resources,Central Services to the Public,A&DC,14/03/2017,,302.40,Recruitment Costs,Not Yet Classified
Solihull MBC,Adult Social Care,Cultural & Related Services,Aashiyana Arts,23/03/2017,,550.00,Other Fees,171011 - Education - School Services
Solihull MBC,Adult Social Care,Cultural & Related Services,Aashiyana Arts,23/03/2017,,-275.00,Other Fees,171011 - Education - School Services
Solihull MBC,Children's Services & Skills,Children & Education Services,ABA Tutorship,15/03/2017,,2180.00,Professional Fees,Not Yet Classified
Solihull MBC,Children's Services & Skills,Children & Education Services,ABA Tutorship,16/03/2017,,1389.33,Professional Fees,Not Yet Classified
Solihull MBC,Children's Services & Skills,Children & Education Services,Abacus Fostering Ltd,16/03/2017,,3319.21,External Fostering,Not Yet Classified
Solihull MBC,Children's Services & Skills,Children & Education Services,Abacus Fostering Ltd,14/03/2017,,3319.21,External Fostering,Not Yet Classified
Solihull MBC,Children's Services & Skills,Children & Education Services,Abacus Fostering Ltd,10/03/2017,,3319.21,External Fostering,Not Yet Classified
Solihull MBC,Children's Services & Skills,Children & Education Services,Abacus Fostering Ltd,07/03/2017,,2998.00,External Fostering,Not Yet Classified
Solihull MBC,Children's Services & Skills,Children & Education Services,Abacus Fostering Ltd,22/03/2017,,3243.13,External Fostering,Not Yet Classified
Solihull MBC,Children's Services & Skills,Children & Education Services,Abacus Fostering Ltd,07/03/2017,,2929.28,External Fostering,Not Yet Classified
Solihull MBC,Children's Services & Skills,Children & Education Services,Abacus Fostering Ltd,07/03/2017,,3243.13,External Fostering,Not Yet Classified
Solihull MBC,Children's Services & Skills,Children & Education Services,Abacus Fostering Ltd,10/03/2017,,3317.00,External Fostering,Not Yet Classified
Solihull MBC,Adult Social Care,Adult Social Care,Abbey Healthcare Homes Ltd,08/03/2017,,4370.28,ASC - Nursing Care Permanent,321000 - Social Community Care Supplies & Services - Adult
Solihull MBC,Adult Social Care,Adult Social Care,Abbey Healthcare Homes Ltd,08/03/2017,,4054.16,ASC - Nursing Care Permanent,321000 - Social Community Care Supplies & Services - Adult
Solihull MBC,Children's Services & Skills,Children & Education Services,ABC Fostering Services Ltd,10/03/2017,,2974.00,External Fostering,Not Yet Classified
Solihull MBC,Children's Services & Skills,Children & Education Services,ABC Fostering Services Ltd,28/03/2017,,3292.64,External Fostering,Not Yet Classified
Solihull MBC,Resources,Central Services to the Public,ABM Critical Solutions Ltd,23/03/2017,,1300.00,IT Equipment & Software,Not Yet Classified
Solihull MBC,Resources,Central Services to the Public,Abritas,24/03/2017,,359.46,IT Equipment & Software,270000 - Information Communication Technology
Solihull MBC,Children's Services - DSG Central.,Children & Education Services,AC Education Ltd,22/03/2017,,6375.00,Professional Fees,Not Yet Classified
Solihull MBC,Children's Services & Skills,Children & Education Services,Access With Choice,06/03/2017,,231.60,Clients Expenses,Not Yet Classified
Solihull MBC,Children's Services & Skills,Children & Education Services,Access With Choice,06/03/2017,,3500.00,Supported Lodgings,Not Yet Classified
Solihull MBC,Children's Services & Skills,Children & Education Services,Access With Choice,27/03/2017,,231.60,Clients Expenses,Not Yet Classified
Solihull MBC,Children's Services & Skills,Children & Education Services,Access With Choice,27/03/2017,,3875.00,Supported Lodgings,Not Yet Classified
Solihull MBC,Children's Services & Skills,Children & Education Services,Access With Choice,31/03/2017,,320.00,External Fostering,Not Yet Classified
Solihull MBC,Children's Services & Skills,Children & Education Services,Access With Choice,31/03/2017,,320.00,External Fostering,Not Yet Classified
Solihull MBC,Adult Social Care,Adult Social Care,Accord Housing Asssociation,02/03/2017,,1853.80,ASC - Residential Care Permanent,321000 - Social Community Care Supplies & Services - Adult
Solihull MBC,Adult Social Care,Adult Social Care,Accord Housing Asssociation,27/03/2017,,1853.80,ASC - Residential Care Permanent,321000 - Social Community Care Supplies & Services - Adult
Solihull MBC,Adult Social Care,Adult Social Care,Accord Housing Asssociation,27/03/2017,,2135.04,ASC - Residential Care Permanent,321000 - Social Community Care Supplies & Services - Adult
Solihull MBC,Adult Social Care,Adult Social Care,Accord Housing Asssociation,02/03/2017,,2135.04,ASC - Residential Care Permanent,321000 - Social Community Care Supplies & Services - Adult
Solihull MBC,Adult Social Care,Adult Social Care,Accord Housing Asssociation,27/03/2017,,2135.04,ASC - Residential Care Permanent,321000 - Social Community Care Supplies & Services - Adult
Solihull MBC,Adult Social Care,Adult Social Care,Accord Housing Asssociation,27/03/2017,,520.36,ASC - Residential Care Respite,321000 - Social Community Care Supplies & Services - Adult
Solihull MBC,Adult Social Care,Adult Social Care,Accord Housing Asssociation,08/03/2017,,346.91,ASC - Residential Care Respite,321000 - Social Community Care Supplies & Services - Adult
Solihull MBC,Adult Social Care,Adult Social Care,Accord Housing Asssociation,02/03/2017,,2135.04,ASC - Residential Care Permanent,321000 - Social Community Care Supplies & Services - Adult
Solihull MBC,Adult Social Care,Adult Social Care,Accord Housing Asssociation,27/03/2017,,2135.04,ASC - Residential Care Permanent,321000 - Social Community Care Supplies & Services - Adult
Solihull MBC,Adult Social Care,Adult Social Care,Accord Housing Asssociation,02/03/2017,,2135.04,ASC - Residential Care Permanent,321000 - Social Community Care Supplies & Services - Adult
Solihull MBC,Adult Social Care,Adult Social Care,Accord Housing Asssociation,27/03/2017,,2135.04,ASC - Residential Care Permanent,321000 - Social Community Care Supplies & Services - Adult
Solihull MBC,Adult Social Care,Adult Social Care,Accord Housing Asssociation,08/03/2017,,529.66,ASC - Residential Care Permanent,321000 - Social Community Care Supplies & Services - Adult
Solihull MBC,Adult Social Care,Adult Social Care,Accord Housing Asssociation,02/03/2017,,2135.04,ASC - Residential Care Permanent,321000 - Social Community Care Supplies & Services - Adult
Solihull MBC,Adult Social Care,Adult Social Care,Accord Housing Asssociation,27/03/2017,,2135.04,ASC - Residential Care Permanent,321000 - Social Community Care Supplies & Services - Adult
Solihull MBC,Adult Social Care,Adult Social Care,Accord Housing Asssociation,02/03/2017,,1853.80,ASC - Residential Care Permanent,321000 - Social Community Care Supplies & Services - Adult
Solihull MBC,Adult Social Care,Adult Social Care,Accord Housing Asssociation,27/03/2017,,1853.80,ASC - Residential Care Permanent,321000 - Social Community Care Supplies & Services - Adult
Solihull MBC,Adult Social Care,Adult Social Care,Accord Housing Asssociation,02/03/2017,,1853.80,ASC - Residential Care Permanent,321000 - Social Community Care Supplies & Services - Adult
Solihull MBC,Adult Social Care,Adult Social Care,Accord Housing Asssociation,27/03/2017,,1853.80,ASC - Residential Care Permanent,321000 - Social Community Care Supplies & Services - Adult
Solihull MBC,Adult Social Care,Adult Social Care,Accord Housing Asssociation,02/03/2017,,1853.80,ASC - Residential Care Permanent,321000 - Social Community Care Supplies & Services - Adult
Solihull MBC,Adult Social Care,Adult Social Care,Accord Housing Asssociation,27/03/2017,,1853.80,ASC - Residential Care Permanent,321000 - Social Community Care Supplies & Services - Adult
Solihull MBC,Adult Social Care,Adult Social Care,Accord Housing Asssociation,27/03/2017,,607.09,ASC - Residential Care Respite,321000 - Social Community Care Supplies & Services - Adult
Solihull MBC,Adult Social Care,Adult Social Care,Accord Housing Asssociation,02/03/2017,,2135.04,ASC - Residential Care Permanent,321000 - Social Community Care Supplies & Services - Adult
Solihull MBC,Adult Social Care,Adult Social Care,Accord Housing Asssociation,27/03/2017,,2135.04,ASC - Residential Care Permanent,321000 - Social Community Care Supplies & Services - Adult
Solihull MBC,Adult Social Care,Adult Social Care,Accord Housing Asssociation,02/03/2017,,2135.04,ASC - Residential Care Permanent,321000 - Social Community Care Supplies & Services - Adult
Solihull MBC,Adult Social Care,Adult Social Care,Accord Housing Asssociation,27/03/2017,,2135.04,ASC - Residential Care Permanent,321000 - Social Community Care Supplies & Services - Adult
Solihull MBC,Adult Social Care,Adult Social Care,Accord Housing Asssociation,02/03/2017,,1853.80,ASC - Residential Care Permanent,321000 - Social Community Care Supplies & Services - Adult
Solihull MBC,Adult Social Care,Adult Social Care,Accord Housing Asssociation,27/03/2017,,1853.80,ASC - Residential Care Permanent,321000 - Social Community Care Supplies & Services - Adult
Solihull MBC,Adult Social Care,Adult Social Care,Accord Housing Asssociation,02/03/2017,,1853.80,ASC - Residential Care Permanent,321000 - Social Community Care Supplies & Services - Adult
Solihull MBC,Adult Social Care,Adult Social Care,Accord Housing Asssociation,27/03/2017,,1853.80,ASC - Residential Care Permanent,321000 - Social Community Care Supplies & Services - Adult
Solihull MBC,Adult Social Care,Adult Social Care,Accord Housing Asssociation,02/03/2017,,2135.04,ASC - Residential Care Permanent,321000 - Social Community Care Supplies & Services - Adult
Solihull MBC,Adult Social Care,Adult Social Care,Accord Housing Asssociation,27/03/2017,,991.27,ASC - Residential Care Permanent,321000 - Social Community Care Supplies & Services - Adult
Solihull MBC,Adult Social Care,Adult Social Care,Accord Housing Asssociation,02/03/2017,,2135.04,ASC - Residential Care Permanent,321000 - Social Community Care Supplies & Services - Adult
Solihull MBC,Adult Social Care,Adult Social Care,Accord Housing Asssociation,27/03/2017,,2135.04,ASC - Residential Care Permanent,321000 - Social Community Care Supplies & Services - Adult
Solihull MBC,Adult Social Care,Adult Social Care,Accord Housing Asssociation,02/03/2017,,2135.04,ASC - Residential Care Permanent,321000 - Social Community Care Supplies & Services - Adult
Solihull MBC,Adult Social Care,Adult Social Care,Accord Housing Asssociation,27/03/2017,,2135.04,ASC - Residential Care Permanent,321000 - Social Community Care Supplies & Services - Adult
Solihull MBC,Adult Social Care,Adult Social Care,Accord Housing Asssociation,02/03/2017,,2135.04,ASC - Residential Care Permanent,321000 - Social Community Care Supplies & Services - Adult
Solihull MBC,Adult Social Care,Adult Social Care,Accord Housing Asssociation,27/03/2017,,2135.04,ASC - Residential Care Permanent,321000 - Social Community Care Supplies & Services - Adult
Solihull MBC,Adult Social Care,Adult Social Care,Accord Housing Asssociation,02/03/2017,,1853.80,ASC - Residential Care Permanent,321000 - Social Community Care Supplies & Services - Adult
Solihull MBC,Adult Social Care,Adult Social Care,Accord Housing Asssociation,27/03/2017,,1853.80,ASC - Residential Care Permanent,321000 - Social Community Care Supplies & Services - Adult
Solihull MBC,Adult Social Care,Adult Social Care,Accord Housing Asssociation,02/03/2017,,2176.96,ASC - Residential Care Permanent,321000 - Social Community Care Supplies & Services - Adult
Solihull MBC,Adult Social Care,Adult Social Care,Accord Housing Asssociation,02/03/2017,,4312.00,ASC - Residential Care Permanent,321000 - Social Community Care Supplies & Services - Adult
Solihull MBC,Adult Social Care,Adult Social Care,Accord Housing Asssociation,02/03/2017,,2135.04,ASC - Residential Care Permanent,321000 - Social Community Care Supplies & Services - Adult
Solihull MBC,Adult Social Care,Adult Social Care,Accord Housing Asssociation,27/03/2017,,2135.04,ASC - Residential Care Permanent,321000 - Social Community Care Supplies & Services - Adult
Solihull MBC,Adult Social Care,Adult Social Care,Accord Housing Asssociation,02/03/2017,,2135.04,ASC - Residential Care Permanent,321000 - Social Community Care Supplies & Services - Adult
Solihull MBC,Adult Social Care,Adult Social Care,Accord Housing Asssociation,16/03/2017,,17995.33,ASC - Residential Care Permanent,321000 - Social Community Care Supplies & Services - Adult
Solihull MBC,Adult Social Care,Adult Social Care,Accord Housing Asssociation,27/03/2017,,2135.04,ASC - Residential Care Permanent,321000 - Social Community Care Supplies & Services - Adult
Solihull MBC,Adult Social Care,Adult Social Care,Accord Housing Asssociation,02/03/2017,,2135.04,ASC - Residential Care Permanent,321000 - Social Community Care Supplies & Services - Adult
Solihull MBC,Adult Social Care,Adult Social Care,Accord Housing Asssociation,27/03/2017,,2135.04,ASC - Residential Care Permanent,321000 - Social Community Care Supplies & Services - Adult
Solihull MBC,Adult Social Care,Adult Social Care,Accord Housing Asssociation,02/03/2017,,2135.04,ASC - Residential Care Permanent,321000 - Social Community Care Supplies & Services - Adult
Solihull MBC,Adult Social Care,Adult Social Care,Accord Housing Asssociation,27/03/2017,,2135.04,ASC - Residential Care Permanent,321000 - Social Community Care Supplies & Services - Adult
Solihull MBC,Adult Social Care,Adult Social Care,Accord Housing Asssociation,02/03/2017,,2135.04,ASC - Residential Care Permanent,321000 - Social Community Care Supplies & Services - Adult
Solihull MBC,Adult Social Care,Adult Social Care,Accord Housing Asssociation,27/03/2017,,2135.04,ASC - Residential Care Permanent,321000 - Social Community Care Supplies & Services - Adult
Solihull MBC,Adult Social Care,Adult Social Care,Accord Housing Asssociation,02/03/2017,,2135.04,ASC - Residential Care Permanent,321000 - Social Community Care Supplies & Services - Adult
Solihull MBC,Adult Social Care,Adult Social Care,Accord Housing Asssociation,27/03/2017,,2135.04,ASC - Residential Care Permanent,321000 - Social Community Care Supplies & Services - Adult
Solihull MBC,Adult Social Care,Adult Social Care,Accord Housing Asssociation,02/03/2017,,1853.80,ASC - Residential Care Permanent,321000 - Social Community Care Supplies & Services - Adult
Solihull MBC,Adult Social Care,Adult Social Care,Accord Housing Asssociation,27/03/2017,,1853.80,ASC - Residential Care Permanent,321000 - Social Community Care Supplies & Services - Adult
Solihull MBC,Adult Social Care,Adult Social Care,Accord Housing Asssociation,02/03/2017,,2135.04,ASC - Residential Care Permanent,321000 - Social Community Care Supplies & Services - Adult
Solihull MBC,Adult Social Care,Adult Social Care,Accord Housing Asssociation,27/03/2017,,2135.04,ASC - Residential Care Permanent,321000 - Social Community Care Supplies & Services - Adult
Solihull MBC,Adult Social Care,Adult Social Care,Accord Housing Asssociation,27/03/2017,,867.27,ASC - Residential Care Respite,321000 - Social Community Care Supplies & Services - Adult
Solihull MBC,Adult Social Care,Adult Social Care,Accord Housing Asssociation,02/03/2017,,1982.54,ASC - Residential Care Permanent,321000 - Social Community Care Supplies & Services - Adult
Solihull MBC,Adult Social Care,Adult Social Care,Accord Housing Asssociation,27/03/2017,,2135.04,ASC - Residential Care Permanent,321000 - Social Community Care Supplies & Services - Adult
Solihull MBC,Adult Social Care,Adult Social Care,Accord Housing Asssociation,08/03/2017,,1214.18,ASC - Residential Care Respite,321000 - Social Community Care Supplies & Services - Adult
Solihull MBC,Adult Social Care,Adult Social Care,Accord Housing Asssociation,08/03/2017,,607.09,ASC - Residential Care Respite,321000 - Social Community Care Supplies & Services - Adult
Solihull MBC,Adult Social Care,Adult Social Care,Accord Housing Asssociation,02/03/2017,,1641.71,ASC - Residential Care Respite,321000 - Social Community Care Supplies & Services - Adult
Solihull MBC,Adult Social Care,Adult Social Care,Accord Housing Asssociation,02/03/2017,,1379.04,ASC - Residential Care Respite,321000 - Social Community Care Supplies & Services - Adult
Solihull MBC,Adult Social Care,Adult Social Care,Accord Housing Asssociation,08/03/2017,,1906.39,ASC - Residential Care Permanent,321000 - Social Community Care Supplies & Services - Adult
Solihull MBC,Adult Social Care,Adult Social Care,Accord Housing Asssociation,02/03/2017,,2135.04,ASC - Residential Care Permanent,321000 - Social Community Care Supplies & Services - Adult
Solihull MBC,Adult Social Care,Adult Social Care,Accord Housing Asssociation,27/03/2017,,2135.04,ASC - Residential Care Permanent,321000 - Social Community Care Supplies & Services - Adult
Solihull MBC,Adult Social Care,Adult Social Care,Accord Housing Asssociation,02/03/2017,,2135.04,ASC - Residential Care Permanent,321000 - Social Community Care Supplies & Services - Adult
Solihull MBC,Adult Social Care,Adult Social Care,Accord Housing Asssociation,27/03/2017,,2135.04,ASC - Residential Care Permanent,321000 - Social Community Care Supplies & Services - Adult
Solihull MBC,Adult Social Care,Adult Social Care,Accord Housing Asssociation,08/03/2017,,331.04,ASC - Residential Care Permanent,321000 - Social Community Care Supplies & Services - Adult
Solihull MBC,Adult Social Care,Adult Social Care,Accord Housing Asssociation,02/03/2017,,1853.80,ASC - Residential Care Permanent,321000 - Social Community Care Supplies & Services - Adult
Solihull MBC,Adult Social Care,Adult Social Care,Accord Housing Asssociation,27/03/2017,,1853.80,ASC - Residential Care Permanent,321000 - Social Community Care Supplies & Services - Adult
Solihull MBC,Adult Social Care,Adult Social Care,Accord Housing Asssociation,02/03/2017,,1853.80,ASC - Residential Care Permanent,321000 - Social Community Care Supplies & Services - Adult
Solihull MBC,Adult Social Care,Adult Social Care,Accord Housing Asssociation,27/03/2017,,1853.80,ASC - Residential Care Permanent,321000 - Social Community Care Supplies & Services - Adult
Solihull MBC,Adult Social Care,Adult Social Care,Accord Housing Asssociation,02/03/2017,,2135.04,ASC - Residential Care Permanent,321000 - Social Community Care Supplies & Services - Adult
Solihull MBC,Adult Social Care,Adult Social Care,Accord Housing Asssociation,27/03/2017,,2135.04,ASC - Residential Care Permanent,321000 - Social Community Care Supplies & Services - Adult
Solihull MBC,Children's Services - DSG Central.,Children & Education Services,Ace Education LLP,21/03/2017,,962.80,Professional Fees,Not Yet Classified
Solihull MBC,Children's Services - DSG Central.,Children & Education Services,Ace Education LLP,29/03/2017,,250.00,Professional Fees,Not Yet Classified
Solihull MBC,Managed Growth and Communities,Planning & Development Services,Acivico,15/03/2017,,2008.96,Agency Staff,Not Yet Classified
Solihull MBC,Managed Growth and Communities,Planning & Development Services,Acivico,20/03/2017,,747.50,Agency Staff,Not Yet Classified
Solihull MBC,Children's Services & Skills,Children & Education Services,ACPAS Ltd,30/03/2017,,950.00,Professional Fees,Not Yet Classified
Solihull MBC,Children's Services & Skills,Children & Education Services,ACPAS Ltd,27/03/2017,,950.00,Professional Fees,Not Yet Classified
Solihull MBC,Children's Services & Skills,Children & Education Services,ACPAS Ltd,27/03/2017,,950.00,Professional Fees,Not Yet Classified
Solihull MBC,Resources,Central Services to the Public,ACS Ltd,27/03/2017,,9.95,IT Equipment & Software,Not Yet Classified
Solihull MBC,Resources,Central Services to the Public,ACS Ltd,27/03/2017,,4.95,IT Equipment & Software,Not Yet Classified
Solihull MBC,Resources,Central Services to the Public,ACS Ltd,27/03/2017,,4876.60,IT Equipment & Software,Not Yet Classified
Solihull MBC,Resources,Central Services to the Public,ACS Ltd,27/03/2017,,-4.95,IT Equipment & Software,Not Yet Classified
Solihull MBC,Resources,Central Services to the Public,ACS Ltd,27/03/2017,,-2438.30,IT Equipment & Software,Not Yet Classified
Solihull MBC,Adult Social Care,Adult Social Care,Action On Elder Abuse,29/03/2017,,604.50,Training,Not Yet Classified
Solihull MBC,Children's Services - DSG Central.,Children & Education Services,Active Angels,20/03/2017,,1275.00,Grant & Subscription (SCITT),321100 - Social Community Care Supplies & Services - Children
Solihull MBC,Children's Services - DSG Central.,Children & Education Services,Active Angels,20/03/2017,,3078.00,Grant & Subscription (SCITT),321100 - Social Community Care Supplies & Services - Children
Solihull MBC,Children's Services - DSG Central.,Children & Education Services,Active Angels,20/03/2017,,646.80,Grant & Subscription (SCITT),321100 - Social Community Care Supplies & Services - Children
Solihull MBC,Children's Services & Skills,Children & Education Services,Active Visual Supplies Ltd,22/03/2017,,1335.00,Hardware,171011 - Education - School Services
Solihull MBC,Adult Social Care,Adult Social Care,Active Visual Supplies Ltd,07/03/2017,,1224.00,Furniture & Equipment,171011 - Education - School Services
Solihull MBC,Resources,Children & Education Services,Active Visual Supplies Ltd,20/03/2017,,1995.00,IT Equipment & Software,171011 - Education - School Services
Solihull MBC,Resources,Children & Education Services,Active Visual Supplies Ltd,31/03/2017,,295.14,Materials,171011 - Education - School Services
Solihull MBC,Resources,Children & Education Services,Active Visual Supplies Ltd,31/03/2017,,6.00,Materials,171011 - Education - School Services
Solihull MBC,Managed Growth and Communities,Environmental and Regulatory Services,Actso Ltd,21/03/2017,,300.00,Grant & Subscription (SCITT),Not Yet Classified
Solihull MBC,Managed Growth and Communities,Planning & Development Services,Adecoe Ltd,29/03/2017,,1562.50,Professional Fees,Not Yet Classified
Solihull MBC,Adult Social Care,Adult Social Care,Adelphi Care Services Ltd,31/03/2017,,5418.00,ASC - Supported Living Care Costs,Not Yet Classified
Solihull MBC,Managed Growth and Communities,Highways & Transport Services,Adept,22/03/2017,,600.00,Grant & Subscription (SCITT),Not Yet Classified
Solihull MBC,Children's Services & Skills,Children & Education Services,Adoption Uk,15/03/2017,,5719.20,Professional Fees,202100 - Financial Services - Subscriptions
Solihull MBC,Children's Services - DSG Central.,Children & Education Services,Adviza Partnership,27/03/2017,,342.00,Professional Fees,Not Yet Classified
Solihull MBC,Adult Social Care,Adult Social Care,Age UK Solihull,20/03/2017,,4528.00,Block Contracts,321000 - Social Community Care Supplies & Services - Adult
Solihull MBC,Adult Social Care,Adult Social Care,Age UK Solihull,23/03/2017,,10000.00,Other Contracted Services,321000 - Social Community Care Supplies & Services - Adult
Solihull MBC,Adult Social Care,Adult Social Care,Age UK Solihull,21/03/2017,,3832.00,Block Contracts,321000 - Social Community Care Supplies & Services - Adult
Solihull MBC,Adult Social Care,Adult Social Care,Aidapt Bathrooms Ltd,10/03/2017,,241.08,Furniture & Equipment,321000 - Social Community Care Supplies & Services - Adult
Solihull MBC,Adult Social Care,Adult Social Care,Aidapt Bathrooms Ltd,21/03/2017,,287.28,Furniture & Equipment,321000 - Social Community Care Supplies & Services - Adult
Solihull MBC,Adult Social Care,Adult Social Care,Aidapt Bathrooms Ltd,21/03/2017,,539.28,Furniture & Equipment,321000 - Social Community Care Supplies & Services - Adult
Solihull MBC,Adult Social Care,Adult Social Care,Aidapt Bathrooms Ltd,23/03/2017,,294.00,Furniture & Equipment,321000 - Social Community Care Supplies & Services - Adult
Solihull MBC,Adult Social Care,Adult Social Care,Aidapt Bathrooms Ltd,23/03/2017,,227.64,Furniture & Equipment,321000 - Social Community Care Supplies & Services - Adult
Solihull MBC,Adult Social Care,Adult Social Care,Aidapt Bathrooms Ltd,27/03/2017,,287.28,Furniture & Equipment,321000 - Social Community Care Supplies & Services - Adult
Solihull MBC,Adult Social Care,Adult Social Care,Aidapt Bathrooms Ltd,27/03/2017,,187.50,Furniture & Equipment,321000 - Social Community Care Supplies & Services - Adult
Solihull MBC,Adult Social Care,Adult Social Care,Aidapt Bathrooms Ltd,27/03/2017,,93.60,Furniture & Equipment,321000 - Social Community Care Supplies & Services - Adult
Solihull MBC,Adult Social Care,Adult Social Care,Aidapt Bathrooms Ltd,27/03/2017,,99.00,Furniture & Equipment,321000 - Social Community Care Supplies & Services - Adult
Solihull MBC,Adult Social Care,Adult Social Care,Aidapt Bathrooms Ltd,27/03/2017,,423.00,Furniture & Equipment,321000 - Social Community Care Supplies & Services - Adult
Solihull MBC,Adult Social Care,Adult Social Care,Aidapt Bathrooms Ltd,27/03/2017,,243.90,Furniture & Equipment,321000 - Social Community Care Supplies & Services - Adult
Solihull MBC,Adult Social Care,Adult Social Care,Aidapt Bathrooms Ltd,30/03/2017,,243.90,Furniture & Equipment,321000 - Social Community Care Supplies & Services - Adult
Solihull MBC,Adult Social Care,Adult Social Care,Aidservice Ltd,21/03/2017,,320.00,Furniture & Equipment,Not Yet Classified
Solihull MBC,Adult Social Care,Adult Social Care,Aidservice Ltd,15/03/2017,,149.00,Furniture & Equipment,Not Yet Classified
Solihull MBC,Adult Social Care,Adult Social Care,Aidservice Ltd,15/03/2017,,149.00,Furniture & Equipment,Not Yet Classified
Solihull MBC,Adult Social Care,Adult Social Care,Aidservice Ltd,15/03/2017,,149.00,Furniture & Equipment,Not Yet Classified
Solihull MBC,Adult Social Care,Adult Social Care,Aidservice Ltd,15/03/2017,,12.00,Furniture & Equipment,Not Yet Classified
Solihull MBC,Adult Social Care,Adult Social Care,Aidservice Ltd,15/03/2017,,149.00,Furniture & Equipment,Not Yet Classified
Solihull MBC,Adult Social Care,Adult Social Care,Aidservice Ltd,15/03/2017,,149.00,Furniture & Equipment,Not Yet Classified
Solihull MBC,Adult Social Care,Adult Social Care,Aidservice Ltd,15/03/2017,,149.00,Furniture & Equipment,Not Yet Classified
Solihull MBC,Adult Social Care,Adult Social Care,Aidservice Ltd,15/03/2017,,149.00,Furniture & Equipment,Not Yet Classified
Solihull MBC,Adult Social Care,Adult Social Care,Aidservice Ltd,15/03/2017,,197.00,Furniture & Equipment,Not Yet Classified
Solihull MBC,Adult Social Care,Adult Social Care,Aidservice Ltd,15/03/2017,,197.00,Furniture & Equipment,Not Yet Classified
Solihull MBC,Adult Social Care,Adult Social Care,Aidservice Ltd,15/03/2017,,197.00,Furniture & Equipment,Not Yet Classified
Solihull MBC,Adult Social Care,Adult Social Care,Akari Care Ltd,08/03/2017,,1853.80,ASC - Residential Care Permanent,Not Yet Classified
Solihull MBC,Adult Social Care,Adult Social Care,Akari Care Ltd,08/03/2017,,2130.16,ASC - Nursing Care Permanent,Not Yet Classified
Solihull MBC,Adult Social Care,Adult Social Care,Akari Care Ltd,08/03/2017,,2130.16,ASC - Nursing Care Permanent,Not Yet Classified
Solihull MBC,Adult Social Care,Adult Social Care,AKW Medi Care Ltd,14/03/2017,,332.80,Furniture & Equipment,Not Yet Classified
Solihull MBC,Adult Social Care,Adult Social Care,Aldermore Invoice Finance - Plan It Home Care Ltd,15/03/2017,,392.00,ASC - Domiciliary Care,Not Yet Classified
Solihull MBC,Adult Social Care,Adult Social Care,Aldermore Invoice Finance - Plan It Home Care Ltd,15/03/2017,,469.00,ASC - Domiciliary Care,Not Yet Classified
Solihull MBC,Adult Social Care,Adult Social Care,Aldermore Invoice Finance - Plan It Home Care Ltd,15/03/2017,,840.00,ASC - Domiciliary Care,Not Yet Classified
Solihull MBC,Adult Social Care,Adult Social Care,Aldermore Invoice Finance - Plan It Home Care Ltd,15/03/2017,,1960.00,ASC - Domiciliary Care,Not Yet Classified
Solihull MBC,Adult Social Care,Adult Social Care,Aldermore Invoice Finance - Plan It Home Care Ltd,15/03/2017,,1176.00,ASC - Domiciliary Care,Not Yet Classified
Solihull MBC,Adult Social Care,Adult Social Care,Aldermore Invoice Finance - Plan It Home Care Ltd,15/03/2017,,560.00,ASC - Domiciliary Care,Not Yet Classified
Solihull MBC,Adult Social Care,Adult Social Care,Aldermore Invoice Finance - Plan It Home Care Ltd,15/03/2017,,1764.00,ASC - Domiciliary Care,Not Yet Classified
Solihull MBC,Children's Services & Skills,Children & Education Services,Alere Toxicology,20/03/2017,,321.80,Professional Fees,Not Yet Classified
Solihull MBC,Adult Social Care,Adult Social Care,Allied Healthcare (UK) Ltd,20/03/2017,,479.96,ASC - Home Care Support Services,321000 - Social Community Care Supplies & Services - Adult
Solihull MBC,Adult Social Care,Adult Social Care,Allied Healthcare (UK) Ltd,20/03/2017,,348.82,ASC - Home Care Support Services,321000 - Social Community Care Supplies & Services - Adult
Solihull MBC,Adult Social Care,Adult Social Care,Allied Healthcare (UK) Ltd,20/03/2017,,625.92,ASC - Home Care Support Services,321000 - Social Community Care Supplies & Services - Adult
Solihull MBC,Adult Social Care,Adult Social Care,Allied Healthcare (UK) Ltd,20/03/2017,,707.42,ASC - Home Care Support Services,321000 - Social Community Care Supplies & Services - Adult
Solihull MBC,Adult Social Care,Adult Social Care,Allied Healthcare (UK) Ltd,20/03/2017,,351.52,ASC - Home Care Support Services,321000 - Social Community Care Supplies & Services - Adult
Solihull MBC,Adult Social Care,Adult Social Care,Allied Healthcare (UK) Ltd,20/03/2017,,723.72,ASC - Home Care Support Services,321000 - Social Community Care Supplies & Services - Adult
Solihull MBC,Adult Social Care,Adult Social Care,Allied Healthcare (UK) Ltd,20/03/2017,,283.92,ASC - Home Care Support Services,321000 - Social Community Care Supplies & Services - Adult
Solihull MBC,Children's Services & Skills,Children & Education Services,Allwag Promotions Ltd,15/03/2017,,223.00,Materials,Not Yet Classified
Solihull MBC,Children's Services & Skills,Children & Education Services,Allwag Promotions Ltd,20/03/2017,,440.00,Materials,Not Yet Classified
Solihull MBC,Adult Social Care,Adult Social Care,Alophonsus Services Ltd,09/03/2017,,10804.88,ASC - Residential Care Permanent,321000 - Social Community Care Supplies & Services - Adult
Solihull MBC,Children's Services & Skills,Children & Education Services,Alpha Biolaboratories Ltd,10/03/2017,,338.33,Professional Fees,Not Yet Classified
Solihull MBC,Adult Social Care,Adult Social Care,Alpha Health Care Ltd,13/03/2017,,2130.16,ASC - Nursing Care Permanent,321000 - Social Community Care Supplies & Services - Adult
Solihull MBC,Adult Social Care,Adult Social Care,Alpha Health Care Ltd,13/03/2017,,1869.56,ASC - Residential Care Permanent,321000 - Social Community Care Supplies & Services - Adult
Solihull MBC,Adult Social Care,Adult Social Care,Alveston Leys Nursing Home,01/03/2017,,540.00,ASC - Residential Care Respite,Not Yet Classified
Solihull MBC,Resources,Children & Education Services,Amaryllis Group,21/03/2017,,229.52,Other Fees,Not Yet Classified
Solihull MBC,Children's Services - DSG Central.,Children & Education Services,Amazon UK Marketplace ,24/03/2017,Card Transaction,238.06,Purchase Card Statement Summary,161000 - Domestic Goods - Commercial
Solihull MBC,Managed Growth and Communities - HRA,Housing Revenue Account,Amazon UK Retail Amazon.c ,24/03/2017,Card Transaction,275.88,General Debtors,161000 - Domestic Goods - Commercial
Solihull MBC,Adult Social Care,Adult Social Care,Amberley Court Nursing Home,20/03/2017,DIR004,4000.00,ASC - Nursing Care Permanent,321000 - Social Community Care Supplies & Services - Adult
Solihull MBC,Managed Growth and Communities,Planning & Development Services,Amion Consulting,01/03/2017,DIR005,5800.00,Professional Fees,Not Yet Classified
Solihull MBC,Managed Growth and Communities,Planning & Development Services,Amion Consulting,01/03/2017,DIR005,1500.00,Professional Fees,Not Yet Classified
Solihull MBC,Managed Growth and Communities,Planning & Development Services,Amion Consulting,01/03/2017,DIR005,1500.00,Professional Fees,Not Yet Classified
Solihull MBC,Managed Growth and Communities,Planning & Development Services,Amion Consulting,01/03/2017,DIR005,2500.00,Professional Fees,Not Yet Classified
Solihull MBC,Adult Social Care,Adult Social Care,Anchor Homes - Kerria Court,27/03/2017,DIR004,2146.00,ASC - Residential Care Permanent,Not Yet Classified
Solihull MBC,Adult Social Care,Adult Social Care,Anchor Trust,08/03/2017,DIR004,3000.00,ASC - Residential Care Permanent,321000 - Social Community Care Supplies & Services - Adult
Solihull MBC,Adult Social Care,Adult Social Care,Anchor Trust,08/03/2017,DIR004,2600.00,ASC - Residential Care Permanent,321000 - Social Community Care Supplies & Services - Adult
Solihull MBC,Adult Social Care,Adult Social Care,Angel Court Residential Home,21/03/2017,DIR004,993.11,ASC - Residential Care Permanent,Not Yet Classified
Solihull MBC,Adult Social Care,Adult Social Care,Angel Court Residential Home,10/03/2017,DIR004,1853.80,ASC - Residential Care Permanent,Not Yet Classified
Solihull MBC,Adult Social Care,Adult Social Care,Angel Court Residential Home,10/03/2017,DIR004,331.04,ASC - Residential Care Permanent,Not Yet Classified
Solihull MBC,Resources,Central Services to the Public,Angel Springs Ltd,07/03/2017,DIR103,350.00,Materials,171100 - Education - Supplies
Solihull MBC,Resources,Central Services to the Public,Angel Springs Ltd,10/03/2017,DIR103,350.00,Repair & Maintn Of Buildings,171100 - Education - Supplies
Solihull MBC,Children's Services - DSG Central.,Children & Education Services,Angels Daycare,20/03/2017,DIR008,2138.40,Grant & Subscription (SCITT),321100 - Social Community Care Supplies & Services - Children
Solihull MBC,Adult Social Care,Adult Social Care,Angels Healthcare Ltd,09/03/2017,DIR004,1282.56,ASC - Home Care Support Services,321000 - Social Community Care Supplies & Services - Adult
Solihull MBC,Adult Social Care,Adult Social Care,Angels Healthcare Ltd,09/03/2017,DIR004,1606.54,ASC - Home Care Support Services,321000 - Social Community Care Supplies & Services - Adult
Solihull MBC,Adult Social Care,Adult Social Care,Angels Healthcare Ltd,09/03/2017,DIR004,895.12,ASC - Home Care Support Services,321000 - Social Community Care Supplies & Services - Adult
Solihull MBC,Adult Social Care,Adult Social Care,Angels Healthcare Ltd,09/03/2017,DIR004,280.56,ASC - Home Care Support Services,321000 - Social Community Care Supplies & Services - Adult
Solihull MBC,Adult Social Care,Adult Social Care,Angels Healthcare Ltd,09/03/2017,DIR004,734.80,ASC - Home Care Support Services,321000 - Social Community Care Supplies & Services - Adult
Solihull MBC,Adult Social Care,Adult Social Care,Angels Healthcare Ltd,09/03/2017,DIR004,390.78,ASC - Home Care Support Services,321000 - Social Community Care Supplies & Services - Adult
Solihull MBC,Adult Social Care,Adult Social Care,Angels Healthcare Ltd,09/03/2017,DIR004,370.74,ASC - Home Care Support Services,321000 - Social Community Care Supplies & Services - Adult
Solihull MBC,Adult Social Care,Adult Social Care,Angels Healthcare Ltd,09/03/2017,DIR004,354.04,ASC - Home Care Support Services,321000 - Social Community Care Supplies & Services - Adult
Solihull MBC,Adult Social Care,Adult Social Care,Angels Healthcare Ltd,09/03/2017,DIR004,647.96,ASC - Home Care Support Services,321000 - Social Community Care Supplies & Services - Adult
Solihull MBC,Adult Social Care,Adult Social Care,Angels Healthcare Ltd,09/03/2017,DIR004,594.52,ASC - Home Care Support Services,321000 - Social Community Care Supplies & Services - Adult
Solihull MBC,Adult Social Care,Adult Social Care,Angels Healthcare Ltd,09/03/2017,DIR004,534.40,ASC - Home Care Support Services,321000 - Social Community Care Supplies & Services - Adult
Solihull MBC,Adult Social Care,Adult Social Care,Angels Healthcare Ltd,09/03/2017,DIR004,354.04,ASC - Home Care Support Services,321000 - Social Community Care Supplies & Services - Adult
Solihull MBC,Adult Social Care,Adult Social Care,Angels Healthcare Ltd,09/03/2017,DIR004,627.92,ASC - Home Care Support Services,321000 - Social Community Care Supplies & Services - Adult
Solihull MBC,Adult Social Care,Adult Social Care,Angels Healthcare Ltd,09/03/2017,DIR004,354.04,ASC - Home Care Support Services,321000 - Social Community Care Supplies & Services - Adult
Solihull MBC,Adult Social Care,Adult Social Care,Angels Healthcare Ltd,09/03/2017,DIR004,267.20,ASC - Home Care Support Services,321000 - Social Community Care Supplies & Services - Adult
Solihull MBC,Adult Social Care,Adult Social Care,Angels Healthcare Ltd,09/03/2017,DIR004,1125.58,ASC - Home Care Support Services,321000 - Social Community Care Supplies & Services - Adult
Solihull MBC,Adult Social Care,Adult Social Care,Angels Healthcare Ltd,09/03/2017,DIR004,330.66,ASC - Home Care Support Services,321000 - Social Community Care Supplies & Services - Adult
Solihull MBC,Adult Social Care,Adult Social Care,Angels Healthcare Ltd,09/03/2017,DIR004,935.20,ASC - Home Care Support Services,321000 - Social Community Care Supplies & Services - Adult
Solihull MBC,Adult Social Care,Adult Social Care,Angels Healthcare Ltd,09/03/2017,DIR004,1636.60,ASC - Home Care Support Services,321000 - Social Community Care Supplies & Services - Adult
Solihull MBC,Adult Social Care,Adult Social Care,Angels Healthcare Ltd,09/03/2017,DIR004,657.98,ASC - Home Care Support Services,321000 - Social Community Care Supplies & Services - Adult
Solihull MBC,Adult Social Care,Adult Social Care,Angels Healthcare Ltd,09/03/2017,DIR004,544.42,ASC - Home Care Support Services,321000 - Social Community Care Supplies & Services - Adult
Solihull MBC,Adult Social Care,Adult Social Care,Angels Healthcare Ltd,09/03/2017,DIR004,374.08,ASC - Home Care Support Services,321000 - Social Community Care Supplies & Services - Adult
Solihull MBC,Adult Social Care,Adult Social Care,Angels Healthcare Ltd,09/03/2017,DIR004,1479.62,ASC - Home Care Support Services,321000 - Social Community Care Supplies & Services - Adult
Solihull MBC,Adult Social Care,Adult Social Care,Angels Healthcare Ltd,09/03/2017,DIR004,694.72,ASC - Home Care Support Services,321000 - Social Community Care Supplies & Services - Adult
Solihull MBC,Adult Social Care,Adult Social Care,Angels Healthcare Ltd,09/03/2017,DIR004,784.90,ASC - Home Care Support Services,321000 - Social Community Care Supplies & Services - Adult
Solihull MBC,Adult Social Care,Adult Social Care,Angels Healthcare Ltd,09/03/2017,DIR004,1175.68,ASC - Home Care Support Services,321000 - Social Community Care Supplies & Services - Adult
Solihull MBC,Adult Social Care,Adult Social Care,Angels Healthcare Ltd,09/03/2017,DIR004,966.00,ASC - Home Care Support Services,321000 - Social Community Care Supplies & Services - Adult
Solihull MBC,Adult Social Care,Adult Social Care,Angels Healthcare Ltd,09/03/2017,DIR004,571.14,ASC - Home Care Support Services,321000 - Social Community Care Supplies & Services - Adult
Solihull MBC,Adult Social Care,Adult Social Care,Angels Healthcare Ltd,09/03/2017,DIR004,1369.40,ASC - Home Care Support Services,321000 - Social Community Care Supplies & Services - Adult
Solihull MBC,Adult Social Care,Adult Social Care,Angels Healthcare Ltd,09/03/2017,DIR004,537.74,ASC - Home Care Support Services,321000 - Social Community Care Supplies & Services - Adult
Solihull MBC,Adult Social Care,Adult Social Care,Angels Healthcare Ltd,09/03/2017,DIR004,637.94,ASC - Home Care Support Services,321000 - Social Community Care Supplies & Services - Adult
Solihull MBC,Adult Social Care,Adult Social Care,Angels Healthcare Ltd,09/03/2017,DIR004,1673.34,ASC - Home Care Support Services,321000 - Social Community Care Supplies & Services - Adult
Solihull MBC,Adult Social Care,Adult Social Care,Angels Healthcare Ltd,09/03/2017,DIR004,711.42,ASC - Home Care Support Services,321000 - Social Community Care Supplies & Services - Adult
Solihull MBC,Adult Social Care,Adult Social Care,Angels Healthcare Ltd,09/03/2017,DIR004,961.92,ASC - Home Care Support Services,321000 - Social Community Care Supplies & Services - Adult
Solihull MBC,Adult Social Care,Adult Social Care,Angels Healthcare Ltd,09/03/2017,DIR004,524.38,ASC - Home Care Support Services,321000 - Social Community Care Supplies & Services - Adult
Solihull MBC,Adult Social Care,Adult Social Care,Angels Healthcare Ltd,09/03/2017,DIR004,708.08,ASC - Home Care Support Services,321000 - Social Community Care Supplies & Services - Adult
Solihull MBC,Adult Social Care,Adult Social Care,Angels Healthcare Ltd,09/03/2017,DIR004,547.76,ASC - Home Care Support Services,321000 - Social Community Care Supplies & Services - Adult
Solihull MBC,Adult Social Care,Adult Social Care,Angels Healthcare Ltd,09/03/2017,DIR004,267.20,ASC - Home Care Support Services,321000 - Social Community Care Supplies & Services - Adult
Solihull MBC,Adult Social Care,Adult Social Care,Angels Healthcare Ltd,09/03/2017,DIR004,280.56,ASC - Home Care Support Services,321000 - Social Community Care Supplies & Services - Adult
Solihull MBC,Adult Social Care,Adult Social Care,Angels Healthcare Ltd,09/03/2017,DIR004,424.18,ASC - Home Care Support Services,321000 - Social Community Care Supplies & Services - Adult
Solihull MBC,Adult Social Care,Adult Social Care,Anita Stone Court,08/03/2017,DIR004,2752.00,ASC - Residential Care Permanent,Not Yet Classified
Solihull MBC,Adult Social Care,Adult Social Care,Anita Stone Court,08/03/2017,DIR004,2752.00,ASC - Nursing Care Permanent,Not Yet Classified
Solihull MBC,Adult Social Care,Adult Social Care,Anita Stone Court,08/03/2017,DIR004,2892.00,ASC - Nursing Care Permanent,Not Yet Classified
Solihull MBC,Resources,Central Services to the Public,Annodata Business Communications,21/03/2017,DIR103,1257.56,General Office Expenses,Not Yet Classified
Solihull MBC,Adult Social Care,Adult Social Care,Apna Ghar(1995) Ltd,23/03/2017,DIR004,280.00,ASC - Day Care,321000 - Social Community Care Supplies & Services - Adult
Solihull MBC,Resources,Children & Education Services,Apple Store,21/03/2017,DIR103,8859.50,IT Equipment & Software,270000 - Information Communication Technology
Solihull MBC,Children's Services - DSG Central.,Children & Education Services,Appleford School,06/03/2017,DIR008,9142.00,Other Contracted Services,Not Yet Classified
Solihull MBC,Managed Growth and Communities,Cultural & Related Services,Apse,03/03/2017,DIR005,259.00,Other Contracted Services,261510 - Human Resources - Training & Conferences - Conferences
Solihull MBC,Public Health & Commissioning,Adult Social Care,Aquarius,29/03/2017,DIR006,19000.00,Other Contracted Services,321000 - Social Community Care Supplies & Services - Adult
Solihull MBC,Public Health & Commissioning,Adult Social Care,Aquarius Action Projects,30/03/2017,DIR006,580.00,Other Contracted Services,321100 - Social Community Care Supplies & Services - Children
Solihull MBC,Public Health & Commissioning,Adult Social Care,Aquarius Action Projects,30/03/2017,DIR006,435.00,Other Contracted Services,321100 - Social Community Care Supplies & Services - Children
Solihull MBC,Public Health & Commissioning,Adult Social Care,Aquarius Action Projects,30/03/2017,DIR006,10000.00,Other Contracted Services,321100 - Social Community Care Supplies & Services - Children
Solihull MBC,Managed Growth and Communities,Cultural & Related Services,Architectural Street Furnishings,27/03/2017,DIR005,580.00,Other Contracted Services,Not Yet Classified
Solihull MBC,Children's Services - DSG Central.,Children & Education Services,Archway Community College,06/03/2017,DIR008,1800.00,Other Contracted Services,Not Yet Classified
Solihull MBC,Children's Services - DSG Central.,Children & Education Services,Archway Community College,06/03/2017,DIR008,1800.00,Other Contracted Services,Not Yet Classified
Solihull MBC,Children's Services - DSG Central.,Children & Education Services,Archway Community College,06/03/2017,DIR008,1800.00,Other Contracted Services,Not Yet Classified
Solihull MBC,Children's Services - DSG Central.,Children & Education Services,Archway Community College,16/03/2017,DIR008,9000.00,Other Contracted Services,Not Yet Classified
Solihull MBC,Children's Services - DSG Central.,Children & Education Services,Archway Community College,14/03/2017,DIR008,3000.00,Other Contracted Services,Not Yet Classified
Solihull MBC,Children's Services - DSG Central.,Children & Education Services,Arden Academy Trust,30/03/2017,DIR008,79767.00,Other Contracted Services,Not Yet Classified
Solihull MBC,Public Health & Commissioning,Adult Social Care,Arden Medical Centre,03/03/2017,DIR006,1417.05,Other Contracted Services,Not Yet Classified
Solihull MBC,Public Health & Commissioning,Adult Social Care,Arden Medical Centre,03/03/2017,DIR006,1325.00,Other Contracted Services,Not Yet Classified
Solihull MBC,Adult Social Care,Adult Social Care,Arden Tree Surgery,06/03/2017,DIR004,350.00,Repair & Maintn Of Buildings,171011 - Education - School Services
Solihull MBC,Adult Social Care,Adult Social Care,Ardenlea Court,13/03/2017,DIR004,4000.00,ASC - Nursing Care Permanent,321000 - Social Community Care Supplies & Services - Adult
Solihull MBC,Adult Social Care,Adult Social Care,Ardenlea Court,13/03/2017,DIR004,3529.04,ASC - Nursing Care Permanent,321000 - Social Community Care Supplies & Services - Adult
Solihull MBC,Adult Social Care,Adult Social Care,Ardenlea Grove Nursing Home,20/03/2017,DIR004,2158.16,ASC - Nursing Care Permanent,321000 - Social Community Care Supplies & Services - Adult
Solihull MBC,Adult Social Care,Adult Social Care,Ardenlea Grove Nursing Home,20/03/2017,DIR004,3652.00,ASC - Nursing Care Permanent,321000 - Social Community Care Supplies & Services - Adult
Solihull MBC,Adult Social Care,Adult Social Care,Ardenlea Grove Nursing Home,20/03/2017,DIR004,1279.29,ASC - Nursing Care Permanent,321000 - Social Community Care Supplies & Services - Adult
Solihull MBC,Managed Growth and Communities,Highways & Transport Services,Argos Retail Group,13/02/2017,Card Transaction,274.99,Materials,169999 - Domestic Goods - Not Elsewhere Classified
Solihull MBC,Children's Services & Skills,Children & Education Services,Argos Retail Group ,24/03/2017,Card Transaction,238.78,Purchase Card Statement Summary,169999 - Domestic Goods - Not Elsewhere Classified
Solihull MBC,Adult Social Care,Adult Social Care,Argos Retail Group ,24/03/2017,Card Transaction,243.42,Purchase Card Statement Summary,169999 - Domestic Goods - Not Elsewhere Classified
Solihull MBC,Children's Services & Skills,Children & Education Services,Argos Retail Group ,24/03/2017,Card Transaction,324.61,Purchase Card Statement Summary,169999 - Domestic Goods - Not Elsewhere Classified
Solihull MBC,Children's Services & Skills,Children & Education Services,Argos Retail Group ,24/03/2017,Card Transaction,344.26,Purchase Card Statement Summary,169999 - Domestic Goods - Not Elsewhere Classified
Solihull MBC,Public Health & Commissioning,Adult Social Care,Arran Medical Centre,07/03/2017,DIR006,900.00,Other Contracted Services,Not Yet Classified
Solihull MBC,Public Health & Commissioning,Adult Social Care,Arran Medical Centre,07/03/2017,DIR006,1073.43,Other Contracted Services,Not Yet Classified
Solihull MBC,Children's Services - DSG Central.,Children & Education Services,Arrow County Supplies,08/03/2017,DIR008,16.80,Cleaning,130000 - Cleaning & Janitorial
Solihull MBC,Children's Services - DSG Central.,Children & Education Services,Arrow County Supplies,08/03/2017,DIR008,17.58,Cleaning,130000 - Cleaning & Janitorial
Solihull MBC,Children's Services - DSG Central.,Children & Education Services,Arrow County Supplies,08/03/2017,DIR008,230.40,Cleaning,130000 - Cleaning & Janitorial
Solihull MBC,Children's Services - DSG Central.,Children & Education Services,Arrow County Supplies,08/03/2017,DIR008,26.20,Cleaning,130000 - Cleaning & Janitorial
Solihull MBC,Children's Services - DSG Central.,Children & Education Services,Arrow County Supplies,08/03/2017,DIR008,66.81,Cleaning,130000 - Cleaning & Janitorial
Solihull MBC,Children's Services - DSG Central.,Children & Education Services,Arrow County Supplies,08/03/2017,DIR008,42.80,Cleaning,130000 - Cleaning & Janitorial
Solihull MBC,Children's Services - DSG Central.,Children & Education Services,Arrow County Supplies,08/03/2017,DIR008,139.90,Cleaning,130000 - Cleaning & Janitorial
Solihull MBC,Children's Services - DSG Central.,Children & Education Services,Arrow County Supplies,08/03/2017,DIR008,115.20,Cleaning,130000 - Cleaning & Janitorial
Solihull MBC,Children's Services - DSG Central.,Children & Education Services,Arrow County Supplies,08/03/2017,DIR008,21.00,Cleaning,130000 - Cleaning & Janitorial
Solihull MBC,Children's Services - DSG Central.,Children & Education Services,Arrow County Supplies,08/03/2017,DIR008,81.24,Cleaning,130000 - Cleaning & Janitorial
Solihull MBC,Children's Services - DSG Central.,Children & Education Services,Arrow County Supplies,08/03/2017,DIR008,270.90,Cleaning,130000 - Cleaning & Janitorial
Solihull MBC,Children's Services - DSG Central.,Children & Education Services,Arrow County Supplies,08/03/2017,DIR008,79.40,Cleaning,130000 - Cleaning & Janitorial
Solihull MBC,Children's Services - DSG Central.,Children & Education Services,Arrow County Supplies,08/03/2017,DIR008,81.75,Cleaning,130000 - Cleaning & Janitorial
Solihull MBC,Children's Services - DSG Central.,Children & Education Services,Arrow County Supplies,08/03/2017,DIR008,34.80,Cleaning,130000 - Cleaning & Janitorial
Solihull MBC,Children's Services - DSG Central.,Children & Education Services,Arrow County Supplies,08/03/2017,DIR008,259.20,Cleaning,130000 - Cleaning & Janitorial
Solihull MBC,Children's Services - DSG Central.,Children & Education Services,Arrow County Supplies,08/03/2017,DIR008,312.50,Cleaning,130000 - Cleaning & Janitorial
Solihull MBC,Children's Services - DSG Central.,Children & Education Services,Arrow County Supplies,08/03/2017,DIR008,138.60,Cleaning,130000 - Cleaning & Janitorial
Solihull MBC,Children's Services - DSG Central.,Children & Education Services,Arrow County Supplies,08/03/2017,DIR008,7.08,Cleaning,130000 - Cleaning & Janitorial
Solihull MBC,Children's Services - DSG Central.,Children & Education Services,Arrow County Supplies,08/03/2017,DIR008,10.80,Cleaning,130000 - Cleaning & Janitorial
Solihull MBC,Children's Services - DSG Central.,Children & Education Services,Arrow County Supplies,08/03/2017,DIR008,47.70,Cleaning,130000 - Cleaning & Janitorial
Solihull MBC,Children's Services - DSG Central.,Children & Education Services,Arrow County Supplies,08/03/2017,DIR008,151.25,Cleaning,130000 - Cleaning & Janitorial
Solihull MBC,Children's Services - DSG Central.,Children & Education Services,Arrow County Supplies,08/03/2017,DIR008,93.48,Cleaning,130000 - Cleaning & Janitorial
Solihull MBC,Children's Services - DSG Central.,Children & Education Services,Arrow County Supplies,08/03/2017,DIR008,30.20,Cleaning,130000 - Cleaning & Janitorial
Solihull MBC,Children's Services - DSG Central.,Children & Education Services,Arrow County Supplies,08/03/2017,DIR008,15.00,Cleaning,130000 - Cleaning & Janitorial
Solihull MBC,Children's Services - DSG Central.,Children & Education Services,Arrow County Supplies,08/03/2017,DIR008,821.40,Cleaning,130000 - Cleaning & Janitorial
Solihull MBC,Children's Services - DSG Central.,Children & Education Services,Arrow County Supplies,08/03/2017,DIR008,11.00,Cleaning,130000 - Cleaning & Janitorial
Solihull MBC,Children's Services - DSG Central.,Children & Education Services,Arrow County Supplies,08/03/2017,DIR008,22.32,Cleaning,130000 - Cleaning & Janitorial
Solihull MBC,Children's Services - DSG Central.,Children & Education Services,Arrow County Supplies,08/03/2017,DIR008,187.50,Cleaning,130000 - Cleaning & Janitorial
Solihull MBC,Children's Services - DSG Central.,Children & Education Services,Arrow County Supplies,08/03/2017,DIR008,273.80,Cleaning,130000 - Cleaning & Janitorial
Solihull MBC,Children's Services - DSG Central.,Children & Education Services,Arrow County Supplies,08/03/2017,DIR008,6.60,Cleaning,130000 - Cleaning & Janitorial
Solihull MBC,Children's Services - DSG Central.,Children & Education Services,Arrow County Supplies,21/03/2017,DIR008,73.92,Cleaning,130000 - Cleaning & Janitorial
Solihull MBC,Children's Services - DSG Central.,Children & Education Services,Arrow County Supplies,21/03/2017,DIR008,83.94,Cleaning,130000 - Cleaning & Janitorial
Solihull MBC,Children's Services - DSG Central.,Children & Education Services,Arrow County Supplies,21/03/2017,DIR008,13.76,Cleaning,130000 - Cleaning & Janitorial
Solihull MBC,Children's Services - DSG Central.,Children & Education Services,Arrow County Supplies,21/03/2017,DIR008,37.30,Cleaning,130000 - Cleaning & Janitorial
Solihull MBC,Children's Services - DSG Central.,Children & Education Services,Arrow County Supplies,21/03/2017,DIR008,77.52,Cleaning,130000 - Cleaning & Janitorial
Solihull MBC,Children's Services - DSG Central.,Children & Education Services,Arrow County Supplies,21/03/2017,DIR008,19.96,Cleaning,130000 - Cleaning & Janitorial
Solihull MBC,Children's Services - DSG Central.,Children & Education Services,Arrow County Supplies,21/03/2017,DIR008,15.08,Cleaning,130000 - Cleaning & Janitorial
Solihull MBC,Children's Services - DSG Central.,Children & Education Services,Arrow County Supplies,21/03/2017,DIR008,-0.01,Cleaning,130000 - Cleaning & Janitorial
Solihull MBC,Children's Services - DSG Central.,Children & Education Services,Arrow County Supplies,21/03/2017,DIR008,-3.74,Cleaning,130000 - Cleaning & Janitorial
Solihull MBC,Children's Services - DSG Central.,Children & Education Services,Arrow County Supplies,21/03/2017,DIR008,-1.33,Cleaning,130000 - Cleaning & Janitorial
Solihull MBC,Children's Services - DSG Central.,Children & Education Services,Arrow County Supplies,21/03/2017,DIR008,98.10,Cleaning,130000 - Cleaning & Janitorial
Solihull MBC,Children's Services - DSG Central.,Children & Education Services,Arrow County Supplies,21/03/2017,DIR008,410.70,Cleaning,130000 - Cleaning & Janitorial
Solihull MBC,Children's Services - DSG Central.,Children & Education Services,Arrow County Supplies,21/03/2017,DIR008,116.00,Cleaning,130000 - Cleaning & Janitorial
Solihull MBC,Resources,Children & Education Services,Arthur Brett Catering Ltd,09/03/2017,DIR103,325.81,Catering Provisions,110000 - Catering
Solihull MBC,Resources,Children & Education Services,Arthur Brett Catering Ltd,16/03/2017,DIR103,320.31,Catering Provisions,110000 - Catering
Solihull MBC,Resources,Children & Education Services,Arthur Brett Catering Ltd,28/03/2017,DIR103,290.72,Catering Provisions,110000 - Catering
Solihull MBC,Public Health & Commissioning,Adult Social Care,Asda Pharmacy,09/03/2017,DIR006,157.99,Other Contracted Services,Not Yet Classified
Solihull MBC,Public Health & Commissioning,Adult Social Care,Asda Pharmacy,09/03/2017,DIR006,186.16,Other Contracted Services,Not Yet Classified
Solihull MBC,Public Health & Commissioning,Adult Social Care,Asda Pharmacy,09/03/2017,DIR006,220.86,Other Contracted Services,Not Yet Classified
Solihull MBC,Children's Services & Skills,Children & Education Services,Asda Stores 5881,28/02/2017,Card Transaction,300.00,Clients Expenses,111200 - Catering - Food & Beverages
Solihull MBC,Children's Services & Skills,Children & Education Services,Asda Stores 5881,17/02/2017,Card Transaction,300.00,Clients Expenses,111200 - Catering - Food & Beverages
Solihull MBC,Adult Social Care,Adult Social Care,Ashley Lodge,22/03/2017,,575.00,ASC - Residential Care Respite,Not Yet Classified
Solihull MBC,Adult Social Care,Adult Social Care,Ashley Lodge,22/03/2017,,575.00,ASC - Residential Care Respite,Not Yet Classified
Solihull MBC,Adult Social Care,Cultural & Related Services,Askews Library Services Ltd,01/03/2017,,556.09,Materials,170000 - Education
Solihull MBC,Adult Social Care,Cultural & Related Services,Askews Library Services Ltd,01/03/2017,,2113.22,Materials,170000 - Education
Solihull MBC,Adult Social Care,Cultural & Related Services,Askews Library Services Ltd,09/03/2017,,475.51,Materials,170000 - Education
Solihull MBC,Adult Social Care,Cultural & Related Services,Askews Library Services Ltd,09/03/2017,,962.63,Materials,170000 - Education
Solihull MBC,Adult Social Care,Cultural & Related Services,Askews Library Services Ltd,20/03/2017,,1896.53,Materials,170000 - Education
Solihull MBC,Adult Social Care,Cultural & Related Services,Askews Library Services Ltd,22/03/2017,,1331.95,Materials,170000 - Education
Solihull MBC,Adult Social Care,Cultural & Related Services,Askews Library Services Ltd,29/03/2017,,396.05,Materials,170000 - Education
Solihull MBC,Adult Social Care,Adult Social Care,Aspects Care Ltd,01/03/2017,,2422.00,ASC - Direct Payments,Not Yet Classified
Solihull MBC,Adult Social Care,Adult Social Care,Aspects Care Ltd,08/03/2017,,4127.60,ASC - Supported Living Care Costs,Not Yet Classified
Solihull MBC,Adult Social Care,Adult Social Care,Aspects Care Ltd,01/03/2017,,2240.24,ASC - Direct Payments,Not Yet Classified
Solihull MBC,Adult Social Care,Adult Social Care,Aspects Care Ltd,01/03/2017,,1562.16,ASC - Direct Payments,Not Yet Classified
Solihull MBC,Adult Social Care,Adult Social Care,Aspects Care Ltd,29/03/2017,,1562.16,ASC - Direct Payments,Not Yet Classified
Solihull MBC,Adult Social Care,Adult Social Care,Aspects Care Ltd,30/03/2017,,696.78,ASC - Domiciliary Care,Not Yet Classified
Solihull MBC,Adult Social Care,Adult Social Care,Aspects Care Ltd,01/03/2017,,4433.56,ASC - Direct Payments,Not Yet Classified
Solihull MBC,Adult Social Care,Adult Social Care,Aspects Care Ltd,29/03/2017,,4433.56,ASC - Direct Payments,Not Yet Classified
Solihull MBC,Adult Social Care,Adult Social Care,Aspects Care Ltd,01/03/2017,,2634.60,ASC - Direct Payments,Not Yet Classified
Solihull MBC,Adult Social Care,Adult Social Care,Aspects Care Ltd,29/03/2017,,2634.60,ASC - Direct Payments,Not Yet Classified
Solihull MBC,Adult Social Care,Adult Social Care,Aspects Care Ltd,08/03/2017,,3478.80,ASC - Supported Living Care Costs,Not Yet Classified
Solihull MBC,Adult Social Care,Adult Social Care,Aspects Care Ltd,08/03/2017,,6581.64,ASC - Supported Living Care Costs,Not Yet Classified
Solihull MBC,Adult Social Care,Adult Social Care,Aspects Care Ltd,08/03/2017,,4268.72,ASC - Supported Living Care Costs,Not Yet Classified
Solihull MBC,Children's Services - DSG Central.,Children & Education Services,Asquith Court Nursery,20/03/2017,,675.00,Grant & Subscription (SCITT),321100 - Social Community Care Supplies & Services - Children
Solihull MBC,Children's Services - DSG Central.,Children & Education Services,Asquith Court Nursery,20/03/2017,,2257.20,Grant & Subscription (SCITT),321100 - Social Community Care Supplies & Services - Children
Solihull MBC,Children's Services - DSG Central.,Children & Education Services,Asquith Court Nursery,27/03/2017,,648.00,Grant & Subscription (SCITT),321100 - Social Community Care Supplies & Services - Children
Solihull MBC,Children's Services & Skills,Children & Education Services,Association Of YOT Managers Ltd,31/03/2017,,250.00,Grant & Subscription (SCITT),Not Yet Classified
Solihull MBC,Children's Services & Skills,Children & Education Services,Aston Childrens Care,22/03/2017,,15199.80,Other Contracted Services,Not Yet Classified
Solihull MBC,Children's Services & Skills,Children & Education Services,Aston Childrens Care,27/03/2017,,16828.35,Other Contracted Services,Not Yet Classified
Solihull MBC,Managed Growth and Communities,Highways & Transport Services,Atkins,03/03/2017,,5974.02,Agency Staff,150000 - Consultancy
Solihull MBC,Managed Growth and Communities,Highways & Transport Services,Atkins,28/03/2017,,3908.32,Agency Staff,150000 - Consultancy
Solihull MBC,Managed Growth and Communities,Highways & Transport Services,Atkins,28/03/2017,,1120.00,Agency Staff,150000 - Consultancy
Solihull MBC,Managed Growth and Communities,Highways & Transport Services,Atkins,21/03/2017,,14607.20,Agency Staff,150000 - Consultancy
Solihull MBC,Managed Growth and Communities,Highways & Transport Services,Atkins,28/03/2017,,7516.00,Agency Staff,150000 - Consultancy
Solihull MBC,Managed Growth and Communities,Highways & Transport Services,Atkins,28/03/2017,,336.00,Agency Staff,150000 - Consultancy
Solihull MBC,Managed Growth and Communities,Highways & Transport Services,Atkins,28/03/2017,,6343.25,Contractors,150000 - Consultancy
Solihull MBC,Resources,Central Services to the Public,Atkins,23/03/2017,,5851.36,Contractors,150000 - Consultancy
Solihull MBC,Managed Growth and Communities,Highways & Transport Services,Atkins,30/03/2017,,8552.55,Agency Staff,150000 - Consultancy
Solihull MBC,Managed Growth and Communities,Highways & Transport Services,Atkins,30/03/2017,,6012.80,Agency Staff,150000 - Consultancy
Solihull MBC,Managed Growth and Communities,Highways & Transport Services,Atkins,31/03/2017,,896.00,Agency Staff,150000 - Consultancy
Solihull MBC,Managed Growth and Communities,Highways & Transport Services,Atkins,30/03/2017,,6012.80,Contractors,150000 - Consultancy
Solihull MBC,Managed Growth and Communities,Highways & Transport Services,Atkins,31/03/2017,,7048.37,Agency Staff,150000 - Consultancy
Solihull MBC,Managed Growth and Communities,Highways & Transport Services,Atkins Ltd,16/03/2017,,7330.00,Consultants,150000 - Consultancy
Solihull MBC,Adult Social Care,Central Services to the Public,Atkins Ltd,14/03/2017,,2800.00,Contractors,150000 - Consultancy
Solihull MBC,Managed Growth and Communities,Environmental and Regulatory Services,Atkins Ltd,20/03/2017,,4165.00,Other Contracted Services,150000 - Consultancy
Solihull MBC,Resources,Central Services to the Public,ATOS,20/03/2017,,336.00,IT Equipment & Software,Not Yet Classified
Solihull MBC,Adult Social Care,Cultural & Related Services,Audio Emporium,09/03/2017,,260.00,Furniture & Equipment,290000 - Arts & Leisure Services
Solihull MBC,Adult Social Care,Cultural & Related Services,Audio Emporium,09/03/2017,,10.00,Furniture & Equipment,290000 - Arts & Leisure Services
Solihull MBC,Resources,Other Housing Services,Auriga Services Ltd,14/03/2017,,1083.50,Clients Expenses,Not Yet Classified
Solihull MBC,Resources,Other Housing Services,Auriga Services Ltd,14/03/2017,,-541.75,Clients Expenses,Not Yet Classified
Solihull MBC,Adult Social Care,Adult Social Care,Autism West Midlands,08/03/2017,,5874.24,ASC - Residential Care Permanent,321000 - Social Community Care Supplies & Services - Adult
Solihull MBC,Adult Social Care,Adult Social Care,Autism West Midlands,28/03/2017,,6266.04,ASC - Residential Care Permanent,321000 - Social Community Care Supplies & Services - Adult
Solihull MBC,Adult Social Care,Adult Social Care,Autism West Midlands,08/03/2017,,6266.04,ASC - Residential Care Permanent,321000 - Social Community Care Supplies & Services - Adult
Solihull MBC,Adult Social Care,Adult Social Care,Autism West Midlands,28/03/2017,,9816.80,ASC - Residential Care Permanent,321000 - Social Community Care Supplies & Services - Adult
Solihull MBC,Adult Social Care,Adult Social Care,Autism West Midlands,08/03/2017,,9816.80,ASC - Residential Care Permanent,321000 - Social Community Care Supplies & Services - Adult
Solihull MBC,Adult Social Care,Adult Social Care,Autism West Midlands,28/03/2017,,6337.36,ASC - Residential Care Permanent,321000 - Social Community Care Supplies & Services - Adult
Solihull MBC,Adult Social Care,Adult Social Care,Autism West Midlands,08/03/2017,,6337.36,ASC - Residential Care Permanent,321000 - Social Community Care Supplies & Services - Adult
Solihull MBC,Adult Social Care,Adult Social Care,Autism West Midlands,08/03/2017,,2875.32,ASC - Domiciliary Care,321000 - Social Community Care Supplies & Services - Adult
Solihull MBC,Adult Social Care,Adult Social Care,Autism West Midlands,08/03/2017,,2875.32,ASC - Domiciliary Care,321000 - Social Community Care Supplies & Services - Adult
Solihull MBC,Adult Social Care,Adult Social Care,Autism West Midlands,08/03/2017,,2875.32,ASC - Domiciliary Care,321000 - Social Community Care Supplies & Services - Adult
Solihull MBC,Adult Social Care,Adult Social Care,Autism West Midlands,08/03/2017,,4409.04,ASC - Residential Care Permanent,321000 - Social Community Care Supplies & Services - Adult
Solihull MBC,Managed Growth and Communities,Environmental and Regulatory Services,Automatic Flare Systems Ltd,23/03/2017,,9180.00,Other Contracted Services,150000 - Consultancy
Solihull MBC,Adult Social Care,Adult Social Care,Automotive Leasing (Orders),01/03/2017,,648.52,Transport-Contract Hire,360000 - Public Transport
Solihull MBC,Adult Social Care,Adult Social Care,Automotive Leasing (Orders),01/03/2017,,-648.52,Transport-Contract Hire,360000 - Public Transport
Solihull MBC,Adult Social Care,Adult Social Care,Automotive Leasing (Orders),01/03/2017,,421.60,Transport-Contract Hire,360000 - Public Transport
Solihull MBC,Adult Social Care,Adult Social Care,Automotive Leasing (Orders),01/03/2017,,-421.60,Transport-Contract Hire,360000 - Public Transport
Solihull MBC,Adult Social Care,Cultural & Related Services,Automotive Leasing (Orders),27/03/2017,,210.70,Transport-Contract Hire,360000 - Public Transport
Solihull MBC,Adult Social Care,Cultural & Related Services,Automotive Leasing (Orders),27/03/2017,,318.57,Transport-Contract Hire,360000 - Public Transport
Solihull MBC,Adult Social Care,Adult Social Care,Automotive Leasing (Orders),01/03/2017,,682.56,Transport-Contract Hire,360000 - Public Transport
Solihull MBC,Adult Social Care,Adult Social Care,Automotive Leasing (Orders),01/03/2017,,-682.56,Transport-Contract Hire,360000 - Public Transport
Solihull MBC,Adult Social Care,Adult Social Care,Automotive Leasing (Orders),01/03/2017,,682.56,Transport-Contract Hire,360000 - Public Transport
Solihull MBC,Adult Social Care,Adult Social Care,Automotive Leasing (Orders),01/03/2017,,-682.56,Transport-Contract Hire,360000 - Public Transport
Solihull MBC,Adult Social Care,Adult Social Care,Automotive Leasing (Orders),01/03/2017,,890.48,Transport-Contract Hire,360000 - Public Transport
Solihull MBC,Adult Social Care,Adult Social Care,Automotive Leasing (Orders),01/03/2017,,-890.48,Transport-Contract Hire,360000 - Public Transport
Solihull MBC,Managed Growth and Communities,Cultural & Related Services,Automotive Leasing (Orders),06/03/2017,,297.37,Transport-Contract Hire,360000 - Public Transport
Solihull MBC,Managed Growth and Communities,Cultural & Related Services,Automotive Leasing (Orders),06/03/2017,,297.37,Transport-Contract Hire,360000 - Public Transport
Solihull MBC,Managed Growth and Communities,Cultural & Related Services,Automotive Leasing (Orders),06/03/2017,,281.81,Transport-Contract Hire,360000 - Public Transport
Solihull MBC,Adult Social Care,Adult Social Care,Automotive Leasing (Orders),23/03/2017,,341.28,Transport-Contract Hire,360000 - Public Transport
Solihull MBC,Adult Social Care,Adult Social Care,Automotive Leasing (Orders),23/03/2017,,341.28,Transport-Contract Hire,360000 - Public Transport
Solihull MBC,Adult Social Care,Adult Social Care,Automotive Leasing (Orders),23/03/2017,,324.26,Transport-Contract Hire,360000 - Public Transport
Solihull MBC,Adult Social Care,Adult Social Care,Automotive Leasing (Orders),23/03/2017,,445.24,Transport-Contract Hire,360000 - Public Transport
Solihull MBC,Managed Growth and Communities,Highways & Transport Services,Automotive Leasing (Orders),08/03/2017,,236.78,Transport-Contract Hire,360000 - Public Transport
Solihull MBC,Managed Growth and Communities,Highways & Transport Services,Automotive Leasing (Orders),08/03/2017,,236.78,Transport-Contract Hire,360000 - Public Transport
Solihull MBC,Adult Social Care,Adult Social Care,Automotive Leasing (Orders),29/03/2017,,324.26,Transport-Contract Hire,360000 - Public Transport
Solihull MBC,Adult Social Care,Cultural & Related Services,Automotive Leasing (Orders),27/03/2017,,210.70,Transport-Contract Hire,360000 - Public Transport
Solihull MBC,Resources,Central Services to the Public,Automotive Leasing (Orders),29/03/2017,,457.74,Transport-Contract Hire,360000 - Public Transport
Solihull MBC,Adult Social Care,Adult Social Care,Auxilio Care Ltd,08/03/2017,,6856.00,ASC - Supported Living Care Costs,Not Yet Classified
Solihull MBC,Adult Social Care,Adult Social Care,Auxilio Care Ltd,08/03/2017,,2550.86,ASC - Supported Living Care Costs,Not Yet Classified
Solihull MBC,Adult Social Care,Adult Social Care,Auxilio Care Ltd,08/03/2017,,5947.60,ASC - Supported Living Care Costs,Not Yet Classified
Solihull MBC,Adult Social Care,Adult Social Care,Auxilio Care Ltd,08/03/2017,,4764.48,ASC - Supported Living Care Costs,Not Yet Classified
Solihull MBC,Adult Social Care,Adult Social Care,Auxilio Care Ltd,08/03/2017,,3738.00,ASC - Supported Living Care Costs,Not Yet Classified
Solihull MBC,Adult Social Care,Adult Social Care,Auxilio Care Ltd,08/03/2017,,9506.00,ASC - Supported Living Care Costs,Not Yet Classified
Solihull MBC,Adult Social Care,Adult Social Care,Auxilio Care Ltd,08/03/2017,,7154.00,ASC - Supported Living Care Costs,Not Yet Classified
Solihull MBC,Adult Social Care,Adult Social Care,Avalon Court Care Centre,16/03/2017,,2052.32,ASC - Residential Care Permanent,Not Yet Classified
Solihull MBC,Managed Growth and Communities,Planning & Development Services,Avignon Management Ltd,07/03/2017,,11666.67,Professional Fees,Not Yet Classified
Solihull MBC,Managed Growth and Communities,Planning & Development Services,Avignon Management Ltd,24/03/2017,,11666.67,Professional Fees,Not Yet Classified
Solihull MBC,Managed Growth and Communities,Highways & Transport Services,B3 Creative Ltd,22/03/2017,,270.00,Materials,Not Yet Classified
Solihull MBC,Managed Growth and Communities,Highways & Transport Services,B3 Creative Ltd,28/03/2017,,250.00,Materials,Not Yet Classified
Solihull MBC,Adult Social Care,Adult Social Care,Badenoch & Clark,01/03/2017,,2940.00,Interim Management,171011 - Education - School Services
Solihull MBC,Adult Social Care,Adult Social Care,Badenoch & Clark,20/03/2017,,3675.00,Interim Management,171011 - Education - School Services
Solihull MBC,Adult Social Care,Adult Social Care,Badenoch & Clark,20/03/2017,,3675.00,Interim Management,171011 - Education - School Services
Solihull MBC,Adult Social Care,Adult Social Care,Badenoch & Clark,21/03/2017,,3675.00,Interim Management,171011 - Education - School Services
Solihull MBC,Managed Growth and Communities,Highways & Transport Services,Balfour Beatty Living Places Ltd,27/03/2017,,3150.00,Other Contracted Services,"391400 - Works - Construction, Repair & Maintenance"
Solihull MBC,Managed Growth and Communities,Highways & Transport Services,Balfour Beatty Living Places Ltd,27/03/2017,,-3150.00,Other Contracted Services,"391400 - Works - Construction, Repair & Maintenance"
Solihull MBC,Managed Growth and Communities,Highways & Transport Services,Balfour Beatty Living Places Ltd,16/03/2017,,4.27,Other Contracted Services,"391400 - Works - Construction, Repair & Maintenance"
Solihull MBC,Managed Growth and Communities,Highways & Transport Services,Balfour Beatty Living Places Ltd,16/03/2017,,7.32,Other Contracted Services,"391400 - Works - Construction, Repair & Maintenance"
Solihull MBC,Managed Growth and Communities,Highways & Transport Services,Balfour Beatty Living Places Ltd,16/03/2017,,4.27,Other Contracted Services,"391400 - Works - Construction, Repair & Maintenance"
Solihull MBC,Managed Growth and Communities,Highways & Transport Services,Balfour Beatty Living Places Ltd,16/03/2017,,21.01,Other Contracted Services,"391400 - Works - Construction, Repair & Maintenance"
Solihull MBC,Managed Growth and Communities,Highways & Transport Services,Balfour Beatty Living Places Ltd,16/03/2017,,466.68,Other Contracted Services,"391400 - Works - Construction, Repair & Maintenance"
Solihull MBC,Managed Growth and Communities,Highways & Transport Services,Balfour Beatty Living Places Ltd,16/03/2017,,268.20,Other Contracted Services,"391400 - Works - Construction, Repair & Maintenance"
Solihull MBC,Managed Growth and Communities,Highways & Transport Services,Balfour Beatty Living Places Ltd,16/03/2017,,141.90,Other Contracted Services,"391400 - Works - Construction, Repair & Maintenance"
Solihull MBC,Managed Growth and Communities,Highways & Transport Services,Balfour Beatty Living Places Ltd,16/03/2017,,283.35,Other Contracted Services,"391400 - Works - Construction, Repair & Maintenance"
Solihull MBC,Managed Growth and Communities,Highways & Transport Services,Balfour Beatty Living Places Ltd,16/03/2017,,35.38,Other Contracted Services,"391400 - Works - Construction, Repair & Maintenance"
Solihull MBC,Managed Growth and Communities,Highways & Transport Services,Balfour Beatty Living Places Ltd,16/03/2017,,14807.82,Other Contracted Services,"391400 - Works - Construction, Repair & Maintenance"
Solihull MBC,Managed Growth and Communities,Highways & Transport Services,Balfour Beatty Living Places Ltd,16/03/2017,,9140.02,Other Contracted Services,"391400 - Works - Construction, Repair & Maintenance"
Solihull MBC,Managed Growth and Communities,Highways & Transport Services,Balfour Beatty Living Places Ltd,16/03/2017,,1635.60,Other Contracted Services,"391400 - Works - Construction, Repair & Maintenance"
Solihull MBC,Managed Growth and Communities,Highways & Transport Services,Balfour Beatty Living Places Ltd,16/03/2017,,36370.60,Other Contracted Services,"391400 - Works - Construction, Repair & Maintenance"
Solihull MBC,Managed Growth and Communities,Highways & Transport Services,Balfour Beatty Living Places Ltd,16/03/2017,,212.28,Other Contracted Services,"391400 - Works - Construction, Repair & Maintenance"
Solihull MBC,Managed Growth and Communities,Highways & Transport Services,Balfour Beatty Living Places Ltd,16/03/2017,,231.80,Other Contracted Services,"391400 - Works - Construction, Repair & Maintenance"
Solihull MBC,Managed Growth and Communities,Highways & Transport Services,Balfour Beatty Living Places Ltd,16/03/2017,,354.16,Other Contracted Services,"391400 - Works - Construction, Repair & Maintenance"
Solihull MBC,Managed Growth and Communities,Highways & Transport Services,Balfour Beatty Living Places Ltd,16/03/2017,,139.65,Other Contracted Services,"391400 - Works - Construction, Repair & Maintenance"
Solihull MBC,Managed Growth and Communities,Highways & Transport Services,Balfour Beatty Living Places Ltd,16/03/2017,,207.15,Other Contracted Services,"391400 - Works - Construction, Repair & Maintenance"
Solihull MBC,Managed Growth and Communities,Highways & Transport Services,Balfour Beatty Living Places Ltd,16/03/2017,,8745.82,Other Contracted Services,"391400 - Works - Construction, Repair & Maintenance"
Solihull MBC,Managed Growth and Communities,Highways & Transport Services,Balfour Beatty Living Places Ltd,16/03/2017,,2997.86,Other Contracted Services,"391400 - Works - Construction, Repair & Maintenance"
Solihull MBC,Managed Growth and Communities,Highways & Transport Services,Balfour Beatty Living Places Ltd,16/03/2017,,3604.97,Other Contracted Services,"391400 - Works - Construction, Repair & Maintenance"
Solihull MBC,Managed Growth and Communities,Highways & Transport Services,Balfour Beatty Living Places Ltd,16/03/2017,,19.24,Other Contracted Services,"391400 - Works - Construction, Repair & Maintenance"
Solihull MBC,Managed Growth and Communities,Highways & Transport Services,Balfour Beatty Living Places Ltd,16/03/2017,,774.34,Other Contracted Services,"391400 - Works - Construction, Repair & Maintenance"
Solihull MBC,Managed Growth and Communities,Highways & Transport Services,Balfour Beatty Living Places Ltd,16/03/2017,,190.72,Other Contracted Services,"391400 - Works - Construction, Repair & Maintenance"
Solihull MBC,Managed Growth and Communities,Highways & Transport Services,Balfour Beatty Living Places Ltd,16/03/2017,,114.63,Other Contracted Services,"391400 - Works - Construction, Repair & Maintenance"
Solihull MBC,Managed Growth and Communities,Highways & Transport Services,Balfour Beatty Living Places Ltd,16/03/2017,,54.02,Other Contracted Services,"391400 - Works - Construction, Repair & Maintenance"
Solihull MBC,Managed Growth and Communities,Highways & Transport Services,Balfour Beatty Living Places Ltd,16/03/2017,,244.90,Other Contracted Services,"391400 - Works - Construction, Repair & Maintenance"
Solihull MBC,Managed Growth and Communities,Highways & Transport Services,Balfour Beatty Living Places Ltd,16/03/2017,,439.14,Other Contracted Services,"391400 - Works - Construction, Repair & Maintenance"
Solihull MBC,Managed Growth and Communities,Highways & Transport Services,Balfour Beatty Living Places Ltd,16/03/2017,,139.65,Other Contracted Services,"391400 - Works - Construction, Repair & Maintenance"
Solihull MBC,Managed Growth and Communities,Highways & Transport Services,Balfour Beatty Living Places Ltd,16/03/2017,,196.40,Other Contracted Services,"391400 - Works - Construction, Repair & Maintenance"
Solihull MBC,Managed Growth and Communities,Highways & Transport Services,Balfour Beatty Living Places Ltd,16/03/2017,,332.60,Other Contracted Services,"391400 - Works - Construction, Repair & Maintenance"
Solihull MBC,Managed Growth and Communities,Highways & Transport Services,Balfour Beatty Living Places Ltd,16/03/2017,,22.39,Other Contracted Services,"391400 - Works - Construction, Repair & Maintenance"
Solihull MBC,Managed Growth and Communities,Highways & Transport Services,Balfour Beatty Living Places Ltd,16/03/2017,,136.22,Other Contracted Services,"391400 - Works - Construction, Repair & Maintenance"
Solihull MBC,Managed Growth and Communities,Highways & Transport Services,Balfour Beatty Living Places Ltd,16/03/2017,,44.78,Other Contracted Services,"391400 - Works - Construction, Repair & Maintenance"
Solihull MBC,Managed Growth and Communities,Highways & Transport Services,Balfour Beatty Living Places Ltd,16/03/2017,,10107.80,Other Contracted Services,"391400 - Works - Construction, Repair & Maintenance"
Solihull MBC,Managed Growth and Communities,Highways & Transport Services,Balfour Beatty Living Places Ltd,16/03/2017,,8891.03,Other Contracted Services,"391400 - Works - Construction, Repair & Maintenance"
Solihull MBC,Managed Growth and Communities,Highways & Transport Services,Balfour Beatty Living Places Ltd,16/03/2017,,11487.28,Other Contracted Services,"391400 - Works - Construction, Repair & Maintenance"
Solihull MBC,Managed Growth and Communities,Highways & Transport Services,Balfour Beatty Living Places Ltd,16/03/2017,,22.39,Other Contracted Services,"391400 - Works - Construction, Repair & Maintenance"
Solihull MBC,Managed Growth and Communities,Highways & Transport Services,Balfour Beatty Living Places Ltd,16/03/2017,,67.17,Other Contracted Services,"391400 - Works - Construction, Repair & Maintenance"
Solihull MBC,Managed Growth and Communities,Highways & Transport Services,Balfour Beatty Living Places Ltd,16/03/2017,,216.37,Other Contracted Services,"391400 - Works - Construction, Repair & Maintenance"
Solihull MBC,Managed Growth and Communities,Highways & Transport Services,Balfour Beatty Living Places Ltd,16/03/2017,,111.60,Other Contracted Services,"391400 - Works - Construction, Repair & Maintenance"
Solihull MBC,Managed Growth and Communities,Highways & Transport Services,Balfour Beatty Living Places Ltd,16/03/2017,,74.07,Other Contracted Services,"391400 - Works - Construction, Repair & Maintenance"
Solihull MBC,Managed Growth and Communities,Highways & Transport Services,Balfour Beatty Living Places Ltd,16/03/2017,,77.25,Other Contracted Services,"391400 - Works - Construction, Repair & Maintenance"
Solihull MBC,Managed Growth and Communities,Highways & Transport Services,Balfour Beatty Living Places Ltd,16/03/2017,,138.10,Other Contracted Services,"391400 - Works - Construction, Repair & Maintenance"
Solihull MBC,Managed Growth and Communities,Highways & Transport Services,Balfour Beatty Living Places Ltd,16/03/2017,,54.12,Other Contracted Services,"391400 - Works - Construction, Repair & Maintenance"
Solihull MBC,Managed Growth and Communities,Highways & Transport Services,Balfour Beatty Living Places Ltd,16/03/2017,,138.10,Other Contracted Services,"391400 - Works - Construction, Repair & Maintenance"
Solihull MBC,Managed Growth and Communities,Highways & Transport Services,Balfour Beatty Living Places Ltd,16/03/2017,,174.22,Other Contracted Services,"391400 - Works - Construction, Repair & Maintenance"
Solihull MBC,Managed Growth and Communities,Highways & Transport Services,Balfour Beatty Living Places Ltd,16/03/2017,,156.01,Other Contracted Services,"391400 - Works - Construction, Repair & Maintenance"
Solihull MBC,Managed Growth and Communities,Highways & Transport Services,Balfour Beatty Living Places Ltd,16/03/2017,,257.09,Other Contracted Services,"391400 - Works - Construction, Repair & Maintenance"
Solihull MBC,Managed Growth and Communities,Highways & Transport Services,Balfour Beatty Living Places Ltd,16/03/2017,,428.63,Other Contracted Services,"391400 - Works - Construction, Repair & Maintenance"
Solihull MBC,Managed Growth and Communities,Highways & Transport Services,Balfour Beatty Living Places Ltd,16/03/2017,,1630.29,Other Contracted Services,"391400 - Works - Construction, Repair & Maintenance"
Solihull MBC,Managed Growth and Communities,Highways & Transport Services,Balfour Beatty Living Places Ltd,16/03/2017,,119.73,Other Contracted Services,"391400 - Works - Construction, Repair & Maintenance"
Solihull MBC,Managed Growth and Communities,Highways & Transport Services,Balfour Beatty Living Places Ltd,16/03/2017,,58.24,Other Contracted Services,"391400 - Works - Construction, Repair & Maintenance"
Solihull MBC,Managed Growth and Communities,Highways & Transport Services,Balfour Beatty Living Places Ltd,16/03/2017,,162.36,Other Contracted Services,"391400 - Works - Construction, Repair & Maintenance"
Solihull MBC,Managed Growth and Communities,Highways & Transport Services,Balfour Beatty Living Places Ltd,16/03/2017,,1903.28,Other Contracted Services,"391400 - Works - Construction, Repair & Maintenance"
Solihull MBC,Managed Growth and Communities,Highways & Transport Services,Balfour Beatty Living Places Ltd,16/03/2017,,74.88,Other Contracted Services,"391400 - Works - Construction, Repair & Maintenance"
Solihull MBC,Managed Growth and Communities,Highways & Transport Services,Balfour Beatty Living Places Ltd,16/03/2017,,448.02,Other Contracted Services,"391400 - Works - Construction, Repair & Maintenance"
Solihull MBC,Managed Growth and Communities,Highways & Transport Services,Balfour Beatty Living Places Ltd,16/03/2017,,64.82,Other Contracted Services,"391400 - Works - Construction, Repair & Maintenance"
Solihull MBC,Managed Growth and Communities,Highways & Transport Services,Balfour Beatty Living Places Ltd,16/03/2017,,136.20,Other Contracted Services,"391400 - Works - Construction, Repair & Maintenance"
Solihull MBC,Managed Growth and Communities,Highways & Transport Services,Balfour Beatty Living Places Ltd,16/03/2017,,1016.04,Other Contracted Services,"391400 - Works - Construction, Repair & Maintenance"
Solihull MBC,Managed Growth and Communities,Highways & Transport Services,Balfour Beatty Living Places Ltd,16/03/2017,,111.60,Other Contracted Services,"391400 - Works - Construction, Repair & Maintenance"
Solihull MBC,Managed Growth and Communities,Highways & Transport Services,Balfour Beatty Living Places Ltd,16/03/2017,,139.65,Other Contracted Services,"391400 - Works - Construction, Repair & Maintenance"
Solihull MBC,Managed Growth and Communities,Highways & Transport Services,Balfour Beatty Living Places Ltd,16/03/2017,,69.05,Other Contracted Services,"391400 - Works - Construction, Repair & Maintenance"
Solihull MBC,Managed Growth and Communities,Highways & Transport Services,Balfour Beatty Living Places Ltd,16/03/2017,,108.24,Other Contracted Services,"391400 - Works - Construction, Repair & Maintenance"
Solihull MBC,Managed Growth and Communities,Highways & Transport Services,Balfour Beatty Living Places Ltd,16/03/2017,,99.70,Other Contracted Services,"391400 - Works - Construction, Repair & Maintenance"
Solihull MBC,Managed Growth and Communities,Highways & Transport Services,Balfour Beatty Living Places Ltd,16/03/2017,,110.29,Other Contracted Services,"391400 - Works - Construction, Repair & Maintenance"
Solihull MBC,Managed Growth and Communities,Highways & Transport Services,Balfour Beatty Living Places Ltd,16/03/2017,,139.65,Other Contracted Services,"391400 - Works - Construction, Repair & Maintenance"
Solihull MBC,Managed Growth and Communities,Highways & Transport Services,Balfour Beatty Living Places Ltd,16/03/2017,,194.29,Other Contracted Services,"391400 - Works - Construction, Repair & Maintenance"
Solihull MBC,Managed Growth and Communities,Highways & Transport Services,Balfour Beatty Living Places Ltd,16/03/2017,,69.05,Other Contracted Services,"391400 - Works - Construction, Repair & Maintenance"
Solihull MBC,Managed Growth and Communities,Highways & Transport Services,Balfour Beatty Living Places Ltd,16/03/2017,,53.73,Other Contracted Services,"391400 - Works - Construction, Repair & Maintenance"
Solihull MBC,Managed Growth and Communities,Highways & Transport Services,Balfour Beatty Living Places Ltd,16/03/2017,,194.29,Other Contracted Services,"391400 - Works - Construction, Repair & Maintenance"
Solihull MBC,Managed Growth and Communities,Highways & Transport Services,Balfour Beatty Living Places Ltd,16/03/2017,,107.46,Other Contracted Services,"391400 - Works - Construction, Repair & Maintenance"
Solihull MBC,Managed Growth and Communities,Highways & Transport Services,Balfour Beatty Living Places Ltd,16/03/2017,,22.39,Other Contracted Services,"391400 - Works - Construction, Repair & Maintenance"
Solihull MBC,Managed Growth and Communities,Highways & Transport Services,Balfour Beatty Living Places Ltd,16/03/2017,,35.82,Other Contracted Services,"391400 - Works - Construction, Repair & Maintenance"
Solihull MBC,Managed Growth and Communities,Highways & Transport Services,Balfour Beatty Living Places Ltd,16/03/2017,,25.84,Other Contracted Services,"391400 - Works - Construction, Repair & Maintenance"
Solihull MBC,Managed Growth and Communities,Highways & Transport Services,Balfour Beatty Living Places Ltd,16/03/2017,,69.05,Other Contracted Services,"391400 - Works - Construction, Repair & Maintenance"
Solihull MBC,Managed Growth and Communities,Highways & Transport Services,Balfour Beatty Living Places Ltd,16/03/2017,,44.76,Other Contracted Services,"391400 - Works - Construction, Repair & Maintenance"
Solihull MBC,Managed Growth and Communities,Highways & Transport Services,Balfour Beatty Living Places Ltd,16/03/2017,,22.39,Other Contracted Services,"391400 - Works - Construction, Repair & Maintenance"
Solihull MBC,Managed Growth and Communities,Highways & Transport Services,Balfour Beatty Living Places Ltd,16/03/2017,,44.76,Other Contracted Services,"391400 - Works - Construction, Repair & Maintenance"
Solihull MBC,Managed Growth and Communities,Highways & Transport Services,Balfour Beatty Living Places Ltd,16/03/2017,,207.15,Other Contracted Services,"391400 - Works - Construction, Repair & Maintenance"
Solihull MBC,Managed Growth and Communities,Highways & Transport Services,Balfour Beatty Living Places Ltd,16/03/2017,,69.05,Other Contracted Services,"391400 - Works - Construction, Repair & Maintenance"
Solihull MBC,Managed Growth and Communities,Highways & Transport Services,Balfour Beatty Living Places Ltd,16/03/2017,,139.65,Other Contracted Services,"391400 - Works - Construction, Repair & Maintenance"
Solihull MBC,Managed Growth and Communities,Highways & Transport Services,Balfour Beatty Living Places Ltd,16/03/2017,,69.05,Other Contracted Services,"391400 - Works - Construction, Repair & Maintenance"
Solihull MBC,Managed Growth and Communities,Highways & Transport Services,Balfour Beatty Living Places Ltd,16/03/2017,,194.29,Other Contracted Services,"391400 - Works - Construction, Repair & Maintenance"
Solihull MBC,Managed Growth and Communities,Highways & Transport Services,Balfour Beatty Living Places Ltd,16/03/2017,,54.12,Other Contracted Services,"391400 - Works - Construction, Repair & Maintenance"
Solihull MBC,Managed Growth and Communities,Highways & Transport Services,Balfour Beatty Living Places Ltd,16/03/2017,,54.12,Other Contracted Services,"391400 - Works - Construction, Repair & Maintenance"
Solihull MBC,Managed Growth and Communities,Highways & Transport Services,Balfour Beatty Living Places Ltd,16/03/2017,,214.92,Other Contracted Services,"391400 - Works - Construction, Repair & Maintenance"
Solihull MBC,Managed Growth and Communities,Highways & Transport Services,Balfour Beatty Living Places Ltd,16/03/2017,,111.60,Other Contracted Services,"391400 - Works - Construction, Repair & Maintenance"
Solihull MBC,Managed Growth and Communities,Highways & Transport Services,Balfour Beatty Living Places Ltd,16/03/2017,,55.18,Other Contracted Services,"391400 - Works - Construction, Repair & Maintenance"
Solihull MBC,Managed Growth and Communities,Highways & Transport Services,Balfour Beatty Living Places Ltd,16/03/2017,,44.76,Other Contracted Services,"391400 - Works - Construction, Repair & Maintenance"
Solihull MBC,Managed Growth and Communities,Highways & Transport Services,Balfour Beatty Living Places Ltd,16/03/2017,,28.36,Other Contracted Services,"391400 - Works - Construction, Repair & Maintenance"
Solihull MBC,Managed Growth and Communities,Highways & Transport Services,Balfour Beatty Living Places Ltd,16/03/2017,,213.61,Other Contracted Services,"391400 - Works - Construction, Repair & Maintenance"
Solihull MBC,Managed Growth and Communities,Highways & Transport Services,Balfour Beatty Living Places Ltd,16/03/2017,,44.76,Other Contracted Services,"391400 - Works - Construction, Repair & Maintenance"
Solihull MBC,Managed Growth and Communities,Highways & Transport Services,Balfour Beatty Living Places Ltd,16/03/2017,,108.24,Other Contracted Services,"391400 - Works - Construction, Repair & Maintenance"
Solihull MBC,Managed Growth and Communities,Highways & Transport Services,Balfour Beatty Living Places Ltd,16/03/2017,,138.10,Other Contracted Services,"391400 - Works - Construction, Repair & Maintenance"
Solihull MBC,Managed Growth and Communities,Highways & Transport Services,Balfour Beatty Living Places Ltd,16/03/2017,,414.30,Other Contracted Services,"391400 - Works - Construction, Repair & Maintenance"
Solihull MBC,Managed Growth and Communities,Highways & Transport Services,Balfour Beatty Living Places Ltd,16/03/2017,,33.54,Other Contracted Services,"391400 - Works - Construction, Repair & Maintenance"
Solihull MBC,Managed Growth and Communities,Highways & Transport Services,Balfour Beatty Living Places Ltd,16/03/2017,,44.76,Other Contracted Services,"391400 - Works - Construction, Repair & Maintenance"
Solihull MBC,Managed Growth and Communities,Highways & Transport Services,Balfour Beatty Living Places Ltd,16/03/2017,,68.23,Other Contracted Services,"391400 - Works - Construction, Repair & Maintenance"
Solihull MBC,Managed Growth and Communities,Highways & Transport Services,Balfour Beatty Living Places Ltd,16/03/2017,,90.90,Other Contracted Services,"391400 - Works - Construction, Repair & Maintenance"
Solihull MBC,Managed Growth and Communities,Highways & Transport Services,Balfour Beatty Living Places Ltd,16/03/2017,,160.49,Other Contracted Services,"391400 - Works - Construction, Repair & Maintenance"
Solihull MBC,Managed Growth and Communities,Highways & Transport Services,Balfour Beatty Living Places Ltd,16/03/2017,,48.48,Other Contracted Services,"391400 - Works - Construction, Repair & Maintenance"
Solihull MBC,Managed Growth and Communities,Highways & Transport Services,Balfour Beatty Living Places Ltd,16/03/2017,,34341.86,Other Contracted Services,"391400 - Works - Construction, Repair & Maintenance"
Solihull MBC,Managed Growth and Communities,Highways & Transport Services,Balfour Beatty Living Places Ltd,16/03/2017,,258.06,Other Contracted Services,"391400 - Works - Construction, Repair & Maintenance"
Solihull MBC,Managed Growth and Communities,Highways & Transport Services,Balfour Beatty Living Places Ltd,16/03/2017,,39692.04,Other Contracted Services,"391400 - Works - Construction, Repair & Maintenance"
Solihull MBC,Managed Growth and Communities,Highways & Transport Services,Balfour Beatty Living Places Ltd,16/03/2017,,16380.68,Other Contracted Services,"391400 - Works - Construction, Repair & Maintenance"
Solihull MBC,Managed Growth and Communities,Highways & Transport Services,Balfour Beatty Living Places Ltd,16/03/2017,,51.11,Other Contracted Services,"391400 - Works - Construction, Repair & Maintenance"
Solihull MBC,Managed Growth and Communities,Highways & Transport Services,Balfour Beatty Living Places Ltd,16/03/2017,,22.39,Other Contracted Services,"391400 - Works - Construction, Repair & Maintenance"
Solihull MBC,Managed Growth and Communities,Highways & Transport Services,Balfour Beatty Living Places Ltd,16/03/2017,,1363.13,Other Contracted Services,"391400 - Works - Construction, Repair & Maintenance"
Solihull MBC,Managed Growth and Communities,Highways & Transport Services,Balfour Beatty Living Places Ltd,16/03/2017,,233.86,Other Contracted Services,"391400 - Works - Construction, Repair & Maintenance"
Solihull MBC,Managed Growth and Communities,Highways & Transport Services,Balfour Beatty Living Places Ltd,16/03/2017,,11.81,Other Contracted Services,"391400 - Works - Construction, Repair & Maintenance"
Solihull MBC,Managed Growth and Communities,Highways & Transport Services,Balfour Beatty Living Places Ltd,16/03/2017,,897.65,Other Contracted Services,"391400 - Works - Construction, Repair & Maintenance"
Solihull MBC,Managed Growth and Communities,Highways & Transport Services,Balfour Beatty Living Places Ltd,16/03/2017,,124.05,Other Contracted Services,"391400 - Works - Construction, Repair & Maintenance"
Solihull MBC,Managed Growth and Communities,Highways & Transport Services,Balfour Beatty Living Places Ltd,16/03/2017,,132.40,Other Contracted Services,"391400 - Works - Construction, Repair & Maintenance"
Solihull MBC,Managed Growth and Communities,Highways & Transport Services,Balfour Beatty Living Places Ltd,16/03/2017,,70.86,Other Contracted Services,"391400 - Works - Construction, Repair & Maintenance"
Solihull MBC,Managed Growth and Communities,Highways & Transport Services,Balfour Beatty Living Places Ltd,16/03/2017,,80.49,Other Contracted Services,"391400 - Works - Construction, Repair & Maintenance"
Solihull MBC,Managed Growth and Communities,Highways & Transport Services,Balfour Beatty Living Places Ltd,16/03/2017,,107.20,Other Contracted Services,"391400 - Works - Construction, Repair & Maintenance"
Solihull MBC,Managed Growth and Communities,Highways & Transport Services,Balfour Beatty Living Places Ltd,16/03/2017,,30.30,Other Contracted Services,"391400 - Works - Construction, Repair & Maintenance"
Solihull MBC,Managed Growth and Communities,Highways & Transport Services,Balfour Beatty Living Places Ltd,16/03/2017,,5148.78,Other Contracted Services,"391400 - Works - Construction, Repair & Maintenance"
Solihull MBC,Managed Growth and Communities,Highways & Transport Services,Balfour Beatty Living Places Ltd,16/03/2017,,87.12,Other Contracted Services,"391400 - Works - Construction, Repair & Maintenance"
Solihull MBC,Managed Growth and Communities,Highways & Transport Services,Balfour Beatty Living Places Ltd,16/03/2017,,79.67,Other Contracted Services,"391400 - Works - Construction, Repair & Maintenance"
Solihull MBC,Managed Growth and Communities,Highways & Transport Services,Balfour Beatty Living Places Ltd,16/03/2017,,28.05,Other Contracted Services,"391400 - Works - Construction, Repair & Maintenance"
Solihull MBC,Managed Growth and Communities,Highways & Transport Services,Balfour Beatty Living Places Ltd,16/03/2017,,48.98,Other Contracted Services,"391400 - Works - Construction, Repair & Maintenance"
Solihull MBC,Managed Growth and Communities,Highways & Transport Services,Balfour Beatty Living Places Ltd,16/03/2017,,44.76,Other Contracted Services,"391400 - Works - Construction, Repair & Maintenance"
Solihull MBC,Managed Growth and Communities,Highways & Transport Services,Balfour Beatty Living Places Ltd,16/03/2017,,11.81,Other Contracted Services,"391400 - Works - Construction, Repair & Maintenance"
Solihull MBC,Managed Growth and Communities,Highways & Transport Services,Balfour Beatty Living Places Ltd,16/03/2017,,35.43,Other Contracted Services,"391400 - Works - Construction, Repair & Maintenance"
Solihull MBC,Managed Growth and Communities,Highways & Transport Services,Balfour Beatty Living Places Ltd,16/03/2017,,441.82,Other Contracted Services,"391400 - Works - Construction, Repair & Maintenance"
Solihull MBC,Managed Growth and Communities,Highways & Transport Services,Balfour Beatty Living Places Ltd,16/03/2017,,58.22,Other Contracted Services,"391400 - Works - Construction, Repair & Maintenance"
Solihull MBC,Managed Growth and Communities,Highways & Transport Services,Balfour Beatty Living Places Ltd,16/03/2017,,802.44,Other Contracted Services,"391400 - Works - Construction, Repair & Maintenance"
Solihull MBC,Managed Growth and Communities,Highways & Transport Services,Balfour Beatty Living Places Ltd,16/03/2017,,484.23,Other Contracted Services,"391400 - Works - Construction, Repair & Maintenance"
Solihull MBC,Managed Growth and Communities,Highways & Transport Services,Balfour Beatty Living Places Ltd,16/03/2017,,465.97,Other Contracted Services,"391400 - Works - Construction, Repair & Maintenance"
Solihull MBC,Managed Growth and Communities,Highways & Transport Services,Balfour Beatty Living Places Ltd,16/03/2017,,418.20,Other Contracted Services,"391400 - Works - Construction, Repair & Maintenance"
Solihull MBC,Managed Growth and Communities,Highways & Transport Services,Balfour Beatty Living Places Ltd,16/03/2017,,232.00,Other Contracted Services,"391400 - Works - Construction, Repair & Maintenance"
Solihull MBC,Managed Growth and Communities,Highways & Transport Services,Balfour Beatty Living Places Ltd,16/03/2017,,224.53,Other Contracted Services,"391400 - Works - Construction, Repair & Maintenance"
Solihull MBC,Managed Growth and Communities,Highways & Transport Services,Balfour Beatty Living Places Ltd,16/03/2017,,452.20,Other Contracted Services,"391400 - Works - Construction, Repair & Maintenance"
Solihull MBC,Managed Growth and Communities,Highways & Transport Services,Balfour Beatty Living Places Ltd,16/03/2017,,63617.73,Contractors,"391400 - Works - Construction, Repair & Maintenance"
Solihull MBC,Managed Growth and Communities,Highways & Transport Services,Balfour Beatty Living Places Ltd,16/03/2017,,148735.79,Contractors,"391400 - Works - Construction, Repair & Maintenance"
Solihull MBC,Managed Growth and Communities,Highways & Transport Services,Balfour Beatty Living Places Ltd,16/03/2017,,101879.77,Contractors,"391400 - Works - Construction, Repair & Maintenance"
Solihull MBC,Managed Growth and Communities,Highways & Transport Services,Balfour Beatty Living Places Ltd,16/03/2017,,15564.01,Contractors,"391400 - Works - Construction, Repair & Maintenance"
Solihull MBC,Managed Growth and Communities,Highways & Transport Services,Balfour Beatty Living Places Ltd,16/03/2017,,185027.74,Contractors,"391400 - Works - Construction, Repair & Maintenance"
Solihull MBC,Managed Growth and Communities,Highways & Transport Services,Balfour Beatty Living Places Ltd,16/03/2017,,1211.98,Contractors,"391400 - Works - Construction, Repair & Maintenance"
Solihull MBC,Managed Growth and Communities,Highways & Transport Services,Balfour Beatty Living Places Ltd,16/03/2017,,154257.04,Contractors,"391400 - Works - Construction, Repair & Maintenance"
Solihull MBC,Managed Growth and Communities,Highways & Transport Services,Balfour Beatty Living Places Ltd,16/03/2017,,24362.89,Contractors,"391400 - Works - Construction, Repair & Maintenance"
Solihull MBC,Managed Growth and Communities,Highways & Transport Services,Balfour Beatty Living Places Ltd,16/03/2017,,73000.61,Contractors,"391400 - Works - Construction, Repair & Maintenance"
Solihull MBC,Managed Growth and Communities,Highways & Transport Services,Balfour Beatty Living Places Ltd,16/03/2017,,2298.46,Contractors,"391400 - Works - Construction, Repair & Maintenance"
Solihull MBC,Managed Growth and Communities,Highways & Transport Services,Balfour Beatty Living Places Ltd,16/03/2017,,5338.53,Contractors,"391400 - Works - Construction, Repair & Maintenance"
Solihull MBC,Managed Growth and Communities,Highways & Transport Services,Balfour Beatty Living Places Ltd,16/03/2017,,195.88,Contractors,"391400 - Works - Construction, Repair & Maintenance"
Solihull MBC,Managed Growth and Communities,Highways & Transport Services,Balfour Beatty Living Places Ltd,16/03/2017,,480.72,Contractors,"391400 - Works - Construction, Repair & Maintenance"
Solihull MBC,Managed Growth and Communities,Highways & Transport Services,Balfour Beatty Living Places Ltd,16/03/2017,,1018.05,Contractors,"391400 - Works - Construction, Repair & Maintenance"
Solihull MBC,Managed Growth and Communities,Highways & Transport Services,Balfour Beatty Living Places Ltd,16/03/2017,,949.06,Contractors,"391400 - Works - Construction, Repair & Maintenance"
Solihull MBC,Managed Growth and Communities,Highways & Transport Services,Balfour Beatty Living Places Ltd,16/03/2017,,1295.88,Contractors,"391400 - Works - Construction, Repair & Maintenance"
Solihull MBC,Managed Growth and Communities,Highways & Transport Services,Balfour Beatty Living Places Ltd,16/03/2017,,424.84,Contractors,"391400 - Works - Construction, Repair & Maintenance"
Solihull MBC,Managed Growth and Communities,Highways & Transport Services,Balfour Beatty Living Places Ltd,16/03/2017,,77.88,Contractors,"391400 - Works - Construction, Repair & Maintenance"
Solihull MBC,Managed Growth and Communities,Highways & Transport Services,Balfour Beatty Living Places Ltd,16/03/2017,,40.68,Contractors,"391400 - Works - Construction, Repair & Maintenance"
Solihull MBC,Managed Growth and Communities,Highways & Transport Services,Balfour Beatty Living Places Ltd,16/03/2017,,76.44,Contractors,"391400 - Works - Construction, Repair & Maintenance"
Solihull MBC,Managed Growth and Communities,Highways & Transport Services,Balfour Beatty Living Places Ltd,16/03/2017,,22628.82,Contractors,"391400 - Works - Construction, Repair & Maintenance"
Solihull MBC,Managed Growth and Communities,Highways & Transport Services,Balfour Beatty Living Places Ltd,16/03/2017,,472.25,Contractors,"391400 - Works - Construction, Repair & Maintenance"
Solihull MBC,Managed Growth and Communities,Highways & Transport Services,Balfour Beatty Living Places Ltd,16/03/2017,,398.81,Contractors,"391400 - Works - Construction, Repair & Maintenance"
Solihull MBC,Managed Growth and Communities,Highways & Transport Services,Balfour Beatty Living Places Ltd,16/03/2017,,55.18,Contractors,"391400 - Works - Construction, Repair & Maintenance"
Solihull MBC,Managed Growth and Communities,Highways & Transport Services,Balfour Beatty Living Places Ltd,16/03/2017,,415.34,Contractors,"391400 - Works - Construction, Repair & Maintenance"
Solihull MBC,Resources,Planning & Development Services,Balfour Beatty Living Places Ltd,16/03/2017,,786.96,Other Contracted Services,"391400 - Works - Construction, Repair & Maintenance"
Solihull MBC,Managed Growth and Communities,Highways & Transport Services,Balfour Beatty Living Places Ltd,24/03/2017,,130231.53,Other Contracted Services,"391400 - Works - Construction, Repair & Maintenance"
Solihull MBC,Managed Growth and Communities,Highways & Transport Services,Balfour Beatty Living Places Ltd,24/03/2017,,9849.36,Other Contracted Services,"391400 - Works - Construction, Repair & Maintenance"
Solihull MBC,Managed Growth and Communities,Highways & Transport Services,Balfour Beatty Living Places Ltd,24/03/2017,,6224.66,Other Contracted Services,"391400 - Works - Construction, Repair & Maintenance"
Solihull MBC,Managed Growth and Communities,Highways & Transport Services,Balfour Beatty Living Places Ltd,24/03/2017,,10224.08,Other Contracted Services,"391400 - Works - Construction, Repair & Maintenance"
Solihull MBC,Managed Growth and Communities,Highways & Transport Services,Balfour Beatty Living Places Ltd,24/03/2017,,1792.68,Other Contracted Services,"391400 - Works - Construction, Repair & Maintenance"
Solihull MBC,Managed Growth and Communities,Highways & Transport Services,Balfour Beatty Living Places Ltd,24/03/2017,,50.50,Other Contracted Services,"391400 - Works - Construction, Repair & Maintenance"
Solihull MBC,Managed Growth and Communities,Highways & Transport Services,Balfour Beatty Living Places Ltd,24/03/2017,,6940.16,Other Contracted Services,"391400 - Works - Construction, Repair & Maintenance"
Solihull MBC,Managed Growth and Communities,Highways & Transport Services,Balfour Beatty Living Places Ltd,24/03/2017,,23904.09,Other Contracted Services,"391400 - Works - Construction, Repair & Maintenance"
Solihull MBC,Managed Growth and Communities,Highways & Transport Services,Balfour Beatty Living Places Ltd,24/03/2017,,42914.00,Other Contracted Services,"391400 - Works - Construction, Repair & Maintenance"
Solihull MBC,Managed Growth and Communities,Highways & Transport Services,Balfour Beatty Living Places Ltd,24/03/2017,,138.10,Other Contracted Services,"391400 - Works - Construction, Repair & Maintenance"
Solihull MBC,Managed Growth and Communities,Highways & Transport Services,Balfour Beatty Living Places Ltd,24/03/2017,,163.56,Other Contracted Services,"391400 - Works - Construction, Repair & Maintenance"
Solihull MBC,Managed Growth and Communities,Highways & Transport Services,Balfour Beatty Living Places Ltd,24/03/2017,,368.16,Other Contracted Services,"391400 - Works - Construction, Repair & Maintenance"
Solihull MBC,Managed Growth and Communities,Highways & Transport Services,Balfour Beatty Living Places Ltd,24/03/2017,,3702.23,Other Contracted Services,"391400 - Works - Construction, Repair & Maintenance"
Solihull MBC,Managed Growth and Communities,Highways & Transport Services,Balfour Beatty Living Places Ltd,24/03/2017,,22.39,Other Contracted Services,"391400 - Works - Construction, Repair & Maintenance"
Solihull MBC,Managed Growth and Communities,Highways & Transport Services,Balfour Beatty Living Places Ltd,24/03/2017,,141.90,Other Contracted Services,"391400 - Works - Construction, Repair & Maintenance"
Solihull MBC,Managed Growth and Communities,Highways & Transport Services,Balfour Beatty Living Places Ltd,24/03/2017,,194.29,Other Contracted Services,"391400 - Works - Construction, Repair & Maintenance"
Solihull MBC,Managed Growth and Communities,Highways & Transport Services,Balfour Beatty Living Places Ltd,24/03/2017,,187.09,Other Contracted Services,"391400 - Works - Construction, Repair & Maintenance"
Solihull MBC,Managed Growth and Communities,Highways & Transport Services,Balfour Beatty Living Places Ltd,24/03/2017,,6715.43,Other Contracted Services,"391400 - Works - Construction, Repair & Maintenance"
Solihull MBC,Managed Growth and Communities,Highways & Transport Services,Balfour Beatty Living Places Ltd,24/03/2017,,38.48,Other Contracted Services,"391400 - Works - Construction, Repair & Maintenance"
Solihull MBC,Managed Growth and Communities,Highways & Transport Services,Balfour Beatty Living Places Ltd,24/03/2017,,232.82,Other Contracted Services,"391400 - Works - Construction, Repair & Maintenance"
Solihull MBC,Managed Growth and Communities,Highways & Transport Services,Balfour Beatty Living Places Ltd,24/03/2017,,232.88,Other Contracted Services,"391400 - Works - Construction, Repair & Maintenance"
Solihull MBC,Managed Growth and Communities,Highways & Transport Services,Balfour Beatty Living Places Ltd,24/03/2017,,69.05,Other Contracted Services,"391400 - Works - Construction, Repair & Maintenance"
Solihull MBC,Managed Growth and Communities,Highways & Transport Services,Balfour Beatty Living Places Ltd,24/03/2017,,139.65,Other Contracted Services,"391400 - Works - Construction, Repair & Maintenance"
Solihull MBC,Managed Growth and Communities,Highways & Transport Services,Balfour Beatty Living Places Ltd,24/03/2017,,209.99,Other Contracted Services,"391400 - Works - Construction, Repair & Maintenance"
Solihull MBC,Managed Growth and Communities,Highways & Transport Services,Balfour Beatty Living Places Ltd,24/03/2017,,186.89,Other Contracted Services,"391400 - Works - Construction, Repair & Maintenance"
Solihull MBC,Managed Growth and Communities,Highways & Transport Services,Balfour Beatty Living Places Ltd,24/03/2017,,422.01,Other Contracted Services,"391400 - Works - Construction, Repair & Maintenance"
Solihull MBC,Managed Growth and Communities,Highways & Transport Services,Balfour Beatty Living Places Ltd,24/03/2017,,5378.57,Other Contracted Services,"391400 - Works - Construction, Repair & Maintenance"
Solihull MBC,Managed Growth and Communities,Highways & Transport Services,Balfour Beatty Living Places Ltd,24/03/2017,,54.12,Other Contracted Services,"391400 - Works - Construction, Repair & Maintenance"
Solihull MBC,Managed Growth and Communities,Highways & Transport Services,Balfour Beatty Living Places Ltd,24/03/2017,,55.79,Other Contracted Services,"391400 - Works - Construction, Repair & Maintenance"
Solihull MBC,Managed Growth and Communities,Highways & Transport Services,Balfour Beatty Living Places Ltd,24/03/2017,,44.76,Other Contracted Services,"391400 - Works - Construction, Repair & Maintenance"
Solihull MBC,Managed Growth and Communities,Highways & Transport Services,Balfour Beatty Living Places Ltd,24/03/2017,,32.68,Other Contracted Services,"391400 - Works - Construction, Repair & Maintenance"
Solihull MBC,Managed Growth and Communities,Highways & Transport Services,Balfour Beatty Living Places Ltd,24/03/2017,,69.05,Other Contracted Services,"391400 - Works - Construction, Repair & Maintenance"
Solihull MBC,Managed Growth and Communities,Highways & Transport Services,Balfour Beatty Living Places Ltd,24/03/2017,,139.65,Other Contracted Services,"391400 - Works - Construction, Repair & Maintenance"
Solihull MBC,Managed Growth and Communities,Highways & Transport Services,Balfour Beatty Living Places Ltd,24/03/2017,,173.09,Other Contracted Services,"391400 - Works - Construction, Repair & Maintenance"
Solihull MBC,Managed Growth and Communities,Highways & Transport Services,Balfour Beatty Living Places Ltd,24/03/2017,,17.96,Other Contracted Services,"391400 - Works - Construction, Repair & Maintenance"
Solihull MBC,Managed Growth and Communities,Highways & Transport Services,Balfour Beatty Living Places Ltd,24/03/2017,,54.12,Other Contracted Services,"391400 - Works - Construction, Repair & Maintenance"
Solihull MBC,Managed Growth and Communities,Highways & Transport Services,Balfour Beatty Living Places Ltd,24/03/2017,,141.90,Other Contracted Services,"391400 - Works - Construction, Repair & Maintenance"
Solihull MBC,Managed Growth and Communities,Highways & Transport Services,Balfour Beatty Living Places Ltd,24/03/2017,,364.68,Other Contracted Services,"391400 - Works - Construction, Repair & Maintenance"
Solihull MBC,Managed Growth and Communities,Highways & Transport Services,Balfour Beatty Living Places Ltd,24/03/2017,,87.36,Other Contracted Services,"391400 - Works - Construction, Repair & Maintenance"
Solihull MBC,Managed Growth and Communities,Highways & Transport Services,Balfour Beatty Living Places Ltd,24/03/2017,,243.12,Other Contracted Services,"391400 - Works - Construction, Repair & Maintenance"
Solihull MBC,Managed Growth and Communities,Highways & Transport Services,Balfour Beatty Living Places Ltd,24/03/2017,,22.39,Other Contracted Services,"391400 - Works - Construction, Repair & Maintenance"
Solihull MBC,Managed Growth and Communities,Highways & Transport Services,Balfour Beatty Living Places Ltd,24/03/2017,,1215.60,Other Contracted Services,"391400 - Works - Construction, Repair & Maintenance"
Solihull MBC,Managed Growth and Communities,Highways & Transport Services,Balfour Beatty Living Places Ltd,24/03/2017,,486.24,Other Contracted Services,"391400 - Works - Construction, Repair & Maintenance"
Solihull MBC,Managed Growth and Communities,Highways & Transport Services,Balfour Beatty Living Places Ltd,24/03/2017,,108.24,Other Contracted Services,"391400 - Works - Construction, Repair & Maintenance"
Solihull MBC,Managed Growth and Communities,Highways & Transport Services,Balfour Beatty Living Places Ltd,24/03/2017,,291.20,Other Contracted Services,"391400 - Works - Construction, Repair & Maintenance"
Solihull MBC,Managed Growth and Communities,Highways & Transport Services,Balfour Beatty Living Places Ltd,24/03/2017,,607.80,Other Contracted Services,"391400 - Works - Construction, Repair & Maintenance"
Solihull MBC,Managed Growth and Communities,Highways & Transport Services,Balfour Beatty Living Places Ltd,24/03/2017,,69.05,Other Contracted Services,"391400 - Works - Construction, Repair & Maintenance"
Solihull MBC,Managed Growth and Communities,Highways & Transport Services,Balfour Beatty Living Places Ltd,24/03/2017,,54.12,Other Contracted Services,"391400 - Works - Construction, Repair & Maintenance"
Solihull MBC,Managed Growth and Communities,Highways & Transport Services,Balfour Beatty Living Places Ltd,24/03/2017,,89.52,Other Contracted Services,"391400 - Works - Construction, Repair & Maintenance"
Solihull MBC,Managed Growth and Communities,Highways & Transport Services,Balfour Beatty Living Places Ltd,24/03/2017,,207.15,Other Contracted Services,"391400 - Works - Construction, Repair & Maintenance"
Solihull MBC,Managed Growth and Communities,Highways & Transport Services,Balfour Beatty Living Places Ltd,24/03/2017,,139.65,Other Contracted Services,"391400 - Works - Construction, Repair & Maintenance"
Solihull MBC,Managed Growth and Communities,Highways & Transport Services,Balfour Beatty Living Places Ltd,24/03/2017,,69.05,Other Contracted Services,"391400 - Works - Construction, Repair & Maintenance"
Solihull MBC,Managed Growth and Communities,Highways & Transport Services,Balfour Beatty Living Places Ltd,24/03/2017,,69.05,Other Contracted Services,"391400 - Works - Construction, Repair & Maintenance"
Solihull MBC,Managed Growth and Communities,Highways & Transport Services,Balfour Beatty Living Places Ltd,24/03/2017,,22.39,Other Contracted Services,"391400 - Works - Construction, Repair & Maintenance"
Solihull MBC,Managed Growth and Communities,Highways & Transport Services,Balfour Beatty Living Places Ltd,24/03/2017,,162.36,Other Contracted Services,"391400 - Works - Construction, Repair & Maintenance"
Solihull MBC,Managed Growth and Communities,Highways & Transport Services,Balfour Beatty Living Places Ltd,24/03/2017,,8397.33,Other Contracted Services,"391400 - Works - Construction, Repair & Maintenance"
Solihull MBC,Managed Growth and Communities,Highways & Transport Services,Balfour Beatty Living Places Ltd,24/03/2017,,69.05,Other Contracted Services,"391400 - Works - Construction, Repair & Maintenance"
Solihull MBC,Managed Growth and Communities,Highways & Transport Services,Balfour Beatty Living Places Ltd,24/03/2017,,69.05,Other Contracted Services,"391400 - Works - Construction, Repair & Maintenance"
Solihull MBC,Managed Growth and Communities,Highways & Transport Services,Balfour Beatty Living Places Ltd,24/03/2017,,324.52,Other Contracted Services,"391400 - Works - Construction, Repair & Maintenance"
Solihull MBC,Managed Growth and Communities,Highways & Transport Services,Balfour Beatty Living Places Ltd,24/03/2017,,179.04,Other Contracted Services,"391400 - Works - Construction, Repair & Maintenance"
Solihull MBC,Managed Growth and Communities,Highways & Transport Services,Balfour Beatty Living Places Ltd,24/03/2017,,69.05,Other Contracted Services,"391400 - Works - Construction, Repair & Maintenance"
Solihull MBC,Managed Growth and Communities,Highways & Transport Services,Balfour Beatty Living Places Ltd,24/03/2017,,22.39,Other Contracted Services,"391400 - Works - Construction, Repair & Maintenance"
Solihull MBC,Managed Growth and Communities,Highways & Transport Services,Balfour Beatty Living Places Ltd,24/03/2017,,283.29,Other Contracted Services,"391400 - Works - Construction, Repair & Maintenance"
Solihull MBC,Managed Growth and Communities,Highways & Transport Services,Balfour Beatty Living Places Ltd,24/03/2017,,207.15,Other Contracted Services,"391400 - Works - Construction, Repair & Maintenance"
Solihull MBC,Managed Growth and Communities,Highways & Transport Services,Balfour Beatty Living Places Ltd,24/03/2017,,69.05,Other Contracted Services,"391400 - Works - Construction, Repair & Maintenance"
Solihull MBC,Managed Growth and Communities,Highways & Transport Services,Balfour Beatty Living Places Ltd,24/03/2017,,139.65,Other Contracted Services,"391400 - Works - Construction, Repair & Maintenance"
Solihull MBC,Managed Growth and Communities,Highways & Transport Services,Balfour Beatty Living Places Ltd,24/03/2017,,139.65,Other Contracted Services,"391400 - Works - Construction, Repair & Maintenance"
Solihull MBC,Managed Growth and Communities,Highways & Transport Services,Balfour Beatty Living Places Ltd,24/03/2017,,22.39,Other Contracted Services,"391400 - Works - Construction, Repair & Maintenance"
Solihull MBC,Managed Growth and Communities,Highways & Transport Services,Balfour Beatty Living Places Ltd,24/03/2017,,100.67,Other Contracted Services,"391400 - Works - Construction, Repair & Maintenance"
Solihull MBC,Managed Growth and Communities,Highways & Transport Services,Balfour Beatty Living Places Ltd,24/03/2017,,458.52,Other Contracted Services,"391400 - Works - Construction, Repair & Maintenance"
Solihull MBC,Managed Growth and Communities,Highways & Transport Services,Balfour Beatty Living Places Ltd,24/03/2017,,44.76,Other Contracted Services,"391400 - Works - Construction, Repair & Maintenance"
Solihull MBC,Managed Growth and Communities,Highways & Transport Services,Balfour Beatty Living Places Ltd,24/03/2017,,106717.86,Other Contracted Services,"391400 - Works - Construction, Repair & Maintenance"
Solihull MBC,Managed Growth and Communities,Highways & Transport Services,Balfour Beatty Living Places Ltd,24/03/2017,,138.10,Other Contracted Services,"391400 - Works - Construction, Repair & Maintenance"
Solihull MBC,Managed Growth and Communities,Highways & Transport Services,Balfour Beatty Living Places Ltd,24/03/2017,,138.10,Other Contracted Services,"391400 - Works - Construction, Repair & Maintenance"
Solihull MBC,Managed Growth and Communities,Highways & Transport Services,Balfour Beatty Living Places Ltd,24/03/2017,,44.76,Other Contracted Services,"391400 - Works - Construction, Repair & Maintenance"
Solihull MBC,Managed Growth and Communities,Highways & Transport Services,Balfour Beatty Living Places Ltd,24/03/2017,,54.12,Other Contracted Services,"391400 - Works - Construction, Repair & Maintenance"
Solihull MBC,Managed Growth and Communities,Highways & Transport Services,Balfour Beatty Living Places Ltd,24/03/2017,,69.05,Other Contracted Services,"391400 - Works - Construction, Repair & Maintenance"
Solihull MBC,Managed Growth and Communities,Highways & Transport Services,Balfour Beatty Living Places Ltd,24/03/2017,,118.19,Other Contracted Services,"391400 - Works - Construction, Repair & Maintenance"
Solihull MBC,Managed Growth and Communities,Highways & Transport Services,Balfour Beatty Living Places Ltd,24/03/2017,,4140.04,Other Contracted Services,"391400 - Works - Construction, Repair & Maintenance"
Solihull MBC,Managed Growth and Communities,Highways & Transport Services,Balfour Beatty Living Places Ltd,24/03/2017,,69.05,Other Contracted Services,"391400 - Works - Construction, Repair & Maintenance"
Solihull MBC,Managed Growth and Communities,Highways & Transport Services,Balfour Beatty Living Places Ltd,24/03/2017,,44.76,Other Contracted Services,"391400 - Works - Construction, Repair & Maintenance"
Solihull MBC,Managed Growth and Communities,Highways & Transport Services,Balfour Beatty Living Places Ltd,24/03/2017,,207.15,Other Contracted Services,"391400 - Works - Construction, Repair & Maintenance"
Solihull MBC,Managed Growth and Communities,Highways & Transport Services,Balfour Beatty Living Places Ltd,24/03/2017,,69.05,Other Contracted Services,"391400 - Works - Construction, Repair & Maintenance"
Solihull MBC,Managed Growth and Communities,Highways & Transport Services,Balfour Beatty Living Places Ltd,24/03/2017,,14488.88,Other Contracted Services,"391400 - Works - Construction, Repair & Maintenance"
Solihull MBC,Managed Growth and Communities,Highways & Transport Services,Balfour Beatty Living Places Ltd,24/03/2017,,61558.97,Other Contracted Services,"391400 - Works - Construction, Repair & Maintenance"
Solihull MBC,Managed Growth and Communities,Highways & Transport Services,Balfour Beatty Living Places Ltd,24/03/2017,,170.48,Other Contracted Services,"391400 - Works - Construction, Repair & Maintenance"
Solihull MBC,Managed Growth and Communities,Highways & Transport Services,Balfour Beatty Living Places Ltd,24/03/2017,,143.59,Other Contracted Services,"391400 - Works - Construction, Repair & Maintenance"
Solihull MBC,Managed Growth and Communities,Highways & Transport Services,Balfour Beatty Living Places Ltd,24/03/2017,,79.67,Other Contracted Services,"391400 - Works - Construction, Repair & Maintenance"
Solihull MBC,Managed Growth and Communities,Highways & Transport Services,Balfour Beatty Living Places Ltd,24/03/2017,,27.01,Other Contracted Services,"391400 - Works - Construction, Repair & Maintenance"
Solihull MBC,Managed Growth and Communities,Highways & Transport Services,Balfour Beatty Living Places Ltd,24/03/2017,,5773.46,Other Contracted Services,"391400 - Works - Construction, Repair & Maintenance"
Solihull MBC,Managed Growth and Communities,Highways & Transport Services,Balfour Beatty Living Places Ltd,24/03/2017,,8.78,Other Contracted Services,"391400 - Works - Construction, Repair & Maintenance"
Solihull MBC,Managed Growth and Communities,Highways & Transport Services,Balfour Beatty Living Places Ltd,24/03/2017,,55.84,Other Contracted Services,"391400 - Works - Construction, Repair & Maintenance"
Solihull MBC,Managed Growth and Communities,Highways & Transport Services,Balfour Beatty Living Places Ltd,24/03/2017,,5576.27,Other Contracted Services,"391400 - Works - Construction, Repair & Maintenance"
Solihull MBC,Managed Growth and Communities,Highways & Transport Services,Balfour Beatty Living Places Ltd,24/03/2017,,192.46,Other Contracted Services,"391400 - Works - Construction, Repair & Maintenance"
Solihull MBC,Managed Growth and Communities,Highways & Transport Services,Balfour Beatty Living Places Ltd,24/03/2017,,24.81,Other Contracted Services,"391400 - Works - Construction, Repair & Maintenance"
Solihull MBC,Managed Growth and Communities,Highways & Transport Services,Balfour Beatty Living Places Ltd,24/03/2017,,49.62,Other Contracted Services,"391400 - Works - Construction, Repair & Maintenance"
Solihull MBC,Managed Growth and Communities,Highways & Transport Services,Balfour Beatty Living Places Ltd,24/03/2017,,786.80,Other Contracted Services,"391400 - Works - Construction, Repair & Maintenance"
Solihull MBC,Managed Growth and Communities,Highways & Transport Services,Balfour Beatty Living Places Ltd,24/03/2017,,135.05,Other Contracted Services,"391400 - Works - Construction, Repair & Maintenance"
Solihull MBC,Managed Growth and Communities,Highways & Transport Services,Balfour Beatty Living Places Ltd,24/03/2017,,63.44,Other Contracted Services,"391400 - Works - Construction, Repair & Maintenance"
Solihull MBC,Managed Growth and Communities,Highways & Transport Services,Balfour Beatty Living Places Ltd,24/03/2017,,358.70,Other Contracted Services,"391400 - Works - Construction, Repair & Maintenance"
Solihull MBC,Managed Growth and Communities,Highways & Transport Services,Balfour Beatty Living Places Ltd,24/03/2017,,11.81,Other Contracted Services,"391400 - Works - Construction, Repair & Maintenance"
Solihull MBC,Managed Growth and Communities,Highways & Transport Services,Balfour Beatty Living Places Ltd,24/03/2017,,399.72,Other Contracted Services,"391400 - Works - Construction, Repair & Maintenance"
Solihull MBC,Managed Growth and Communities,Highways & Transport Services,Balfour Beatty Living Places Ltd,24/03/2017,,10922.23,Other Contracted Services,"391400 - Works - Construction, Repair & Maintenance"
Solihull MBC,Managed Growth and Communities,Highways & Transport Services,Balfour Beatty Living Places Ltd,24/03/2017,,5324.73,Other Contracted Services,"391400 - Works - Construction, Repair & Maintenance"
Solihull MBC,Managed Growth and Communities,Highways & Transport Services,Balfour Beatty Living Places Ltd,24/03/2017,,23937.70,Other Contracted Services,"391400 - Works - Construction, Repair & Maintenance"
Solihull MBC,Managed Growth and Communities,Highways & Transport Services,Balfour Beatty Living Places Ltd,24/03/2017,,779.35,Other Contracted Services,"391400 - Works - Construction, Repair & Maintenance"
Solihull MBC,Managed Growth and Communities,Highways & Transport Services,Balfour Beatty Living Places Ltd,24/03/2017,,752.38,Other Contracted Services,"391400 - Works - Construction, Repair & Maintenance"
Solihull MBC,Managed Growth and Communities,Highways & Transport Services,Balfour Beatty Living Places Ltd,24/03/2017,,565.48,Other Contracted Services,"391400 - Works - Construction, Repair & Maintenance"
Solihull MBC,Managed Growth and Communities,Highways & Transport Services,Balfour Beatty Living Places Ltd,24/03/2017,,598.63,Other Contracted Services,"391400 - Works - Construction, Repair & Maintenance"
Solihull MBC,Managed Growth and Communities,Highways & Transport Services,Balfour Beatty Living Places Ltd,24/03/2017,,525.45,Other Contracted Services,"391400 - Works - Construction, Repair & Maintenance"
Solihull MBC,Managed Growth and Communities,Highways & Transport Services,Balfour Beatty Living Places Ltd,24/03/2017,,38679.58,Contractors,"391400 - Works - Construction, Repair & Maintenance"
Solihull MBC,Managed Growth and Communities,Highways & Transport Services,Balfour Beatty Living Places Ltd,24/03/2017,,9775.60,Contractors,"391400 - Works - Construction, Repair & Maintenance"
Solihull MBC,Managed Growth and Communities,Highways & Transport Services,Balfour Beatty Living Places Ltd,24/03/2017,,53944.57,Contractors,"391400 - Works - Construction, Repair & Maintenance"
Solihull MBC,Managed Growth and Communities,Highways & Transport Services,Balfour Beatty Living Places Ltd,24/03/2017,,177823.55,Contractors,"391400 - Works - Construction, Repair & Maintenance"
Solihull MBC,Managed Growth and Communities,Highways & Transport Services,Balfour Beatty Living Places Ltd,24/03/2017,,23869.74,Contractors,"391400 - Works - Construction, Repair & Maintenance"
Solihull MBC,Managed Growth and Communities,Highways & Transport Services,Balfour Beatty Living Places Ltd,24/03/2017,,4722.05,Contractors,"391400 - Works - Construction, Repair & Maintenance"
Solihull MBC,Managed Growth and Communities,Highways & Transport Services,Balfour Beatty Living Places Ltd,24/03/2017,,26851.13,Contractors,"391400 - Works - Construction, Repair & Maintenance"
Solihull MBC,Managed Growth and Communities,Highways & Transport Services,Balfour Beatty Living Places Ltd,24/03/2017,,79339.83,Contractors,"391400 - Works - Construction, Repair & Maintenance"
Solihull MBC,Managed Growth and Communities,Highways & Transport Services,Balfour Beatty Living Places Ltd,24/03/2017,,85760.18,Contractors,"391400 - Works - Construction, Repair & Maintenance"
Solihull MBC,Managed Growth and Communities,Highways & Transport Services,Balfour Beatty Living Places Ltd,24/03/2017,,48.38,Contractors,"391400 - Works - Construction, Repair & Maintenance"
Solihull MBC,Managed Growth and Communities,Highways & Transport Services,Balfour Beatty Living Places Ltd,24/03/2017,,30.69,Contractors,"391400 - Works - Construction, Repair & Maintenance"
Solihull MBC,Managed Growth and Communities,Highways & Transport Services,Balfour Beatty Living Places Ltd,24/03/2017,,33.48,Contractors,"391400 - Works - Construction, Repair & Maintenance"
Solihull MBC,Managed Growth and Communities,Highways & Transport Services,Balfour Beatty Living Places Ltd,24/03/2017,,38.31,Contractors,"391400 - Works - Construction, Repair & Maintenance"
Solihull MBC,Managed Growth and Communities,Highways & Transport Services,Balfour Beatty Living Places Ltd,24/03/2017,,201.42,Contractors,"391400 - Works - Construction, Repair & Maintenance"
Solihull MBC,Managed Growth and Communities,Highways & Transport Services,Balfour Beatty Living Places Ltd,24/03/2017,,308.61,Contractors,"391400 - Works - Construction, Repair & Maintenance"
Solihull MBC,Managed Growth and Communities,Highways & Transport Services,Balfour Beatty Living Places Ltd,24/03/2017,,4049.42,Contractors,"391400 - Works - Construction, Repair & Maintenance"
Solihull MBC,Managed Growth and Communities,Highways & Transport Services,Balfour Beatty Living Places Ltd,24/03/2017,,2761.09,Contractors,"391400 - Works - Construction, Repair & Maintenance"
Solihull MBC,Managed Growth and Communities,Planning & Development Services,Balfour Beatty Living Places Ltd,24/03/2017,,16508.36,Other Contracted Services,"391400 - Works - Construction, Repair & Maintenance"
Solihull MBC,Resources,Planning & Development Services,Balfour Beatty Living Places Ltd,24/03/2017,,6901.07,Other Contracted Services,"391400 - Works - Construction, Repair & Maintenance"
Solihull MBC,Managed Growth and Communities,Cultural & Related Services,Balfour Beatty Living Places Ltd,24/03/2017,,300.00,Other Contracted Services,"391400 - Works - Construction, Repair & Maintenance"
Solihull MBC,Children's Services - DSG Central.,Children & Education Services,Balsall Common Primary School,30/03/2017,,2788.98,Other Contracted Services,Not Yet Classified
Solihull MBC,Children's Services - DSG Central.,Children & Education Services,Balsall Common Primary School,30/03/2017,,6597.00,Other Contracted Services,Not Yet Classified
Solihull MBC,Children's Services - DSG Central.,Children & Education Services,Balsall Common Primary School,30/03/2017,,6597.00,Other Contracted Services,Not Yet Classified
Solihull MBC,Children's Services - DSG Central.,Children & Education Services,Balsall Common Primary School,30/03/2017,,6597.00,Other Contracted Services,Not Yet Classified
Solihull MBC,Children's Services - DSG Central.,Children & Education Services,Balsall Common Primary School,13/03/2017,,648.00,Other Contracted Services,Not Yet Classified
Solihull MBC,Children's Services & Skills,Children & Education Services,Balsall Common Primary School,07/03/2017,,20000.00,Grants,Not Yet Classified
Solihull MBC,Children's Services - DSG Central.,Children & Education Services,Balsall Common Primary School,30/03/2017,,34719.00,Other Contracted Services,Not Yet Classified
Solihull MBC,Children's Services - DSG Central.,Children & Education Services,Balsall Common Primary School,30/03/2017,,477.00,Other Contracted Services,Not Yet Classified
Solihull MBC,Children's Services - DSG Central.,Children & Education Services,BAM FM Ltd,27/03/2017,,306.49,BSF Unitary Charge,261600 - Human Resources - Travel & Subsistence
Solihull MBC,Resources,Corporate & Democratic Core,Banner Group Ltd,09/03/2017,,323.26,General Office Expenses,Not Yet Classified
Solihull MBC,Managed Growth and Communities,Environmental and Regulatory Services,Bannocks Solihull,13/03/2017,,262.10,Materials,120000 - Cemetery & Crematorium 
Solihull MBC,Children's Services - DSG Central.,Children & Education Services,Barbara Alsop,20/03/2017,,648.00,Grant & Subscription (SCITT),Not Yet Classified
Solihull MBC,Adult Social Care,Adult Social Care,Barchester Healthcare Homes Ltd,08/03/2017,,4400.00,ASC - Residential Care Permanent,321000 - Social Community Care Supplies & Services - Adult
Solihull MBC,Adult Social Care,Adult Social Care,Barchester Healthcare Homes Ltd,08/03/2017,,4157.56,ASC - Residential Care Permanent,321000 - Social Community Care Supplies & Services - Adult
Solihull MBC,Adult Social Care,Adult Social Care,Barchester Healthcare Homes Ltd,08/03/2017,,3872.00,ASC - Nursing Care Permanent,321000 - Social Community Care Supplies & Services - Adult
Solihull MBC,Adult Social Care,Adult Social Care,Barchester Healthcare Homes Ltd,09/03/2017,,4114.29,ASC - Residential Care Permanent,321000 - Social Community Care Supplies & Services - Adult
Solihull MBC,Adult Social Care,Adult Social Care,Barchester Healthcare Homes Ltd,09/03/2017,,4800.00,ASC - Residential Care Permanent,321000 - Social Community Care Supplies & Services - Adult
Solihull MBC,Adult Social Care,Adult Social Care,Barchester Healthcare Homes Ltd,09/03/2017,,1200.00,ASC - Residential Care Permanent,321000 - Social Community Care Supplies & Services - Adult
Solihull MBC,Managed Growth and Communities,Environmental and Regulatory Services,Barclays,10/03/2017,,232.26,Other Fees,Not Yet Classified
Solihull MBC,Managed Growth and Communities,Environmental and Regulatory Services,Barclays,10/03/2017,,50.00,Other Fees,Not Yet Classified
Solihull MBC,Adult Social Care,Cultural & Related Services,Barclays,10/03/2017,,1.05,Other Fees,Not Yet Classified
Solihull MBC,Adult Social Care,Cultural & Related Services,Barclays,10/03/2017,,25.00,Other Fees,Not Yet Classified
Solihull MBC,Resources,Central Services to the Public,Barclays,10/03/2017,,4157.76,Other Fees,Not Yet Classified
Solihull MBC,Resources,Central Services to the Public,Barclays,10/03/2017,,7.71,Other Fees,Not Yet Classified
Solihull MBC,Adult Social Care,Cultural & Related Services,Barclays,10/03/2017,,366.62,Other Fees,Not Yet Classified
Solihull MBC,Adult Social Care,Cultural & Related Services,Barclays,10/03/2017,,148.54,Other Fees,Not Yet Classified
Solihull MBC,Adult Social Care,Cultural & Related Services,Barclays,10/03/2017,,314.39,Other Fees,Not Yet Classified
Solihull MBC,Adult Social Care,Cultural & Related Services,Barclays,10/03/2017,,0.54,Other Fees,Not Yet Classified
Solihull MBC,Adult Social Care,Cultural & Related Services,Barclays,10/03/2017,,30.00,Other Fees,Not Yet Classified
Solihull MBC,Adult Social Care,Cultural & Related Services,Barclays,10/03/2017,,156.91,Other Fees,Not Yet Classified
Solihull MBC,Adult Social Care,Cultural & Related Services,Barclays,10/03/2017,,50.00,Other Fees,Not Yet Classified
Solihull MBC,Children's Services & Skills,Children & Education Services,Barnardo Services Ltd,27/03/2017,,3755.10,External Fostering,321100 - Social Community Care Supplies & Services - Children
Solihull MBC,Children's Services & Skills,Children & Education Services,Barnardo Services Ltd,27/03/2017,,3880.27,External Fostering,321100 - Social Community Care Supplies & Services - Children
Solihull MBC,Children's Services & Skills,Children & Education Services,Barnardo Services Ltd,27/03/2017,,3755.10,External Fostering,321100 - Social Community Care Supplies & Services - Children
Solihull MBC,Children's Services & Skills,Children & Education Services,Barnardo Services Ltd,27/03/2017,,3880.27,External Fostering,321100 - Social Community Care Supplies & Services - Children
Solihull MBC,Children's Services & Skills,Children & Education Services,Barnardo Services Ltd,27/03/2017,,3820.13,External Fostering,321100 - Social Community Care Supplies & Services - Children
Solihull MBC,Children's Services & Skills,Children & Education Services,Barnardo Services Ltd,27/03/2017,,3450.44,External Fostering,321100 - Social Community Care Supplies & Services - Children
Solihull MBC,Resources,Central Services to the Public,Barnardos Events,15/03/2017,,682.40,Training,Not Yet Classified
Solihull MBC,Children's Services & Skills,Children & Education Services,Barnardos Midlands,22/03/2017,,3880.27,External Fostering,321100 - Social Community Care Supplies & Services - Children
Solihull MBC,Children's Services & Skills,Children & Education Services,Barnardos Midlands,28/03/2017,,1437.42,External Fostering,321100 - Social Community Care Supplies & Services - Children
Solihull MBC,Children's Services & Skills,Children & Education Services,Barnardos Midlands,20/03/2017,,744.00,External Fostering,321100 - Social Community Care Supplies & Services - Children
Solihull MBC,Children's Services & Skills,Children & Education Services,Barnardos Midlands,10/03/2017,,2532.40,External Fostering,321100 - Social Community Care Supplies & Services - Children
Solihull MBC,Children's Services & Skills,Children & Education Services,Barnardos Midlands,10/03/2017,,2676.40,External Fostering,321100 - Social Community Care Supplies & Services - Children
Solihull MBC,Children's Services & Skills,Children & Education Services,Barnardos Midlands,20/03/2017,,2976.00,External Fostering,321100 - Social Community Care Supplies & Services - Children
Solihull MBC,Children's Services & Skills,Children & Education Services,Barnardos Midlands,20/03/2017,,2803.73,External Fostering,321100 - Social Community Care Supplies & Services - Children
Solihull MBC,Children's Services & Skills,Children & Education Services,Barnardos Midlands,20/03/2017,,2963.16,External Fostering,321100 - Social Community Care Supplies & Services - Children
Solihull MBC,Children's Services & Skills,Children & Education Services,Barnardos Midlands,20/03/2017,,3294.86,External Fostering,321100 - Social Community Care Supplies & Services - Children
Solihull MBC,Children's Services - DSG Central.,Children & Education Services,Barnhouse Nursey T/A Daycare At St Martins,20/03/2017,,450.00,Grant & Subscription (SCITT),321100 - Social Community Care Supplies & Services - Children
Solihull MBC,Children's Services - DSG Central.,Children & Education Services,Barnhouse Nursey T/A Daycare At St Martins,20/03/2017,,4296.24,Grant & Subscription (SCITT),321100 - Social Community Care Supplies & Services - Children
Solihull MBC,Children's Services - DSG Central.,Children & Education Services,Barnhouse Nursey T/A Daycare At St Martins,20/03/2017,,469.80,Grant & Subscription (SCITT),321100 - Social Community Care Supplies & Services - Children
Solihull MBC,Children's Services & Skills,Children & Education Services,Barrier One,20/03/2017,,3200.00,Contractors,Not Yet Classified
Solihull MBC,Children's Services & Skills,Children & Education Services,Barrier One,20/03/2017,,325.00,Contractors,Not Yet Classified
Solihull MBC,Children's Services & Skills,Children & Education Services,Barrier One,20/03/2017,,1300.00,Contractors,Not Yet Classified
Solihull MBC,Children's Services & Skills,Children & Education Services,Barrier One,20/03/2017,,-650.00,Contractors,Not Yet Classified
Solihull MBC,Adult Social Care,Adult Social Care,Barton Willmore Planning Partnership,21/03/2017,,8645.46,Consultants,Not Yet Classified
Solihull MBC,Adult Social Care,Adult Social Care,Beechcroft Residential Home,08/03/2017,,1520.00,ASC - Residential Care Permanent,321000 - Social Community Care Supplies & Services - Adult
Solihull MBC,Children's Services - DSG Central.,Children & Education Services,Beechwood Childcare,20/03/2017,,450.00,Grant & Subscription (SCITT),321100 - Social Community Care Supplies & Services - Children
Solihull MBC,Children's Services - DSG Central.,Children & Education Services,Beechwood Childcare,20/03/2017,,1437.50,Grant & Subscription (SCITT),321100 - Social Community Care Supplies & Services - Children
Solihull MBC,Children's Services - DSG Central.,Children & Education Services,Beechwood Childcare,20/03/2017,,1335.60,Grant & Subscription (SCITT),321100 - Social Community Care Supplies & Services - Children
Solihull MBC,Children's Services - DSG Central.,Children & Education Services,Beechwood Childcare,20/03/2017,,1944.00,Grant & Subscription (SCITT),321100 - Social Community Care Supplies & Services - Children
Solihull MBC,Children's Services - DSG Central.,Children & Education Services,Beechwood Childcare,20/03/2017,,2833.20,Grant & Subscription (SCITT),321100 - Social Community Care Supplies & Services - Children
Solihull MBC,Children's Services & Skills,Children & Education Services,Beechwood Childcare,09/03/2017,,628.50,Clients Expenses,321100 - Social Community Care Supplies & Services - Children
Solihull MBC,Children's Services - DSG Central.,Children & Education Services,Beechwood Childcare (Mill Lodge),20/03/2017,,4950.00,Grant & Subscription (SCITT),321100 - Social Community Care Supplies & Services - Children
Solihull MBC,Children's Services - DSG Central.,Children & Education Services,Beechwood Childcare (Mill Lodge),20/03/2017,,2631.60,Grant & Subscription (SCITT),321100 - Social Community Care Supplies & Services - Children
Solihull MBC,Children's Services - DSG Central.,Children & Education Services,Beechwood Childcare (Mill Lodge),20/03/2017,,648.00,Grant & Subscription (SCITT),321100 - Social Community Care Supplies & Services - Children
Solihull MBC,Adult Social Care,Adult Social Care,Ben Motors And Allied Trades Ben Fund,08/03/2017,,3820.00,ASC - Nursing Care Permanent,Not Yet Classified
Solihull MBC,Children's Services - DSG Central.,Children & Education Services,Bentley Heath Primary School Ac,23/03/2017,,3148.80,Other Contracted Services,Not Yet Classified
Solihull MBC,Children's Services - DSG Central.,Children & Education Services,Bentley Heath Primary School Ac,23/03/2017,,705.20,Other Contracted Services,Not Yet Classified
Solihull MBC,Children's Services - DSG Central.,Children & Education Services,Bentley Heath Primary School Ac,30/03/2017,,13352.00,Other Contracted Services,Not Yet Classified
Solihull MBC,Children's Services - DSG Central.,Children & Education Services,Bentley Heath Primary School Ac,30/03/2017,,95.00,Other Contracted Services,Not Yet Classified
Solihull MBC,Children's Services - DSG Central.,Children & Education Services,Berkswell Pre School Group,20/03/2017,,1782.00,Grant & Subscription (SCITT),Not Yet Classified
Solihull MBC,Adult Social Care,Adult Social Care,BES Rehab Ltd,27/03/2017,,772.00,Furniture & Equipment,Not Yet Classified
Solihull MBC,Managed Growth and Communities,Highways & Transport Services,BEW Electrical Distributors Ltd,08/03/2017,,555.75,Furniture & Equipment,"391111 - Works - Construction, Repair & Maintenance - Buildings - Repair & Maintenance"
Solihull MBC,Managed Growth and Communities,Highways & Transport Services,BEW Electrical Distributors Ltd,08/03/2017,,260.00,Furniture & Equipment,"391111 - Works - Construction, Repair & Maintenance - Buildings - Repair & Maintenance"
Solihull MBC,Managed Growth and Communities,Highways & Transport Services,BEW Electrical Distributors Ltd,27/03/2017,,317.00,Furniture & Equipment,"391111 - Works - Construction, Repair & Maintenance - Buildings - Repair & Maintenance"
Solihull MBC,Managed Growth and Communities,Highways & Transport Services,BEW Electrical Distributors Ltd,27/03/2017,,900.87,Furniture & Equipment,"391111 - Works - Construction, Repair & Maintenance - Buildings - Repair & Maintenance"
Solihull MBC,Adult Social Care,Adult Social Care,Bhm Autobodies Ltd,06/03/2017,,1450.37,Other Transport Costs,Not Yet Classified
Solihull MBC,Adult Social Care,Cultural & Related Services,Bhm Autobodies Ltd,03/03/2017,,358.39,Other Transport Costs,Not Yet Classified
Solihull MBC,Adult Social Care,Cultural & Related Services,Bhm Autobodies Ltd,07/03/2017,,1105.96,Other Transport Costs,Not Yet Classified
Solihull MBC,Adult Social Care,Cultural & Related Services,Bhm Autobodies Ltd,03/03/2017,,973.60,Other Transport Costs,Not Yet Classified
Solihull MBC,Adult Social Care,Cultural & Related Services,Bhm Autobodies Ltd,03/03/2017,,3.91,Other Transport Costs,Not Yet Classified
Solihull MBC,Adult Social Care,Cultural & Related Services,Bhm Autobodies Ltd,03/03/2017,,932.17,Other Transport Costs,Not Yet Classified
Solihull MBC,Adult Social Care,Cultural & Related Services,Bhm Autobodies Ltd,03/03/2017,,2.13,Other Transport Costs,Not Yet Classified
Solihull MBC,Children's Services - DSG Central.,Children & Education Services,Billy Bears Nursery,20/03/2017,,2290.00,Grant & Subscription (SCITT),321100 - Social Community Care Supplies & Services - Children
Solihull MBC,Children's Services - DSG Central.,Children & Education Services,Billy Bears Nursery,20/03/2017,,2664.00,Grant & Subscription (SCITT),321100 - Social Community Care Supplies & Services - Children
Solihull MBC,Children's Services - DSG Central.,Children & Education Services,Billy Bears Nursery,27/03/2017,,648.00,Grant & Subscription (SCITT),321100 - Social Community Care Supplies & Services - Children
Solihull MBC,Children's Services - DSG Central.,Children & Education Services,Billy Bears Nursery,20/03/2017,,849.60,Grant & Subscription (SCITT),321100 - Social Community Care Supplies & Services - Children
Solihull MBC,Adult Social Care,Adult Social Care,Bionicare,15/03/2017,,4768.00,ASC - Domiciliary Care,321000 - Social Community Care Supplies & Services - Adult
Solihull MBC,Managed Growth and Communities,Planning & Development Services,Birmingham Airport,06/03/2017,,1125.00,Room Hire/ Premises Hire,Not Yet Classified
Solihull MBC,Public Health & Commissioning,Adult Social Care,Birmingham And Solihull Mental Health Trust,24/03/2017,,750.00,Other Contracted Services,Not Yet Classified
Solihull MBC,Public Health & Commissioning,Adult Social Care,Birmingham And Solihull Mental Health Trust,24/03/2017,,850.00,Other Contracted Services,Not Yet Classified
Solihull MBC,Public Health & Commissioning,Adult Social Care,Birmingham And Solihull Mental Health Trust,24/03/2017,,975.00,Other Contracted Services,Not Yet Classified
Solihull MBC,Managed Growth and Communities,Environmental and Regulatory Services,Birmingham And Solihull Midweek Conservation Group,20/03/2017,,460.00,Maintenance Of Grounds,"391111 - Works - Construction, Repair & Maintenance - Buildings - Repair & Maintenance"
Solihull MBC,Managed Growth and Communities,Adult Social Care,Birmingham And Solihull Women's Aid,22/03/2017,,24600.00,Other Contracted Services,321000 - Social Community Care Supplies & Services - Adult
Solihull MBC,Adult Social Care,Adult Social Care,Birmingham And Solihull Women's Aid,28/03/2017,,450.00,Training,321000 - Social Community Care Supplies & Services - Adult
Solihull MBC,Managed Growth and Communities,Planning & Development Services,Birmingham City Council,02/03/2017,,1396.57,Grant & Subscription (SCITT),Not Yet Classified
Solihull MBC,Children's Services - DSG Central.,Children & Education Services,Birmingham City Council,02/03/2017,,1298.02,Other Contracted Services,Not Yet Classified
Solihull MBC,Children's Services - DSG Central.,Children & Education Services,Birmingham City Council,06/03/2017,,3538.94,Other Contracted Services,Not Yet Classified
Solihull MBC,Children's Services - DSG Central.,Children & Education Services,Birmingham City Council,06/03/2017,,272.00,Other Contracted Services,Not Yet Classified
Solihull MBC,Children's Services - DSG Central.,Children & Education Services,Birmingham City Council,06/03/2017,,352.00,Other Contracted Services,Not Yet Classified
Solihull MBC,Children's Services - DSG Central.,Children & Education Services,Birmingham City Council,30/03/2017,,4144.00,Other Contracted Services,Not Yet Classified
Solihull MBC,Resources,Central Services to the Public,Birmingham City Council,20/03/2017,,7299.31,Postage & Courier Services,Not Yet Classified
Solihull MBC,Children's Services - DSG Central.,Children & Education Services,Birmingham City Council,30/03/2017,,3169.00,Other Contracted Services,Not Yet Classified
Solihull MBC,Managed Growth and Communities,Other Housing Services,Birmingham City Council,20/03/2017,,5776.20,Professional Fees,Not Yet Classified
Solihull MBC,Resources,Central Services to the Public,Birmingham City Council,30/03/2017,,4136.99,Other Fees,Not Yet Classified
Solihull MBC,Children's Services & Skills,Children & Education Services,Birmingham City Council,28/03/2017,,2950.00,Transport-Contract Hire,Not Yet Classified
Solihull MBC,Resources,Central Services to the Public,Birmingham City Council,22/03/2017,,3956.19,Postage & Courier Services,Not Yet Classified
Solihull MBC,Resources,Central Services to the Public,Birmingham City Council,16/03/2017,,2098541.00,Parish Precepts,Not Yet Classified
Solihull MBC,Managed Growth and Communities,Planning & Development Services,Birmingham City Council,16/03/2017,,7955.30,Grant & Subscription (SCITT),Not Yet Classified
Solihull MBC,Children's Services & Skills,Children & Education Services,Birmingham City Council Shared Services,31/03/2017,,548.50,Clients Transport Costs,Not Yet Classified
Solihull MBC,Resources,Central Services to the Public,Birmingham City Football Club PLC,24/03/2017,,847.77,Training,Not Yet Classified
Solihull MBC,Managed Growth and Communities,Planning & Development Services,Birmingham City University,02/03/2017,,1279.77,Grant & Subscription (SCITT),171011 - Education - School Services
Solihull MBC,Adult Social Care,Adult Social Care,Birmingham Community Healthcare NHS,21/03/2017,,3970.78,Furniture & Equipment,Not Yet Classified
Solihull MBC,Adult Social Care,Adult Social Care,Birmingham Community Healthcare NHS,29/03/2017,,3335.25,Furniture & Equipment,Not Yet Classified
Solihull MBC,Adult Social Care,Adult Social Care,Birmingham Community Healthcare NHS,21/03/2017,,-661.80,Furniture & Equipment,Not Yet Classified
Solihull MBC,Adult Social Care,Adult Social Care,Birmingham Focus,08/03/2017,,2200.00,ASC - Day Care,321000 - Social Community Care Supplies & Services - Adult
Solihull MBC,Adult Social Care,Adult Social Care,Birmingham Focus,08/03/2017,,2200.00,ASC - Day Care,321000 - Social Community Care Supplies & Services - Adult
Solihull MBC,Children's Services & Skills,Children & Education Services,Birmingham Multicare,29/03/2017,,370.80,Clients Expenses,321100 - Social Community Care Supplies & Services - Children
Solihull MBC,Adult Social Care,Adult Social Care,Birmingham Womens Aid,07/03/2017,,600.00,Training,321000 - Social Community Care Supplies & Services - Adult
Solihull MBC,Adult Social Care,Adult Social Care,BJCC,15/03/2017,,2456.32,ASC - Residential Care Permanent,Not Yet Classified
Solihull MBC,Adult Social Care,Adult Social Care,BJCC,15/03/2017,,2456.32,ASC - Residential Care Permanent,Not Yet Classified
Solihull MBC,Children's Services - DSG Central.,Children & Education Services,Blackwater Academy,01/03/2017,,4660.00,Other Contracted Services,Not Yet Classified
Solihull MBC,Children's Services - DSG Central.,Children & Education Services,Blackwater Academy,22/03/2017,,4500.00,Other Contracted Services,Not Yet Classified
Solihull MBC,Children's Services & Skills,Children & Education Services,Blackwater Academy,22/03/2017,,4560.00,Clients Transport Costs,Not Yet Classified
Solihull MBC,Children's Services - DSG Central.,Children & Education Services,Blossoms Pre-School Limited,20/03/2017,,858.60,Grant & Subscription (SCITT),Not Yet Classified
Solihull MBC,Resources,Children & Education Services,Blue Arrow Limited,14/03/2017,,249.75,Agency Staff,Not Yet Classified
Solihull MBC,Resources,Children & Education Services,Blue Arrow Limited,03/03/2017,,303.75,Agency Staff,Not Yet Classified
Solihull MBC,Resources,Children & Education Services,Blue Arrow Limited,22/03/2017,,229.50,Agency Staff,Not Yet Classified
Solihull MBC,Managed Growth and Communities,Planning & Development Services,Blue Orchid,09/03/2017,,29396.79,Professional Fees,150000 - Consultancy
Solihull MBC,Managed Growth and Communities,Planning & Development Services,Blue Orchid,09/03/2017,,29396.79,Professional Fees,150000 - Consultancy
Solihull MBC,Managed Growth and Communities,Highways & Transport Services,Blue Triangle Training,20/03/2017,,2100.00,Training,Not Yet Classified
Solihull MBC,Adult Social Care,Adult Social Care,Bluebird Care (Solihull),15/03/2017,,876.96,ASC - Home Care Support Services,Not Yet Classified
Solihull MBC,Public Health & Commissioning,Adult Social Care,Boots The Chemist,09/03/2017,,34.68,Other Contracted Services,Not Yet Classified
Solihull MBC,Public Health & Commissioning,Adult Social Care,Boots The Chemist,09/03/2017,,404.12,Other Contracted Services,Not Yet Classified
Solihull MBC,Public Health & Commissioning,Adult Social Care,Boots The Chemist,10/03/2017,,189.34,Other Contracted Services,Not Yet Classified
Solihull MBC,Public Health & Commissioning,Adult Social Care,Boots The Chemist,10/03/2017,,366.95,Other Contracted Services,Not Yet Classified
Solihull MBC,Public Health & Commissioning,Adult Social Care,Boots The Chemist,10/03/2017,,371.91,Other Contracted Services,Not Yet Classified
Solihull MBC,Public Health & Commissioning,Adult Social Care,Boots The Chemist,20/03/2017,,122.46,Other Contracted Services,Not Yet Classified
Solihull MBC,Public Health & Commissioning,Adult Social Care,Boots The Chemist,20/03/2017,,122.70,Other Contracted Services,Not Yet Classified
Solihull MBC,Public Health & Commissioning,Adult Social Care,Boots The Chemist,20/03/2017,,143.20,Other Contracted Services,Not Yet Classified
Solihull MBC,Public Health & Commissioning,Adult Social Care,Boots The Chemist,20/03/2017,,64.58,Other Contracted Services,Not Yet Classified
Solihull MBC,Public Health & Commissioning,Adult Social Care,Boots The Chemist,07/03/2017,,95.29,Other Contracted Services,Not Yet Classified
Solihull MBC,Public Health & Commissioning,Adult Social Care,Boots The Chemist,07/03/2017,,126.79,Other Contracted Services,Not Yet Classified
Solihull MBC,Public Health & Commissioning,Adult Social Care,Boots The Chemist,07/03/2017,,256.20,Other Contracted Services,Not Yet Classified
Solihull MBC,Public Health & Commissioning,Adult Social Care,Boots The Chemist,09/03/2017,,78.57,Other Contracted Services,Not Yet Classified
Solihull MBC,Public Health & Commissioning,Adult Social Care,Boots The Chemist,09/03/2017,,347.98,Other Contracted Services,Not Yet Classified
Solihull MBC,Resources,Other Housing Services,Borshch Electric,08/03/2017,,479.17,Clients Expenses,110000 - Catering
Solihull MBC,Resources,Other Housing Services,Borshch Electric,17/03/2017,,291.66,Clients Expenses,110000 - Catering
Solihull MBC,Children's Services - DSG Central.,Children & Education Services,Bosworth Wood Neighbourhood Nursery-Lawnswood,20/03/2017,,10725.00,Grant & Subscription (SCITT),321100 - Social Community Care Supplies & Services - Children
Solihull MBC,Children's Services - DSG Central.,Children & Education Services,Bosworth Wood Neighbourhood Nursery-Lawnswood,20/03/2017,,5500.80,Grant & Subscription (SCITT),321100 - Social Community Care Supplies & Services - Children
Solihull MBC,Children's Services - DSG Central.,Children & Education Services,Bosworth Wood Neighbourhood Nursery-Lawnswood,27/03/2017,,648.00,Grant & Subscription (SCITT),321100 - Social Community Care Supplies & Services - Children
Solihull MBC,Children's Services - DSG Central.,Children & Education Services,Bosworth Wood Neighbourhood Nursery-Lawnswood,20/03/2017,,1497.60,Grant & Subscription (SCITT),321100 - Social Community Care Supplies & Services - Children
Solihull MBC,Adult Social Care,Adult Social Care,Bournville Village Trust,15/03/2017,,2594.16,ASC - Nursing Care Permanent,171011 - Education - School Services
Solihull MBC,Adult Social Care,Adult Social Care,Bowood Care Homes Limited (Adept Group),15/03/2017,,1976.00,ASC - Residential Care Permanent,Not Yet Classified
Solihull MBC,Adult Social Care,Adult Social Care,Bowood Care Homes Limited (Adept Group),08/03/2017,,1976.00,ASC - Residential Care Permanent,Not Yet Classified
Solihull MBC,Adult Social Care,Adult Social Care,Bowood Care Homes Limited (Adept Group),08/03/2017,,1688.72,ASC - Nursing Care Permanent,Not Yet Classified
Solihull MBC,Resources,Children & Education Services,Brake Bros Foodservice Ltd,21/03/2017,,512.67,Catering Provisions,110000 - Catering
Solihull MBC,Resources,Children & Education Services,Brake Bros Foodservice Ltd,21/03/2017,,470.87,Catering Provisions,110000 - Catering
Solihull MBC,Resources,Children & Education Services,Brake Bros Foodservice Ltd,21/03/2017,,473.45,Catering Provisions,110000 - Catering
Solihull MBC,Resources,Children & Education Services,Brake Bros Foodservice Ltd,21/03/2017,,224.16,Catering Provisions,110000 - Catering
Solihull MBC,Resources,Children & Education Services,Brake Bros Foodservice Ltd,21/03/2017,,217.99,Catering Provisions,110000 - Catering
Solihull MBC,Resources,Children & Education Services,Brake Bros Foodservice Ltd,21/03/2017,,126.28,Catering Provisions,110000 - Catering
Solihull MBC,Resources,Children & Education Services,Brake Bros Foodservice Ltd,21/03/2017,,337.80,Catering Provisions,110000 - Catering
Solihull MBC,Resources,Children & Education Services,Brake Bros Foodservice Ltd,21/03/2017,,226.18,Catering Provisions,110000 - Catering
Solihull MBC,Resources,Children & Education Services,Brake Bros Foodservice Ltd,21/03/2017,,242.61,Catering Provisions,110000 - Catering
Solihull MBC,Resources,Children & Education Services,Brake Bros Foodservice Ltd,21/03/2017,,401.52,Catering Provisions,110000 - Catering
Solihull MBC,Resources,Children & Education Services,Brake Bros Foodservice Ltd,21/03/2017,,501.51,Catering Provisions,110000 - Catering
Solihull MBC,Resources,Children & Education Services,Brake Bros Foodservice Ltd,21/03/2017,,306.71,Catering Provisions,110000 - Catering
Solihull MBC,Resources,Children & Education Services,Brake Bros Foodservice Ltd,21/03/2017,,341.78,Catering Provisions,110000 - Catering
Solihull MBC,Resources,Children & Education Services,Brake Bros Foodservice Ltd,21/03/2017,,381.85,Catering Provisions,110000 - Catering
Solihull MBC,Resources,Children & Education Services,Brake Bros Foodservice Ltd,21/03/2017,,276.76,Catering Provisions,110000 - Catering
Solihull MBC,Resources,Children & Education Services,Brake Bros Foodservice Ltd,21/03/2017,,589.85,Catering Provisions,110000 - Catering
Solihull MBC,Resources,Children & Education Services,Brake Bros Foodservice Ltd,21/03/2017,,142.36,Catering Provisions,110000 - Catering
Solihull MBC,Resources,Children & Education Services,Brake Bros Foodservice Ltd,21/03/2017,,269.16,Catering Provisions,110000 - Catering
Solihull MBC,Resources,Children & Education Services,Brake Bros Foodservice Ltd,21/03/2017,,393.88,Catering Provisions,110000 - Catering
Solihull MBC,Resources,Children & Education Services,Brake Bros Foodservice Ltd,21/03/2017,,355.94,Catering Provisions,110000 - Catering
Solihull MBC,Resources,Children & Education Services,Brake Bros Foodservice Ltd,21/03/2017,,270.63,Catering Provisions,110000 - Catering
Solihull MBC,Resources,Children & Education Services,Brake Bros Foodservice Ltd,21/03/2017,,134.59,Catering Provisions,110000 - Catering
Solihull MBC,Resources,Children & Education Services,Brake Bros Foodservice Ltd,21/03/2017,,338.45,Catering Provisions,110000 - Catering
Solihull MBC,Resources,Children & Education Services,Brake Bros Foodservice Ltd,21/03/2017,,523.05,Catering Provisions,110000 - Catering
Solihull MBC,Resources,Children & Education Services,Brake Bros Foodservice Ltd,21/03/2017,,271.59,Catering Provisions,110000 - Catering
Solihull MBC,Resources,Children & Education Services,Brake Bros Foodservice Ltd,21/03/2017,,250.72,Catering Provisions,110000 - Catering
Solihull MBC,Resources,Children & Education Services,Brake Bros Foodservice Ltd,21/03/2017,,228.03,Catering Provisions,110000 - Catering
Solihull MBC,Resources,Children & Education Services,Brake Bros Foodservice Ltd,21/03/2017,,396.93,Catering Provisions,110000 - Catering
Solihull MBC,Resources,Children & Education Services,Brake Bros Foodservice Ltd,21/03/2017,,243.34,Catering Provisions,110000 - Catering
Solihull MBC,Resources,Children & Education Services,Brake Bros Foodservice Ltd,21/03/2017,,239.01,Catering Provisions,110000 - Catering
Solihull MBC,Resources,Children & Education Services,Brake Bros Foodservice Ltd,21/03/2017,,208.02,Catering Provisions,110000 - Catering
Solihull MBC,Resources,Children & Education Services,Brake Bros Foodservice Ltd,21/03/2017,,407.16,Catering Provisions,110000 - Catering
Solihull MBC,Resources,Children & Education Services,Brake Bros Foodservice Ltd,21/03/2017,,562.38,Catering Provisions,110000 - Catering
Solihull MBC,Resources,Children & Education Services,Brake Bros Foodservice Ltd,21/03/2017,,696.15,Catering Provisions,110000 - Catering
Solihull MBC,Resources,Children & Education Services,Brake Bros Foodservice Ltd,21/03/2017,,493.29,Catering Provisions,110000 - Catering
Solihull MBC,Resources,Children & Education Services,Brake Bros Foodservice Ltd,21/03/2017,,324.13,Catering Provisions,110000 - Catering
Solihull MBC,Resources,Children & Education Services,Brake Bros Foodservice Ltd,21/03/2017,,469.82,Catering Provisions,110000 - Catering
Solihull MBC,Resources,Children & Education Services,Brake Bros Foodservice Ltd,21/03/2017,,677.95,Catering Provisions,110000 - Catering
Solihull MBC,Resources,Children & Education Services,Brake Bros Foodservice Ltd,21/03/2017,,281.96,Catering Provisions,110000 - Catering
Solihull MBC,Resources,Children & Education Services,Brake Bros Foodservice Ltd,21/03/2017,,119.74,Catering Provisions,110000 - Catering
Solihull MBC,Resources,Children & Education Services,Brake Bros Foodservice Ltd,21/03/2017,,332.31,Catering Provisions,110000 - Catering
Solihull MBC,Resources,Children & Education Services,Brake Bros Foodservice Ltd,21/03/2017,,451.91,Catering Provisions,110000 - Catering
Solihull MBC,Resources,Children & Education Services,Brake Bros Foodservice Ltd,21/03/2017,,227.70,Catering Provisions,110000 - Catering
Solihull MBC,Resources,Children & Education Services,Brake Bros Foodservice Ltd,21/03/2017,,338.42,Catering Provisions,110000 - Catering
Solihull MBC,Resources,Children & Education Services,Brake Bros Foodservice Ltd,21/03/2017,,213.42,Catering Provisions,110000 - Catering
Solihull MBC,Resources,Children & Education Services,Brake Bros Foodservice Ltd,21/03/2017,,277.88,Catering Provisions,110000 - Catering
Solihull MBC,Resources,Children & Education Services,Brake Bros Foodservice Ltd,21/03/2017,,170.07,Catering Provisions,110000 - Catering
Solihull MBC,Resources,Children & Education Services,Brake Bros Foodservice Ltd,21/03/2017,,370.80,Catering Provisions,110000 - Catering
Solihull MBC,Resources,Children & Education Services,Brake Bros Foodservice Ltd,21/03/2017,,442.76,Catering Provisions,110000 - Catering
Solihull MBC,Resources,Children & Education Services,Brake Bros Foodservice Ltd,21/03/2017,,247.01,Catering Provisions,110000 - Catering
Solihull MBC,Resources,Children & Education Services,Brake Bros Foodservice Ltd,21/03/2017,,375.57,Catering Provisions,110000 - Catering
Solihull MBC,Resources,Children & Education Services,Brake Bros Foodservice Ltd,21/03/2017,,182.79,Catering Provisions,110000 - Catering
Solihull MBC,Resources,Children & Education Services,Brake Bros Foodservice Ltd,21/03/2017,,216.97,Catering Provisions,110000 - Catering
Solihull MBC,Resources,Children & Education Services,Brake Bros Foodservice Ltd,21/03/2017,,240.49,Catering Provisions,110000 - Catering
Solihull MBC,Resources,Children & Education Services,Brake Bros Foodservice Ltd,21/03/2017,,363.88,Catering Provisions,110000 - Catering
Solihull MBC,Resources,Children & Education Services,Brake Bros Foodservice Ltd,21/03/2017,,19.44,Catering Provisions,110000 - Catering
Solihull MBC,Resources,Children & Education Services,Brake Bros Foodservice Ltd,21/03/2017,,251.41,Catering Provisions,110000 - Catering
Solihull MBC,Resources,Children & Education Services,Brake Bros Foodservice Ltd,21/03/2017,,389.38,Catering Provisions,110000 - Catering
Solihull MBC,Resources,Children & Education Services,Brake Bros Foodservice Ltd,21/03/2017,,267.13,Catering Provisions,110000 - Catering
Solihull MBC,Resources,Children & Education Services,Brake Bros Foodservice Ltd,21/03/2017,,304.11,Catering Provisions,110000 - Catering
Solihull MBC,Resources,Children & Education Services,Brake Bros Foodservice Ltd,21/03/2017,,612.86,Catering Provisions,110000 - Catering
Solihull MBC,Resources,Children & Education Services,Brake Bros Foodservice Ltd,21/03/2017,,300.43,Catering Provisions,110000 - Catering
Solihull MBC,Resources,Children & Education Services,Brake Bros Foodservice Ltd,21/03/2017,,304.78,Catering Provisions,110000 - Catering
Solihull MBC,Resources,Children & Education Services,Brake Bros Foodservice Ltd,21/03/2017,,230.06,Catering Provisions,110000 - Catering
Solihull MBC,Resources,Children & Education Services,Brake Bros Foodservice Ltd,21/03/2017,,499.98,Catering Provisions,110000 - Catering
Solihull MBC,Resources,Children & Education Services,Brake Bros Foodservice Ltd,21/03/2017,,434.26,Catering Provisions,110000 - Catering
Solihull MBC,Resources,Children & Education Services,Brake Bros Foodservice Ltd,21/03/2017,,127.92,Catering Provisions,110000 - Catering
Solihull MBC,Resources,Children & Education Services,Brake Bros Foodservice Ltd,21/03/2017,,279.18,Catering Provisions,110000 - Catering
Solihull MBC,Resources,Children & Education Services,Brake Bros Foodservice Ltd,21/03/2017,,447.16,Catering Provisions,110000 - Catering
Solihull MBC,Resources,Children & Education Services,Brake Bros Foodservice Ltd,21/03/2017,,205.30,Catering Provisions,110000 - Catering
Solihull MBC,Resources,Children & Education Services,Brake Bros Foodservice Ltd,21/03/2017,,411.54,Catering Provisions,110000 - Catering
Solihull MBC,Resources,Children & Education Services,Brake Bros Foodservice Ltd,21/03/2017,,232.32,Catering Provisions,110000 - Catering
Solihull MBC,Resources,Children & Education Services,Brake Bros Foodservice Ltd,21/03/2017,,410.31,Catering Provisions,110000 - Catering
Solihull MBC,Resources,Children & Education Services,Brake Bros Foodservice Ltd,21/03/2017,,160.45,Catering Provisions,110000 - Catering
Solihull MBC,Resources,Children & Education Services,Brake Bros Foodservice Ltd,21/03/2017,,362.93,Catering Provisions,110000 - Catering
Solihull MBC,Resources,Children & Education Services,Brake Bros Foodservice Ltd,21/03/2017,,250.58,Catering Provisions,110000 - Catering
Solihull MBC,Resources,Children & Education Services,Brake Bros Foodservice Ltd,21/03/2017,,341.23,Catering Provisions,110000 - Catering
Solihull MBC,Resources,Children & Education Services,Brake Bros Foodservice Ltd,21/03/2017,,290.74,Catering Provisions,110000 - Catering
Solihull MBC,Resources,Children & Education Services,Brake Bros Foodservice Ltd,21/03/2017,,272.41,Catering Provisions,110000 - Catering
Solihull MBC,Resources,Children & Education Services,Brake Bros Foodservice Ltd,21/03/2017,,332.76,Catering Provisions,110000 - Catering
Solihull MBC,Resources,Children & Education Services,Brake Bros Foodservice Ltd,21/03/2017,,399.77,Catering Provisions,110000 - Catering
Solihull MBC,Resources,Children & Education Services,Brake Bros Foodservice Ltd,21/03/2017,,435.65,Catering Provisions,110000 - Catering
Solihull MBC,Resources,Children & Education Services,Brake Bros Foodservice Ltd,21/03/2017,,255.50,Catering Provisions,110000 - Catering
Solihull MBC,Resources,Children & Education Services,Brake Bros Foodservice Ltd,21/03/2017,,225.72,Catering Provisions,110000 - Catering
Solihull MBC,Resources,Children & Education Services,Brake Bros Foodservice Ltd,21/03/2017,,257.65,Catering Provisions,110000 - Catering
Solihull MBC,Resources,Children & Education Services,Brake Bros Foodservice Ltd,21/03/2017,,394.71,Catering Provisions,110000 - Catering
Solihull MBC,Resources,Children & Education Services,Brake Bros Foodservice Ltd,21/03/2017,,228.88,Catering Provisions,110000 - Catering
Solihull MBC,Resources,Children & Education Services,Brake Bros Foodservice Ltd,21/03/2017,,336.18,Catering Provisions,110000 - Catering
Solihull MBC,Resources,Children & Education Services,Brake Bros Foodservice Ltd,21/03/2017,,376.91,Catering Provisions,110000 - Catering
Solihull MBC,Resources,Children & Education Services,Brake Bros Foodservice Ltd,21/03/2017,,266.87,Catering Provisions,110000 - Catering
Solihull MBC,Resources,Children & Education Services,Brake Bros Foodservice Ltd,21/03/2017,,182.15,Catering Provisions,110000 - Catering
Solihull MBC,Resources,Children & Education Services,Brake Bros Foodservice Ltd,21/03/2017,,2.05,Catering Provisions,110000 - Catering
Solihull MBC,Resources,Children & Education Services,Brake Bros Foodservice Ltd,21/03/2017,,181.52,Catering Provisions,110000 - Catering
Solihull MBC,Resources,Children & Education Services,Brake Bros Foodservice Ltd,21/03/2017,,499.62,Catering Provisions,110000 - Catering
Solihull MBC,Resources,Children & Education Services,Brake Bros Foodservice Ltd,21/03/2017,,219.61,Catering Provisions,110000 - Catering
Solihull MBC,Resources,Children & Education Services,Brake Bros Foodservice Ltd,21/03/2017,,252.84,Catering Provisions,110000 - Catering
Solihull MBC,Resources,Children & Education Services,Brake Bros Foodservice Ltd,21/03/2017,,262.85,Catering Provisions,110000 - Catering
Solihull MBC,Resources,Children & Education Services,Brake Bros Foodservice Ltd,21/03/2017,,346.79,Catering Provisions,110000 - Catering
Solihull MBC,Resources,Children & Education Services,Brake Bros Foodservice Ltd,21/03/2017,,32.36,Catering Provisions,110000 - Catering
Solihull MBC,Resources,Children & Education Services,Brake Bros Foodservice Ltd,21/03/2017,,42.22,Catering Provisions,110000 - Catering
Solihull MBC,Resources,Children & Education Services,Brake Bros Foodservice Ltd,21/03/2017,,235.85,Catering Provisions,110000 - Catering
Solihull MBC,Resources,Children & Education Services,Brake Bros Foodservice Ltd,21/03/2017,,170.31,Catering Provisions,110000 - Catering
Solihull MBC,Resources,Children & Education Services,Brake Bros Foodservice Ltd,21/03/2017,,434.87,Catering Provisions,110000 - Catering
Solihull MBC,Resources,Children & Education Services,Brake Bros Foodservice Ltd,21/03/2017,,15.82,Catering Provisions,110000 - Catering
Solihull MBC,Resources,Children & Education Services,Brake Bros Foodservice Ltd,21/03/2017,,187.77,Catering Provisions,110000 - Catering
Solihull MBC,Resources,Children & Education Services,Brake Bros Foodservice Ltd,21/03/2017,,30.53,Catering Provisions,110000 - Catering
Solihull MBC,Resources,Children & Education Services,Brake Bros Foodservice Ltd,21/03/2017,,722.98,Catering Provisions,110000 - Catering
Solihull MBC,Resources,Children & Education Services,Brake Bros Foodservice Ltd,21/03/2017,,436.67,Catering Provisions,110000 - Catering
Solihull MBC,Resources,Children & Education Services,Brake Bros Foodservice Ltd,21/03/2017,,835.17,Catering Provisions,110000 - Catering
Solihull MBC,Resources,Children & Education Services,Brake Bros Foodservice Ltd,21/03/2017,,676.68,Catering Provisions,110000 - Catering
Solihull MBC,Resources,Children & Education Services,Brake Bros Foodservice Ltd,21/03/2017,,196.10,Catering Provisions,110000 - Catering
Solihull MBC,Resources,Children & Education Services,Brake Bros Foodservice Ltd,21/03/2017,,504.30,Catering Provisions,110000 - Catering
Solihull MBC,Resources,Children & Education Services,Brake Bros Foodservice Ltd,21/03/2017,,223.95,Catering Provisions,110000 - Catering
Solihull MBC,Resources,Children & Education Services,Brake Bros Foodservice Ltd,21/03/2017,,226.05,Catering Provisions,110000 - Catering
Solihull MBC,Resources,Children & Education Services,Brake Bros Foodservice Ltd,21/03/2017,,268.10,Catering Provisions,110000 - Catering
Solihull MBC,Resources,Children & Education Services,Brake Bros Foodservice Ltd,21/03/2017,,438.33,Catering Provisions,110000 - Catering
Solihull MBC,Resources,Children & Education Services,Brake Bros Foodservice Ltd,21/03/2017,,42.22,Catering Provisions,110000 - Catering
Solihull MBC,Resources,Children & Education Services,Brake Bros Foodservice Ltd,21/03/2017,,213.16,Catering Provisions,110000 - Catering
Solihull MBC,Resources,Children & Education Services,Brake Bros Foodservice Ltd,21/03/2017,,249.45,Catering Provisions,110000 - Catering
Solihull MBC,Resources,Children & Education Services,Brake Bros Foodservice Ltd,21/03/2017,,181.56,Catering Provisions,110000 - Catering
Solihull MBC,Resources,Children & Education Services,Brake Bros Foodservice Ltd,21/03/2017,,92.91,Catering Provisions,110000 - Catering
Solihull MBC,Resources,Children & Education Services,Brake Bros Foodservice Ltd,21/03/2017,,147.97,Catering Provisions,110000 - Catering
Solihull MBC,Resources,Children & Education Services,Brake Bros Foodservice Ltd,21/03/2017,,208.70,Catering Provisions,110000 - Catering
Solihull MBC,Resources,Children & Education Services,Brake Bros Foodservice Ltd,21/03/2017,,265.08,Catering Provisions,110000 - Catering
Solihull MBC,Resources,Children & Education Services,Brake Bros Foodservice Ltd,21/03/2017,,162.63,Catering Provisions,110000 - Catering
Solihull MBC,Resources,Children & Education Services,Brake Bros Foodservice Ltd,14/03/2017,,317.46,Catering Provisions,110000 - Catering
Solihull MBC,Resources,Children & Education Services,Brake Bros Foodservice Ltd,14/03/2017,,434.77,Catering Provisions,110000 - Catering
Solihull MBC,Resources,Children & Education Services,Brake Bros Foodservice Ltd,14/03/2017,,267.78,Catering Provisions,110000 - Catering
Solihull MBC,Resources,Children & Education Services,Brake Bros Foodservice Ltd,14/03/2017,,161.23,Catering Provisions,110000 - Catering
Solihull MBC,Resources,Children & Education Services,Brake Bros Foodservice Ltd,14/03/2017,,224.83,Catering Provisions,110000 - Catering
Solihull MBC,Resources,Children & Education Services,Brake Bros Foodservice Ltd,14/03/2017,,289.92,Catering Provisions,110000 - Catering
Solihull MBC,Resources,Children & Education Services,Brake Bros Foodservice Ltd,14/03/2017,,243.79,Catering Provisions,110000 - Catering
Solihull MBC,Resources,Children & Education Services,Brake Bros Foodservice Ltd,14/03/2017,,179.05,Catering Provisions,110000 - Catering
Solihull MBC,Resources,Children & Education Services,Brake Bros Foodservice Ltd,14/03/2017,,172.78,Catering Provisions,110000 - Catering
Solihull MBC,Resources,Children & Education Services,Brake Bros Foodservice Ltd,14/03/2017,,264.26,Catering Provisions,110000 - Catering
Solihull MBC,Resources,Children & Education Services,Brake Bros Foodservice Ltd,14/03/2017,,553.46,Catering Provisions,110000 - Catering
Solihull MBC,Resources,Children & Education Services,Brake Bros Foodservice Ltd,14/03/2017,,175.88,Catering Provisions,110000 - Catering
Solihull MBC,Resources,Children & Education Services,Brake Bros Foodservice Ltd,14/03/2017,,215.86,Catering Provisions,110000 - Catering
Solihull MBC,Resources,Children & Education Services,Brake Bros Foodservice Ltd,14/03/2017,,296.84,Catering Provisions,110000 - Catering
Solihull MBC,Resources,Children & Education Services,Brake Bros Foodservice Ltd,14/03/2017,,208.51,Catering Provisions,110000 - Catering
Solihull MBC,Resources,Children & Education Services,Brake Bros Foodservice Ltd,14/03/2017,,246.59,Catering Provisions,110000 - Catering
Solihull MBC,Resources,Children & Education Services,Brake Bros Foodservice Ltd,14/03/2017,,157.97,Catering Provisions,110000 - Catering
Solihull MBC,Resources,Children & Education Services,Brake Bros Foodservice Ltd,14/03/2017,,104.57,Catering Provisions,110000 - Catering
Solihull MBC,Resources,Children & Education Services,Brake Bros Foodservice Ltd,14/03/2017,,342.44,Catering Provisions,110000 - Catering
Solihull MBC,Resources,Children & Education Services,Brake Bros Foodservice Ltd,14/03/2017,,402.39,Catering Provisions,110000 - Catering
Solihull MBC,Resources,Children & Education Services,Brake Bros Foodservice Ltd,14/03/2017,,334.42,Catering Provisions,110000 - Catering
Solihull MBC,Resources,Children & Education Services,Brake Bros Foodservice Ltd,14/03/2017,,163.21,Catering Provisions,110000 - Catering
Solihull MBC,Resources,Children & Education Services,Brake Bros Foodservice Ltd,14/03/2017,,260.64,Catering Provisions,110000 - Catering
Solihull MBC,Resources,Children & Education Services,Brake Bros Foodservice Ltd,14/03/2017,,443.40,Catering Provisions,110000 - Catering
Solihull MBC,Resources,Children & Education Services,Brake Bros Foodservice Ltd,14/03/2017,,226.34,Catering Provisions,110000 - Catering
Solihull MBC,Resources,Children & Education Services,Brake Bros Foodservice Ltd,14/03/2017,,385.69,Catering Provisions,110000 - Catering
Solihull MBC,Resources,Children & Education Services,Brake Bros Foodservice Ltd,14/03/2017,,203.79,Catering Provisions,110000 - Catering
Solihull MBC,Resources,Children & Education Services,Brake Bros Foodservice Ltd,14/03/2017,,155.31,Catering Provisions,110000 - Catering
Solihull MBC,Resources,Children & Education Services,Brake Bros Foodservice Ltd,14/03/2017,,362.99,Catering Provisions,110000 - Catering
Solihull MBC,Resources,Children & Education Services,Brake Bros Foodservice Ltd,14/03/2017,,260.89,Catering Provisions,110000 - Catering
Solihull MBC,Resources,Children & Education Services,Brake Bros Foodservice Ltd,14/03/2017,,374.21,Catering Provisions,110000 - Catering
Solihull MBC,Resources,Children & Education Services,Brake Bros Foodservice Ltd,14/03/2017,,11.81,Catering Provisions,110000 - Catering
Solihull MBC,Resources,Children & Education Services,Brake Bros Foodservice Ltd,14/03/2017,,438.99,Catering Provisions,110000 - Catering
Solihull MBC,Resources,Children & Education Services,Brake Bros Foodservice Ltd,14/03/2017,,275.64,Catering Provisions,110000 - Catering
Solihull MBC,Resources,Children & Education Services,Brake Bros Foodservice Ltd,14/03/2017,,698.98,Catering Provisions,110000 - Catering
Solihull MBC,Resources,Children & Education Services,Brake Bros Foodservice Ltd,14/03/2017,,143.19,Catering Provisions,110000 - Catering
Solihull MBC,Resources,Children & Education Services,Brake Bros Foodservice Ltd,14/03/2017,,278.64,Catering Provisions,110000 - Catering
Solihull MBC,Resources,Children & Education Services,Brake Bros Foodservice Ltd,14/03/2017,,483.86,Catering Provisions,110000 - Catering
Solihull MBC,Resources,Children & Education Services,Brake Bros Foodservice Ltd,14/03/2017,,276.24,Catering Provisions,110000 - Catering
Solihull MBC,Resources,Children & Education Services,Brake Bros Foodservice Ltd,14/03/2017,,296.70,Catering Provisions,110000 - Catering
Solihull MBC,Resources,Children & Education Services,Brake Bros Foodservice Ltd,14/03/2017,,239.06,Catering Provisions,110000 - Catering
Solihull MBC,Resources,Children & Education Services,Brake Bros Foodservice Ltd,14/03/2017,,183.57,Catering Provisions,110000 - Catering
Solihull MBC,Resources,Children & Education Services,Brake Bros Foodservice Ltd,14/03/2017,,300.67,Catering Provisions,110000 - Catering
Solihull MBC,Resources,Children & Education Services,Brake Bros Foodservice Ltd,14/03/2017,,343.17,Catering Provisions,110000 - Catering
Solihull MBC,Resources,Children & Education Services,Brake Bros Foodservice Ltd,14/03/2017,,203.20,Catering Provisions,110000 - Catering
Solihull MBC,Resources,Children & Education Services,Brake Bros Foodservice Ltd,14/03/2017,,149.98,Catering Provisions,110000 - Catering
Solihull MBC,Resources,Children & Education Services,Brake Bros Foodservice Ltd,14/03/2017,,291.45,Catering Provisions,110000 - Catering
Solihull MBC,Resources,Children & Education Services,Brake Bros Foodservice Ltd,14/03/2017,,433.72,Catering Provisions,110000 - Catering
Solihull MBC,Resources,Children & Education Services,Brake Bros Foodservice Ltd,14/03/2017,,276.32,Catering Provisions,110000 - Catering
Solihull MBC,Resources,Children & Education Services,Brake Bros Foodservice Ltd,14/03/2017,,328.10,Catering Provisions,110000 - Catering
Solihull MBC,Resources,Children & Education Services,Brake Bros Foodservice Ltd,14/03/2017,,291.39,Catering Provisions,110000 - Catering
Solihull MBC,Resources,Children & Education Services,Brake Bros Foodservice Ltd,14/03/2017,,475.57,Catering Provisions,110000 - Catering
Solihull MBC,Resources,Children & Education Services,Brake Bros Foodservice Ltd,14/03/2017,,95.49,Catering Provisions,110000 - Catering
Solihull MBC,Resources,Children & Education Services,Brake Bros Foodservice Ltd,14/03/2017,,297.77,Catering Provisions,110000 - Catering
Solihull MBC,Resources,Children & Education Services,Brake Bros Foodservice Ltd,14/03/2017,,464.25,Catering Provisions,110000 - Catering
Solihull MBC,Resources,Children & Education Services,Brake Bros Foodservice Ltd,14/03/2017,,209.08,Catering Provisions,110000 - Catering
Solihull MBC,Resources,Children & Education Services,Brake Bros Foodservice Ltd,14/03/2017,,408.13,Catering Provisions,110000 - Catering
Solihull MBC,Resources,Children & Education Services,Brake Bros Foodservice Ltd,14/03/2017,,92.71,Catering Provisions,110000 - Catering
Solihull MBC,Resources,Children & Education Services,Brake Bros Foodservice Ltd,14/03/2017,,17.91,Catering Provisions,110000 - Catering
Solihull MBC,Resources,Children & Education Services,Brake Bros Foodservice Ltd,14/03/2017,,151.14,Catering Provisions,110000 - Catering
Solihull MBC,Resources,Children & Education Services,Brake Bros Foodservice Ltd,14/03/2017,,499.34,Catering Provisions,110000 - Catering
Solihull MBC,Resources,Children & Education Services,Brake Bros Foodservice Ltd,14/03/2017,,332.07,Catering Provisions,110000 - Catering
Solihull MBC,Resources,Children & Education Services,Brake Bros Foodservice Ltd,14/03/2017,,174.35,Catering Provisions,110000 - Catering
Solihull MBC,Resources,Children & Education Services,Brake Bros Foodservice Ltd,14/03/2017,,190.42,Catering Provisions,110000 - Catering
Solihull MBC,Resources,Children & Education Services,Brake Bros Foodservice Ltd,14/03/2017,,431.23,Catering Provisions,110000 - Catering
Solihull MBC,Resources,Children & Education Services,Brake Bros Foodservice Ltd,14/03/2017,,74.16,Catering Provisions,110000 - Catering
Solihull MBC,Resources,Children & Education Services,Brake Bros Foodservice Ltd,14/03/2017,,171.80,Catering Provisions,110000 - Catering
Solihull MBC,Resources,Children & Education Services,Brake Bros Foodservice Ltd,14/03/2017,,518.38,Catering Provisions,110000 - Catering
Solihull MBC,Resources,Children & Education Services,Brake Bros Foodservice Ltd,14/03/2017,,234.56,Catering Provisions,110000 - Catering
Solihull MBC,Resources,Children & Education Services,Brake Bros Foodservice Ltd,14/03/2017,,265.41,Catering Provisions,110000 - Catering
Solihull MBC,Resources,Children & Education Services,Brake Bros Foodservice Ltd,14/03/2017,,105.97,Catering Provisions,110000 - Catering
Solihull MBC,Resources,Children & Education Services,Brake Bros Foodservice Ltd,14/03/2017,,313.83,Catering Provisions,110000 - Catering
Solihull MBC,Resources,Children & Education Services,Brake Bros Foodservice Ltd,14/03/2017,,300.14,Catering Provisions,110000 - Catering
Solihull MBC,Resources,Children & Education Services,Brake Bros Foodservice Ltd,14/03/2017,,162.79,Catering Provisions,110000 - Catering
Solihull MBC,Resources,Children & Education Services,Brake Bros Foodservice Ltd,14/03/2017,,339.07,Catering Provisions,110000 - Catering
Solihull MBC,Resources,Children & Education Services,Brake Bros Foodservice Ltd,14/03/2017,,189.21,Catering Provisions,110000 - Catering
Solihull MBC,Resources,Children & Education Services,Brake Bros Foodservice Ltd,14/03/2017,,180.26,Catering Provisions,110000 - Catering
Solihull MBC,Resources,Children & Education Services,Brake Bros Foodservice Ltd,14/03/2017,,269.69,Catering Provisions,110000 - Catering
Solihull MBC,Resources,Children & Education Services,Brake Bros Foodservice Ltd,14/03/2017,,27.78,Catering Provisions,110000 - Catering
Solihull MBC,Resources,Children & Education Services,Brake Bros Foodservice Ltd,14/03/2017,,177.51,Catering Provisions,110000 - Catering
Solihull MBC,Resources,Children & Education Services,Brake Bros Foodservice Ltd,14/03/2017,,219.23,Catering Provisions,110000 - Catering
Solihull MBC,Resources,Children & Education Services,Brake Bros Foodservice Ltd,14/03/2017,,368.27,Catering Provisions,110000 - Catering
Solihull MBC,Resources,Children & Education Services,Brake Bros Foodservice Ltd,14/03/2017,,579.25,Catering Provisions,110000 - Catering
Solihull MBC,Resources,Children & Education Services,Brake Bros Foodservice Ltd,14/03/2017,,319.21,Catering Provisions,110000 - Catering
Solihull MBC,Resources,Children & Education Services,Brake Bros Foodservice Ltd,14/03/2017,,113.51,Catering Provisions,110000 - Catering
Solihull MBC,Resources,Children & Education Services,Brake Bros Foodservice Ltd,14/03/2017,,126.08,Catering Provisions,110000 - Catering
Solihull MBC,Resources,Children & Education Services,Brake Bros Foodservice Ltd,14/03/2017,,388.26,Catering Provisions,110000 - Catering
Solihull MBC,Resources,Children & Education Services,Brake Bros Foodservice Ltd,14/03/2017,,272.92,Catering Provisions,110000 - Catering
Solihull MBC,Resources,Children & Education Services,Brake Bros Foodservice Ltd,14/03/2017,,166.47,Catering Provisions,110000 - Catering
Solihull MBC,Resources,Children & Education Services,Brake Bros Foodservice Ltd,14/03/2017,,126.37,Catering Provisions,110000 - Catering
Solihull MBC,Resources,Children & Education Services,Brake Bros Foodservice Ltd,14/03/2017,,184.09,Catering Provisions,110000 - Catering
Solihull MBC,Resources,Children & Education Services,Brake Bros Foodservice Ltd,14/03/2017,,145.07,Catering Provisions,110000 - Catering
Solihull MBC,Resources,Children & Education Services,Brake Bros Foodservice Ltd,14/03/2017,,351.46,Catering Provisions,110000 - Catering
Solihull MBC,Resources,Children & Education Services,Brake Bros Foodservice Ltd,14/03/2017,,356.15,Catering Provisions,110000 - Catering
Solihull MBC,Resources,Children & Education Services,Brake Bros Foodservice Ltd,14/03/2017,,206.71,Catering Provisions,110000 - Catering
Solihull MBC,Resources,Children & Education Services,Brake Bros Foodservice Ltd,14/03/2017,,376.69,Catering Provisions,110000 - Catering
Solihull MBC,Resources,Children & Education Services,Brake Bros Foodservice Ltd,14/03/2017,,273.11,Catering Provisions,110000 - Catering
Solihull MBC,Resources,Children & Education Services,Brake Bros Foodservice Ltd,14/03/2017,,194.48,Catering Provisions,110000 - Catering
Solihull MBC,Resources,Children & Education Services,Brake Bros Foodservice Ltd,14/03/2017,,312.54,Catering Provisions,110000 - Catering
Solihull MBC,Resources,Children & Education Services,Brake Bros Foodservice Ltd,14/03/2017,,525.94,Catering Provisions,110000 - Catering
Solihull MBC,Resources,Children & Education Services,Brake Bros Foodservice Ltd,14/03/2017,,10.47,Catering Provisions,110000 - Catering
Solihull MBC,Resources,Children & Education Services,Brake Bros Foodservice Ltd,14/03/2017,,234.43,Catering Provisions,110000 - Catering
Solihull MBC,Resources,Children & Education Services,Brake Bros Foodservice Ltd,14/03/2017,,580.97,Catering Provisions,110000 - Catering
Solihull MBC,Resources,Children & Education Services,Brake Bros Foodservice Ltd,14/03/2017,,58.32,Catering Provisions,110000 - Catering
Solihull MBC,Resources,Children & Education Services,Brake Bros Foodservice Ltd,14/03/2017,,231.94,Catering Provisions,110000 - Catering
Solihull MBC,Resources,Children & Education Services,Brake Bros Foodservice Ltd,14/03/2017,,206.84,Catering Provisions,110000 - Catering
Solihull MBC,Resources,Children & Education Services,Brake Bros Foodservice Ltd,14/03/2017,,175.36,Catering Provisions,110000 - Catering
Solihull MBC,Resources,Children & Education Services,Brake Bros Foodservice Ltd,14/03/2017,,629.32,Catering Provisions,110000 - Catering
Solihull MBC,Resources,Children & Education Services,Brake Bros Foodservice Ltd,14/03/2017,,133.34,Catering Provisions,110000 - Catering
Solihull MBC,Resources,Children & Education Services,Brake Bros Foodservice Ltd,14/03/2017,,75.96,Catering Provisions,110000 - Catering
Solihull MBC,Resources,Children & Education Services,Brake Bros Foodservice Ltd,14/03/2017,,100.03,Catering Provisions,110000 - Catering
Solihull MBC,Resources,Children & Education Services,Brake Bros Foodservice Ltd,14/03/2017,,184.82,Catering Provisions,110000 - Catering
Solihull MBC,Resources,Children & Education Services,Brake Bros Foodservice Ltd,14/03/2017,,89.26,Catering Provisions,110000 - Catering
Solihull MBC,Resources,Children & Education Services,Brake Bros Foodservice Ltd,14/03/2017,,91.58,Catering Provisions,110000 - Catering
Solihull MBC,Resources,Children & Education Services,Brake Bros Foodservice Ltd,14/03/2017,,352.16,Catering Provisions,110000 - Catering
Solihull MBC,Resources,Children & Education Services,Brake Bros Foodservice Ltd,17/03/2017,,270.90,Catering Provisions,110000 - Catering
Solihull MBC,Resources,Children & Education Services,Brake Bros Foodservice Ltd,17/03/2017,,528.24,Catering Provisions,110000 - Catering
Solihull MBC,Resources,Children & Education Services,Brake Bros Foodservice Ltd,17/03/2017,,267.39,Catering Provisions,110000 - Catering
Solihull MBC,Resources,Children & Education Services,Brake Bros Foodservice Ltd,17/03/2017,,205.68,Catering Provisions,110000 - Catering
Solihull MBC,Resources,Children & Education Services,Brake Bros Foodservice Ltd,17/03/2017,,231.36,Catering Provisions,110000 - Catering
Solihull MBC,Resources,Children & Education Services,Brake Bros Foodservice Ltd,17/03/2017,,110.57,Catering Provisions,110000 - Catering
Solihull MBC,Resources,Children & Education Services,Brake Bros Foodservice Ltd,17/03/2017,,239.13,Catering Provisions,110000 - Catering
Solihull MBC,Resources,Children & Education Services,Brake Bros Foodservice Ltd,17/03/2017,,257.97,Catering Provisions,110000 - Catering
Solihull MBC,Resources,Children & Education Services,Brake Bros Foodservice Ltd,17/03/2017,,219.86,Catering Provisions,110000 - Catering
Solihull MBC,Resources,Children & Education Services,Brake Bros Foodservice Ltd,17/03/2017,,316.62,Catering Provisions,110000 - Catering
Solihull MBC,Resources,Children & Education Services,Brake Bros Foodservice Ltd,17/03/2017,,448.41,Catering Provisions,110000 - Catering
Solihull MBC,Resources,Children & Education Services,Brake Bros Foodservice Ltd,17/03/2017,,285.44,Catering Provisions,110000 - Catering
Solihull MBC,Resources,Children & Education Services,Brake Bros Foodservice Ltd,17/03/2017,,233.18,Catering Provisions,110000 - Catering
Solihull MBC,Resources,Children & Education Services,Brake Bros Foodservice Ltd,17/03/2017,,394.81,Catering Provisions,110000 - Catering
Solihull MBC,Resources,Children & Education Services,Brake Bros Foodservice Ltd,17/03/2017,,385.71,Catering Provisions,110000 - Catering
Solihull MBC,Resources,Children & Education Services,Brake Bros Foodservice Ltd,17/03/2017,,447.40,Catering Provisions,110000 - Catering
Solihull MBC,Resources,Children & Education Services,Brake Bros Foodservice Ltd,17/03/2017,,421.96,Catering Provisions,110000 - Catering
Solihull MBC,Resources,Children & Education Services,Brake Bros Foodservice Ltd,17/03/2017,,364.20,Catering Provisions,110000 - Catering
Solihull MBC,Resources,Children & Education Services,Brake Bros Foodservice Ltd,17/03/2017,,359.55,Catering Provisions,110000 - Catering
Solihull MBC,Resources,Children & Education Services,Brake Bros Foodservice Ltd,17/03/2017,,265.82,Catering Provisions,110000 - Catering
Solihull MBC,Resources,Children & Education Services,Brake Bros Foodservice Ltd,17/03/2017,,334.37,Catering Provisions,110000 - Catering
Solihull MBC,Resources,Children & Education Services,Brake Bros Foodservice Ltd,17/03/2017,,351.57,Catering Provisions,110000 - Catering
Solihull MBC,Resources,Children & Education Services,Brake Bros Foodservice Ltd,17/03/2017,,283.29,Catering Provisions,110000 - Catering
Solihull MBC,Resources,Children & Education Services,Brake Bros Foodservice Ltd,17/03/2017,,243.47,Catering Provisions,110000 - Catering
Solihull MBC,Resources,Children & Education Services,Brake Bros Foodservice Ltd,17/03/2017,,424.15,Catering Provisions,110000 - Catering
Solihull MBC,Resources,Children & Education Services,Brake Bros Foodservice Ltd,17/03/2017,,340.32,Catering Provisions,110000 - Catering
Solihull MBC,Resources,Children & Education Services,Brake Bros Foodservice Ltd,17/03/2017,,304.91,Catering Provisions,110000 - Catering
Solihull MBC,Resources,Children & Education Services,Brake Bros Foodservice Ltd,17/03/2017,,402.22,Catering Provisions,110000 - Catering
Solihull MBC,Resources,Children & Education Services,Brake Bros Foodservice Ltd,17/03/2017,,366.93,Catering Provisions,110000 - Catering
Solihull MBC,Resources,Children & Education Services,Brake Bros Foodservice Ltd,17/03/2017,,343.49,Catering Provisions,110000 - Catering
Solihull MBC,Resources,Children & Education Services,Brake Bros Foodservice Ltd,17/03/2017,,437.82,Catering Provisions,110000 - Catering
Solihull MBC,Resources,Children & Education Services,Brake Bros Foodservice Ltd,17/03/2017,,633.05,Catering Provisions,110000 - Catering
Solihull MBC,Resources,Children & Education Services,Brake Bros Foodservice Ltd,17/03/2017,,184.63,Catering Provisions,110000 - Catering
Solihull MBC,Resources,Children & Education Services,Brake Bros Foodservice Ltd,17/03/2017,,321.87,Catering Provisions,110000 - Catering
Solihull MBC,Resources,Children & Education Services,Brake Bros Foodservice Ltd,17/03/2017,,286.63,Catering Provisions,110000 - Catering
Solihull MBC,Resources,Children & Education Services,Brake Bros Foodservice Ltd,17/03/2017,,533.17,Catering Provisions,110000 - Catering
Solihull MBC,Resources,Children & Education Services,Brake Bros Foodservice Ltd,17/03/2017,,123.93,Catering Provisions,110000 - Catering
Solihull MBC,Resources,Children & Education Services,Brake Bros Foodservice Ltd,17/03/2017,,375.70,Catering Provisions,110000 - Catering
Solihull MBC,Resources,Children & Education Services,Brake Bros Foodservice Ltd,17/03/2017,,401.65,Catering Provisions,110000 - Catering
Solihull MBC,Resources,Children & Education Services,Brake Bros Foodservice Ltd,17/03/2017,,201.51,Catering Provisions,110000 - Catering
Solihull MBC,Resources,Children & Education Services,Brake Bros Foodservice Ltd,17/03/2017,,307.94,Catering Provisions,110000 - Catering
Solihull MBC,Resources,Children & Education Services,Brake Bros Foodservice Ltd,17/03/2017,,48.15,Catering Provisions,110000 - Catering
Solihull MBC,Resources,Children & Education Services,Brake Bros Foodservice Ltd,17/03/2017,,275.69,Catering Provisions,110000 - Catering
Solihull MBC,Resources,Children & Education Services,Brake Bros Foodservice Ltd,17/03/2017,,286.35,Catering Provisions,110000 - Catering
Solihull MBC,Resources,Children & Education Services,Brake Bros Foodservice Ltd,17/03/2017,,151.08,Catering Provisions,110000 - Catering
Solihull MBC,Resources,Children & Education Services,Brake Bros Foodservice Ltd,17/03/2017,,272.63,Catering Provisions,110000 - Catering
Solihull MBC,Resources,Children & Education Services,Brake Bros Foodservice Ltd,17/03/2017,,296.69,Catering Provisions,110000 - Catering
Solihull MBC,Resources,Children & Education Services,Brake Bros Foodservice Ltd,17/03/2017,,264.77,Catering Provisions,110000 - Catering
Solihull MBC,Resources,Children & Education Services,Brake Bros Foodservice Ltd,17/03/2017,,10.30,Catering Provisions,110000 - Catering
Solihull MBC,Resources,Children & Education Services,Brake Bros Foodservice Ltd,17/03/2017,,353.74,Catering Provisions,110000 - Catering
Solihull MBC,Resources,Children & Education Services,Brake Bros Foodservice Ltd,17/03/2017,,284.34,Catering Provisions,110000 - Catering
Solihull MBC,Resources,Children & Education Services,Brake Bros Foodservice Ltd,17/03/2017,,291.45,Catering Provisions,110000 - Catering
Solihull MBC,Resources,Children & Education Services,Brake Bros Foodservice Ltd,17/03/2017,,14.65,Catering Provisions,110000 - Catering
Solihull MBC,Resources,Children & Education Services,Brake Bros Foodservice Ltd,17/03/2017,,356.62,Catering Provisions,110000 - Catering
Solihull MBC,Resources,Children & Education Services,Brake Bros Foodservice Ltd,17/03/2017,,524.46,Catering Provisions,110000 - Catering
Solihull MBC,Resources,Children & Education Services,Brake Bros Foodservice Ltd,17/03/2017,,165.81,Catering Provisions,110000 - Catering
Solihull MBC,Resources,Children & Education Services,Brake Bros Foodservice Ltd,17/03/2017,,390.23,Catering Provisions,110000 - Catering
Solihull MBC,Resources,Children & Education Services,Brake Bros Foodservice Ltd,17/03/2017,,277.82,Catering Provisions,110000 - Catering
Solihull MBC,Resources,Children & Education Services,Brake Bros Foodservice Ltd,17/03/2017,,29.62,Catering Provisions,110000 - Catering
Solihull MBC,Resources,Children & Education Services,Brake Bros Foodservice Ltd,17/03/2017,,592.84,Catering Provisions,110000 - Catering
Solihull MBC,Resources,Children & Education Services,Brake Bros Foodservice Ltd,17/03/2017,,327.64,Catering Provisions,110000 - Catering
Solihull MBC,Resources,Children & Education Services,Brake Bros Foodservice Ltd,17/03/2017,,231.32,Catering Provisions,110000 - Catering
Solihull MBC,Resources,Children & Education Services,Brake Bros Foodservice Ltd,17/03/2017,,248.33,Catering Provisions,110000 - Catering
Solihull MBC,Resources,Children & Education Services,Brake Bros Foodservice Ltd,17/03/2017,,619.73,Catering Provisions,110000 - Catering
Solihull MBC,Resources,Children & Education Services,Brake Bros Foodservice Ltd,17/03/2017,,299.71,Catering Provisions,110000 - Catering
